Body Name,Body,Date,Department,Beneficiary,Summary of Purpose (SeRCOP),Amount,Merchant Code,Transaction Number,Supplier ID
Sandwell Metropolitan Borough Council,http://www.sandwell.gov.uk/info/200202/performance_and_spending/1079/payments_over_4273,25-Apr-2017,ACE Capital,M.W. CRIPWELL LIMITED,ACE Capital,"1,255.22","CIP - New Construction,Conversion, Enhancement & Reno",1718P01_CR00001,115312
Sandwell Metropolitan Borough Council,http://www.sandwell.gov.uk/info/200202/performance_and_spending/1079/payments_over_4274,01-Apr-2017,ACE Capital,MICROSOFT LTD,ACE Capital,"16,495.12",Externally Purchased Professional Services ,1718P01_CR00002,71241
Sandwell Metropolitan Borough Council,http://www.sandwell.gov.uk/info/200202/performance_and_spending/1079/payments_over_4275,01-Apr-2017,Adults Social Care Capital,LIQUIDLOGIC LIMITED,Adults Social Care Capital,"33,041.25",CIP - Fixtures & Fittings,1718P01_CR00003,83167
Sandwell Metropolitan Borough Council,http://www.sandwell.gov.uk/info/200202/performance_and_spending/1079/payments_over_4276,01-Apr-2017,Adults Social Care Capital,LIQUIDLOGIC LIMITED,Adults Social Care Capital,"34,515.73",CIP - Fixtures & Fittings,1718P01_CR00004,83167
Sandwell Metropolitan Borough Council,http://www.sandwell.gov.uk/info/200202/performance_and_spending/1079/payments_over_4277,01-Apr-2017,Adults Social Care Capital,LIQUIDLOGIC LIMITED,Adults Social Care Capital,"7,503.41",CIP - Fixtures & Fittings,1718P01_CR00005,83167
Sandwell Metropolitan Borough Council,http://www.sandwell.gov.uk/info/200202/performance_and_spending/1079/payments_over_4278,01-Apr-2017,Adults Social Care Capital,LIQUIDLOGIC LIMITED,Adults Social Care Capital,"66,082.50",CIP - Fixtures & Fittings,1718P01_CR00006,83167
Sandwell Metropolitan Borough Council,http://www.sandwell.gov.uk/info/200202/performance_and_spending/1079/payments_over_4279,01-Apr-2017,Adults Social Care Capital,LIQUIDLOGIC LIMITED,Adults Social Care Capital,"40,518.47",CIP - Fixtures & Fittings,1718P01_CR00007,83167
Sandwell Metropolitan Borough Council,http://www.sandwell.gov.uk/info/200202/performance_and_spending/1079/payments_over_4280,01-Apr-2017,Adults Social Care Capital,LIQUIDLOGIC LIMITED,Adults Social Care Capital,"33,041.25",CIP - Fixtures & Fittings,1718P01_CR00008,83167
Sandwell Metropolitan Borough Council,http://www.sandwell.gov.uk/info/200202/performance_and_spending/1079/payments_over_500,04-Apr-2017,Assistant Chief Executive (Inc SIU),ASHFORDS LLP,Assistant Chief Executive (Excl SIU),"2,498.00",Externally Purchased Professional Services ,1718P01_CR00009,110360
Sandwell Metropolitan Borough Council,http://www.sandwell.gov.uk/info/200202/performance_and_spending/1079/payments_over_501,25-Apr-2017,Assistant Chief Executive (Inc SIU),Burton and Burton Solicitors,Assistant Chief Executive (Excl SIU),"5,089.04",Insurance,1718P01_CR00010,129362
Sandwell Metropolitan Borough Council,http://www.sandwell.gov.uk/info/200202/performance_and_spending/1079/payments_over_502,05-Apr-2017,Assistant Chief Executive (Inc SIU),Burton and Burton Solicitors,Assistant Chief Executive (Excl SIU),"10,750.00",Insurance,1718P01_CR00011,129362
Sandwell Metropolitan Borough Council,http://www.sandwell.gov.uk/info/200202/performance_and_spending/1079/payments_over_503,25-Apr-2017,Assistant Chief Executive (Inc SIU),COMMUNITY LAW PARTNERSHIP,Assistant Chief Executive (Excl SIU),"7,154.00",Insurance,1718P01_CR00012,8450
Sandwell Metropolitan Borough Council,http://www.sandwell.gov.uk/info/200202/performance_and_spending/1079/payments_over_504,26-Apr-2017,Assistant Chief Executive (Inc SIU),CUNNINGHAM LINDSEY UNITED KINGDOM,Assistant Chief Executive (Excl SIU),702.00,Externally Purchased Professional Services ,1718P01_CR00013,93571
Sandwell Metropolitan Borough Council,http://www.sandwell.gov.uk/info/200202/performance_and_spending/1079/payments_over_505,13-Apr-2017,Assistant Chief Executive (Inc SIU),DWF LLP,Assistant Chief Executive (Excl SIU),"11,317.21",Externally Purchased Professional Services ,1718P01_CR00014,113101
Sandwell Metropolitan Borough Council,http://www.sandwell.gov.uk/info/200202/performance_and_spending/1079/payments_over_506,04-Apr-2017,Assistant Chief Executive (Inc SIU),DWP,Assistant Chief Executive (Excl SIU),573.30,Insurance,1718P01_CR00015,01753867
Sandwell Metropolitan Borough Council,http://www.sandwell.gov.uk/info/200202/performance_and_spending/1079/payments_over_507,04-Apr-2017,Assistant Chief Executive (Inc SIU),DWP,Assistant Chief Executive (Excl SIU),681.60,Insurance,1718P01_CR00016,01753867
Sandwell Metropolitan Borough Council,http://www.sandwell.gov.uk/info/200202/performance_and_spending/1079/payments_over_508,04-Apr-2017,Assistant Chief Executive (Inc SIU),MICHAEL W HALSALL SOLICITORS,Assistant Chief Executive (Excl SIU),"7,661.07",Insurance,1718P01_CR00017,104787
Sandwell Metropolitan Borough Council,http://www.sandwell.gov.uk/info/200202/performance_and_spending/1079/payments_over_509,12-Apr-2017,Assistant Chief Executive (Inc SIU),PLEXUS LAW LIMITED,Assistant Chief Executive (Excl SIU),"8,669.20",Externally Purchased Professional Services ,1718P01_CR00018,124338
Sandwell Metropolitan Borough Council,http://www.sandwell.gov.uk/info/200202/performance_and_spending/1079/payments_over_510,25-Apr-2017,Assistant Chief Executive (Inc SIU),REDACTED PERSONAL DATA,Assistant Chief Executive (Excl SIU),591.76,Insurance,1718P01_CR00019,REDACTED PERSONAL DATA
Sandwell Metropolitan Borough Council,http://www.sandwell.gov.uk/info/200202/performance_and_spending/1079/payments_over_511,26-Apr-2017,Assistant Chief Executive (Inc SIU),REDACTED PERSONAL DATA,Assistant Chief Executive (Excl SIU),890.00,Insurance,1718P01_CR00020,REDACTED PERSONAL DATA
Sandwell Metropolitan Borough Council,http://www.sandwell.gov.uk/info/200202/performance_and_spending/1079/payments_over_512,10-Apr-2017,Assistant Chief Executive (Inc SIU),REDACTED PERSONAL DATA,Assistant Chief Executive (Excl SIU),"1,000.00",Insurance,1718P01_CR00021,REDACTED PERSONAL DATA
Sandwell Metropolitan Borough Council,http://www.sandwell.gov.uk/info/200202/performance_and_spending/1079/payments_over_513,05-Apr-2017,Assistant Chief Executive (Inc SIU),REDACTED PERSONAL DATA,Assistant Chief Executive (Excl SIU),"1,250.00",Insurance,1718P01_CR00022,REDACTED PERSONAL DATA
Sandwell Metropolitan Borough Council,http://www.sandwell.gov.uk/info/200202/performance_and_spending/1079/payments_over_514,25-Apr-2017,Assistant Chief Executive (Inc SIU),REDACTED PERSONAL DATA,Assistant Chief Executive (Excl SIU),"1,500.00",Insurance,1718P01_CR00023,REDACTED PERSONAL DATA
Sandwell Metropolitan Borough Council,http://www.sandwell.gov.uk/info/200202/performance_and_spending/1079/payments_over_515,25-Apr-2017,Assistant Chief Executive (Inc SIU),REDACTED PERSONAL DATA,Assistant Chief Executive (Excl SIU),"3,145.77",Insurance,1718P01_CR00024,REDACTED PERSONAL DATA
Sandwell Metropolitan Borough Council,http://www.sandwell.gov.uk/info/200202/performance_and_spending/1079/payments_over_516,12-Apr-2017,Assistant Chief Executive (Inc SIU),REDACTED PERSONAL DATA,Assistant Chief Executive (Excl SIU),"5,280.40",Insurance,1718P01_CR00025,REDACTED PERSONAL DATA
Sandwell Metropolitan Borough Council,http://www.sandwell.gov.uk/info/200202/performance_and_spending/1079/payments_over_517,04-Apr-2017,Assistant Chief Executive (Inc SIU),REDACTED PERSONAL DATA,Assistant Chief Executive (Excl SIU),"7,439.61",Insurance,1718P01_CR00026,REDACTED PERSONAL DATA
Sandwell Metropolitan Borough Council,http://www.sandwell.gov.uk/info/200202/performance_and_spending/1079/payments_over_518,25-Apr-2017,Assistant Chief Executive (Inc SIU),RESOLUTE MANAGEMENT LTD,Assistant Chief Executive (Excl SIU),658.25,Insurance,1718P01_CR00027,129512
Sandwell Metropolitan Borough Council,http://www.sandwell.gov.uk/info/200202/performance_and_spending/1079/payments_over_519,25-Apr-2017,Assistant Chief Executive (Inc SIU),RESOLUTE MANAGEMENT LTD,Assistant Chief Executive (Excl SIU),"5,660.95",Insurance,1718P01_CR00028,129512
Sandwell Metropolitan Borough Council,http://www.sandwell.gov.uk/info/200202/performance_and_spending/1079/payments_over_520,25-Apr-2017,Assistant Chief Executive (Inc SIU),THOMPSONS SOLICITORS LLP,Assistant Chief Executive (Excl SIU),"2,490.00",Insurance,1718P01_CR00029,01680379
Sandwell Metropolitan Borough Council,http://www.sandwell.gov.uk/info/200202/performance_and_spending/1079/payments_over_521,12-Apr-2017,Assistant Chief Executive (Inc SIU),TRADE UNION LEGAL LLP,Assistant Chief Executive (Excl SIU),600.00,Insurance,1718P01_CR00030,121278
Sandwell Metropolitan Borough Council,http://www.sandwell.gov.uk/info/200202/performance_and_spending/1079/payments_over_522,12-Apr-2017,Assistant Chief Executive (Inc SIU),TRADE UNION LEGAL LLP,Assistant Chief Executive (Excl SIU),811.00,Insurance,1718P01_CR00031,121278
Sandwell Metropolitan Borough Council,http://www.sandwell.gov.uk/info/200202/performance_and_spending/1079/payments_over_523,06-Apr-2017,Assistant Chief Executive (Inc SIU),WEIGHTMANS LLP,Assistant Chief Executive (Excl SIU),826.50,Externally Purchased Professional Services ,1718P01_CR00032,30670
Sandwell Metropolitan Borough Council,http://www.sandwell.gov.uk/info/200202/performance_and_spending/1079/payments_over_524,25-Apr-2017,Assistant Chief Executive (Inc SIU),WEIGHTMANS LLP,Assistant Chief Executive (Excl SIU),900.50,Externally Purchased Professional Services ,1718P01_CR00033,30670
Sandwell Metropolitan Borough Council,http://www.sandwell.gov.uk/info/200202/performance_and_spending/1079/payments_over_525,25-Apr-2017,Assistant Chief Executive (Inc SIU),WEIGHTMANS LLP,Assistant Chief Executive (Excl SIU),924.00,Externally Purchased Professional Services ,1718P01_CR00034,30670
Sandwell Metropolitan Borough Council,http://www.sandwell.gov.uk/info/200202/performance_and_spending/1079/payments_over_526,13-Apr-2017,Assistant Chief Executive (Inc SIU),WEIGHTMANS LLP,Assistant Chief Executive (Excl SIU),"1,008.00",Externally Purchased Professional Services ,1718P01_CR00035,30670
Sandwell Metropolitan Borough Council,http://www.sandwell.gov.uk/info/200202/performance_and_spending/1079/payments_over_527,12-Apr-2017,Assistant Chief Executive (Inc SIU),WEIGHTMANS LLP,Assistant Chief Executive (Excl SIU),"1,354.50",Externally Purchased Professional Services ,1718P01_CR00036,30670
Sandwell Metropolitan Borough Council,http://www.sandwell.gov.uk/info/200202/performance_and_spending/1079/payments_over_528,12-Apr-2017,Assistant Chief Executive (Inc SIU),WEIGHTMANS LLP,Assistant Chief Executive (Excl SIU),"1,357.00",Externally Purchased Professional Services ,1718P01_CR00037,30670
Sandwell Metropolitan Borough Council,http://www.sandwell.gov.uk/info/200202/performance_and_spending/1079/payments_over_529,01-Apr-2017,Assistant Chief Executive (Inc SIU),EXTRA PERSONNEL LTD                                         01,Assistant Chief Executive (Excl SIU),-948.68,Agency Staff,1718P01_CR00038,01344184
Sandwell Metropolitan Borough Council,http://www.sandwell.gov.uk/info/200202/performance_and_spending/1079/payments_over_530,01-Apr-2017,Assistant Chief Executive (Inc SIU),EXTRA PERSONNEL LTD                                         01,Assistant Chief Executive (Excl SIU),"-1,230.72",Agency Staff,1718P01_CR00039,01344184
Sandwell Metropolitan Borough Council,http://www.sandwell.gov.uk/info/200202/performance_and_spending/1079/payments_over_531,01-Apr-2017,Assistant Chief Executive (Inc SIU),A J PRICE DECORATORS LTD,Assistant Chief Executive (Excl SIU),"1,620.00",Building Maintenance & Improvements,1718P01_CR00040,72095
Sandwell Metropolitan Borough Council,http://www.sandwell.gov.uk/info/200202/performance_and_spending/1079/payments_over_532,01-Apr-2017,Assistant Chief Executive (Inc SIU),ACCESS ALLIANCE,Assistant Chief Executive (Excl SIU),"3,014.00",Grant Payments,1718P01_CR00041,11155
Sandwell Metropolitan Borough Council,http://www.sandwell.gov.uk/info/200202/performance_and_spending/1079/payments_over_533,13-Apr-2017,Assistant Chief Executive (Inc SIU),ACTION DRAINS LTD,Assistant Chief Executive (Excl SIU),565.00,Building Maintenance & Improvements,1718P01_CR00042,77003062
Sandwell Metropolitan Borough Council,http://www.sandwell.gov.uk/info/200202/performance_and_spending/1079/payments_over_534,13-Apr-2017,Assistant Chief Executive (Inc SIU),ACTION DRAINS LTD,Assistant Chief Executive (Excl SIU),995.00,Building Maintenance & Improvements,1718P01_CR00043,77003062
Sandwell Metropolitan Borough Council,http://www.sandwell.gov.uk/info/200202/performance_and_spending/1079/payments_over_535,02-Apr-2017,Assistant Chief Executive (Inc SIU),ADT FIRE & SECURITY PLC,Assistant Chief Executive (Excl SIU),718.89,Security,1718P01_CR00044,01115015
Sandwell Metropolitan Borough Council,http://www.sandwell.gov.uk/info/200202/performance_and_spending/1079/payments_over_536,01-Apr-2017,Assistant Chief Executive (Inc SIU),AIREY CONSULTANCY SERVICES LTD,Assistant Chief Executive (Excl SIU),595.00,Consultancy,1718P01_CR00045,01746505
Sandwell Metropolitan Borough Council,http://www.sandwell.gov.uk/info/200202/performance_and_spending/1079/payments_over_537,27-Apr-2017,Assistant Chief Executive (Inc SIU),AKIRA FINANCIAL LIMITED,Assistant Chief Executive (Excl SIU),"1,058.53",Employee Benefits Scheme,1718P01_CR00046,122169
Sandwell Metropolitan Borough Council,http://www.sandwell.gov.uk/info/200202/performance_and_spending/1079/payments_over_538,27-Apr-2017,Assistant Chief Executive (Inc SIU),AKIRA FINANCIAL LIMITED,Assistant Chief Executive (Excl SIU),813.72,Employee Benefits Scheme,1718P01_CR00047,122169
Sandwell Metropolitan Borough Council,http://www.sandwell.gov.uk/info/200202/performance_and_spending/1079/payments_over_539,01-Apr-2017,Assistant Chief Executive (Inc SIU),ALLSTAR BUSINESS SOLUTIONS LIMITED,Assistant Chief Executive (Excl SIU),617.02,Fuel ,1718P01_CR00048,104057
Sandwell Metropolitan Borough Council,http://www.sandwell.gov.uk/info/200202/performance_and_spending/1079/payments_over_540,15-Apr-2017,Assistant Chief Executive (Inc SIU),ALLSTAR BUSINESS SOLUTIONS LIMITED,Assistant Chief Executive (Excl SIU),"1,007.60",Fuel ,1718P01_CR00049,104057
Sandwell Metropolitan Borough Council,http://www.sandwell.gov.uk/info/200202/performance_and_spending/1079/payments_over_541,01-Apr-2017,Assistant Chief Executive (Inc SIU),ALTIGA LTD,Assistant Chief Executive (Excl SIU),630.00,Building Maintenance & Improvements,1718P01_CR00050,37463
Sandwell Metropolitan Borough Council,http://www.sandwell.gov.uk/info/200202/performance_and_spending/1079/payments_over_542,03-Apr-2017,Assistant Chief Executive (Inc SIU),ASHDOWN SUPPLIES,Assistant Chief Executive (Excl SIU),675.00,Bereavement Expenses,1718P01_CR00051,24335
Sandwell Metropolitan Borough Council,http://www.sandwell.gov.uk/info/200202/performance_and_spending/1079/payments_over_543,19-Apr-2017,Assistant Chief Executive (Inc SIU),ASHDOWN SUPPLIES,Assistant Chief Executive (Excl SIU),675.00,Bereavement Expenses,1718P01_CR00052,24335
Sandwell Metropolitan Borough Council,http://www.sandwell.gov.uk/info/200202/performance_and_spending/1079/payments_over_544,06-Apr-2017,Assistant Chief Executive (Inc SIU),BACS PAYMENT SCHEMES LTD,Assistant Chief Executive (Excl SIU),"1,500.00",Externally Purchased Professional Services ,1718P01_CR00053,94212
Sandwell Metropolitan Borough Council,http://www.sandwell.gov.uk/info/200202/performance_and_spending/1079/payments_over_545,03-Apr-2017,Assistant Chief Executive (Inc SIU),BADENOCH AND CLARK LIMITED,Assistant Chief Executive (Excl SIU),"2,066.67",Agency Staff,1718P01_CR00054,01677282
Sandwell Metropolitan Borough Council,http://www.sandwell.gov.uk/info/200202/performance_and_spending/1079/payments_over_546,01-Apr-2017,Assistant Chief Executive (Inc SIU),BARNSLEY BATE LIMITED,Assistant Chief Executive (Excl SIU),"2,250.00",Externally Purchased Professional Services ,1718P01_CR00055,127857
Sandwell Metropolitan Borough Council,http://www.sandwell.gov.uk/info/200202/performance_and_spending/1079/payments_over_547,01-Apr-2017,Assistant Chief Executive (Inc SIU),BENTLEY SYSTEMS INTERNATIONAL LTD,Assistant Chief Executive (Excl SIU),"13,470.00",ICT ,1718P01_CR00056,93808
Sandwell Metropolitan Borough Council,http://www.sandwell.gov.uk/info/200202/performance_and_spending/1079/payments_over_548,01-Apr-2017,Assistant Chief Executive (Inc SIU),BILLINGHAMS GARDEN & BUILDING SUPPLIES LTD,Assistant Chief Executive (Excl SIU),963.63,Equipment & Furniture ,1718P01_CR00057,01476954
Sandwell Metropolitan Borough Council,http://www.sandwell.gov.uk/info/200202/performance_and_spending/1079/payments_over_549,01-Apr-2017,Assistant Chief Executive (Inc SIU),BRADLEY ENVIRONMENTAL CONSULTANTS LTD,Assistant Chief Executive (Excl SIU),"1,135.00",Building Maintenance & Improvements,1718P01_CR00058,01150424
Sandwell Metropolitan Borough Council,http://www.sandwell.gov.uk/info/200202/performance_and_spending/1079/payments_over_550,01-Apr-2017,Assistant Chief Executive (Inc SIU),BRISTOW & SUTOR,Assistant Chief Executive (Excl SIU),750.18,Externally Purchased Professional Services ,1718P01_CR00059,01017709
Sandwell Metropolitan Borough Council,http://www.sandwell.gov.uk/info/200202/performance_and_spending/1079/payments_over_551,01-Apr-2017,Assistant Chief Executive (Inc SIU),BRITISH STANDARDS INSTITUTION,Assistant Chief Executive (Excl SIU),"2,125.00",Subscriptions,1718P01_CR00060,01520113
Sandwell Metropolitan Borough Council,http://www.sandwell.gov.uk/info/200202/performance_and_spending/1079/payments_over_552,01-Apr-2017,Assistant Chief Executive (Inc SIU),BRITISH TELECOMMUNICATIONS PLC,Assistant Chief Executive (Excl SIU),"8,806.90",ICT ,1718P01_CR00061,01070528
Sandwell Metropolitan Borough Council,http://www.sandwell.gov.uk/info/200202/performance_and_spending/1079/payments_over_553,01-Apr-2017,Assistant Chief Executive (Inc SIU),BRITISH TELECOMMUNICATIONS PLC,Assistant Chief Executive (Excl SIU),"6,025.59",ICT ,1718P01_CR00062,01070528
Sandwell Metropolitan Borough Council,http://www.sandwell.gov.uk/info/200202/performance_and_spending/1079/payments_over_554,01-Apr-2017,Assistant Chief Executive (Inc SIU),BROWNE JACOBSON SOLICITORS,Assistant Chief Executive (Excl SIU),"4,096.80",Externally Purchased Professional Services ,1718P01_CR00063,01550609
Sandwell Metropolitan Borough Council,http://www.sandwell.gov.uk/info/200202/performance_and_spending/1079/payments_over_555,04-Apr-2017,Assistant Chief Executive (Inc SIU),CANFORD AUDIO PLC,Assistant Chief Executive (Excl SIU),"1,918.75",Equipment & Furniture ,1718P01_CR00064,2466
Sandwell Metropolitan Borough Council,http://www.sandwell.gov.uk/info/200202/performance_and_spending/1079/payments_over_556,05-Apr-2017,Assistant Chief Executive (Inc SIU),CAPITA,Assistant Chief Executive (Excl SIU),"26,873.87",Agency Staff,1718P01_CR00065,37376
Sandwell Metropolitan Borough Council,http://www.sandwell.gov.uk/info/200202/performance_and_spending/1079/payments_over_557,01-Apr-2017,Assistant Chief Executive (Inc SIU),CAPITA RESOURCING LTD,Assistant Chief Executive (Excl SIU),760.15,Externally Purchased Professional Services ,1718P01_CR00066,56065
Sandwell Metropolitan Borough Council,http://www.sandwell.gov.uk/info/200202/performance_and_spending/1079/payments_over_558,01-Apr-2017,Assistant Chief Executive (Inc SIU),CARITAS RECRUITMENT LTD,Assistant Chief Executive (Excl SIU),"1,219.89",Agency Staff,1718P01_CR00067,86876
Sandwell Metropolitan Borough Council,http://www.sandwell.gov.uk/info/200202/performance_and_spending/1079/payments_over_559,01-Apr-2017,Assistant Chief Executive (Inc SIU),CARITAS RECRUITMENT LTD,Assistant Chief Executive (Excl SIU),"1,219.89",Agency Staff,1718P01_CR00068,86876
Sandwell Metropolitan Borough Council,http://www.sandwell.gov.uk/info/200202/performance_and_spending/1079/payments_over_560,01-Apr-2017,Assistant Chief Executive (Inc SIU),CARITAS RECRUITMENT LTD,Assistant Chief Executive (Excl SIU),"1,219.89",Agency Staff,1718P01_CR00069,86876
Sandwell Metropolitan Borough Council,http://www.sandwell.gov.uk/info/200202/performance_and_spending/1079/payments_over_561,01-Apr-2017,Assistant Chief Executive (Inc SIU),CARITAS RECRUITMENT LTD,Assistant Chief Executive (Excl SIU),"1,219.89",Agency Staff,1718P01_CR00070,86876
Sandwell Metropolitan Borough Council,http://www.sandwell.gov.uk/info/200202/performance_and_spending/1079/payments_over_562,06-Apr-2017,Assistant Chief Executive (Inc SIU),CARITAS RECRUITMENT LTD,Assistant Chief Executive (Excl SIU),"1,254.47",Agency Staff,1718P01_CR00071,86876
Sandwell Metropolitan Borough Council,http://www.sandwell.gov.uk/info/200202/performance_and_spending/1079/payments_over_563,12-Apr-2017,Assistant Chief Executive (Inc SIU),CARITAS RECRUITMENT LTD,Assistant Chief Executive (Excl SIU),"1,219.89",Agency Staff,1718P01_CR00072,86876
Sandwell Metropolitan Borough Council,http://www.sandwell.gov.uk/info/200202/performance_and_spending/1079/payments_over_564,12-Apr-2017,Assistant Chief Executive (Inc SIU),CARITAS RECRUITMENT LTD,Assistant Chief Executive (Excl SIU),"1,219.89",Agency Staff,1718P01_CR00073,86876
Sandwell Metropolitan Borough Council,http://www.sandwell.gov.uk/info/200202/performance_and_spending/1079/payments_over_565,12-Apr-2017,Assistant Chief Executive (Inc SIU),CARITAS RECRUITMENT LTD,Assistant Chief Executive (Excl SIU),"1,219.89",Agency Staff,1718P01_CR00074,86876
Sandwell Metropolitan Borough Council,http://www.sandwell.gov.uk/info/200202/performance_and_spending/1079/payments_over_566,07-Apr-2017,Assistant Chief Executive (Inc SIU),CARITAS RECRUITMENT LTD,Assistant Chief Executive (Excl SIU),"1,219.89",Agency Staff,1718P01_CR00075,86876
Sandwell Metropolitan Borough Council,http://www.sandwell.gov.uk/info/200202/performance_and_spending/1079/payments_over_567,07-Apr-2017,Assistant Chief Executive (Inc SIU),CARITAS RECRUITMENT LTD,Assistant Chief Executive (Excl SIU),"1,219.89",Agency Staff,1718P01_CR00076,86876
Sandwell Metropolitan Borough Council,http://www.sandwell.gov.uk/info/200202/performance_and_spending/1079/payments_over_568,07-Apr-2017,Assistant Chief Executive (Inc SIU),CARITAS RECRUITMENT LTD,Assistant Chief Executive (Excl SIU),972.62,Agency Staff,1718P01_CR00077,86876
Sandwell Metropolitan Borough Council,http://www.sandwell.gov.uk/info/200202/performance_and_spending/1079/payments_over_569,07-Apr-2017,Assistant Chief Executive (Inc SIU),CARITAS RECRUITMENT LTD,Assistant Chief Executive (Excl SIU),"1,219.89",Agency Staff,1718P01_CR00078,86876
Sandwell Metropolitan Borough Council,http://www.sandwell.gov.uk/info/200202/performance_and_spending/1079/payments_over_570,07-Apr-2017,Assistant Chief Executive (Inc SIU),CARITAS RECRUITMENT LTD,Assistant Chief Executive (Excl SIU),"1,219.89",Agency Staff,1718P01_CR00079,86876
Sandwell Metropolitan Borough Council,http://www.sandwell.gov.uk/info/200202/performance_and_spending/1079/payments_over_571,01-Apr-2017,Assistant Chief Executive (Inc SIU),CARITAS RECRUITMENT LTD,Assistant Chief Executive (Excl SIU),"1,219.89",Agency Staff,1718P01_CR00080,86876
Sandwell Metropolitan Borough Council,http://www.sandwell.gov.uk/info/200202/performance_and_spending/1079/payments_over_572,01-Apr-2017,Assistant Chief Executive (Inc SIU),CARITAS RECRUITMENT LTD,Assistant Chief Executive (Excl SIU),"1,219.89",Agency Staff,1718P01_CR00081,86876
Sandwell Metropolitan Borough Council,http://www.sandwell.gov.uk/info/200202/performance_and_spending/1079/payments_over_573,01-Apr-2017,Assistant Chief Executive (Inc SIU),CARITAS RECRUITMENT LTD,Assistant Chief Executive (Excl SIU),"1,219.89",Agency Staff,1718P01_CR00082,86876
Sandwell Metropolitan Borough Council,http://www.sandwell.gov.uk/info/200202/performance_and_spending/1079/payments_over_574,01-Apr-2017,Assistant Chief Executive (Inc SIU),CARITAS RECRUITMENT LTD,Assistant Chief Executive (Excl SIU),"1,170.51",Agency Staff,1718P01_CR00083,86876
Sandwell Metropolitan Borough Council,http://www.sandwell.gov.uk/info/200202/performance_and_spending/1079/payments_over_575,01-Apr-2017,Assistant Chief Executive (Inc SIU),CARITAS RECRUITMENT LTD,Assistant Chief Executive (Excl SIU),"1,219.89",Agency Staff,1718P01_CR00084,86876
Sandwell Metropolitan Borough Council,http://www.sandwell.gov.uk/info/200202/performance_and_spending/1079/payments_over_576,01-Apr-2017,Assistant Chief Executive (Inc SIU),CARITAS RECRUITMENT LTD,Assistant Chief Executive (Excl SIU),"1,219.89",Agency Staff,1718P01_CR00085,86876
Sandwell Metropolitan Borough Council,http://www.sandwell.gov.uk/info/200202/performance_and_spending/1079/payments_over_577,01-Apr-2017,Assistant Chief Executive (Inc SIU),CHARTER OFFICE EQUIPMENT LTD,Assistant Chief Executive (Excl SIU),526.00,"Printing, Stationery & General Office Expenses",1718P01_CR00086,2266
Sandwell Metropolitan Borough Council,http://www.sandwell.gov.uk/info/200202/performance_and_spending/1079/payments_over_578,01-Apr-2017,Assistant Chief Executive (Inc SIU),CIPFA BUSINESS LIMITED,Assistant Chief Executive (Excl SIU),"5,140.00",Subscriptions,1718P01_CR00087,01023717
Sandwell Metropolitan Borough Council,http://www.sandwell.gov.uk/info/200202/performance_and_spending/1079/payments_over_579,01-Apr-2017,Assistant Chief Executive (Inc SIU),CIPFA BUSINESS LIMITED,Assistant Chief Executive (Excl SIU),750.00,Consultancy,1718P01_CR00088,01023717
Sandwell Metropolitan Borough Council,http://www.sandwell.gov.uk/info/200202/performance_and_spending/1079/payments_over_580,01-Apr-2017,Assistant Chief Executive (Inc SIU),COMPUTACENTER (UK) LTD,Assistant Chief Executive (Excl SIU),"1,937.18",ICT ,1718P01_CR00089,19758
Sandwell Metropolitan Borough Council,http://www.sandwell.gov.uk/info/200202/performance_and_spending/1079/payments_over_581,01-Apr-2017,Assistant Chief Executive (Inc SIU),COOKE RUDLING LIMITED,Assistant Chief Executive (Excl SIU),"2,287.50",Externally Purchased Professional Services ,1718P01_CR00090,01577073
Sandwell Metropolitan Borough Council,http://www.sandwell.gov.uk/info/200202/performance_and_spending/1079/payments_over_2595,01-Apr-2017,Assistant Chief Executive (Inc SIU),CROWE CLARK WHITEHILL LLP,Strategic Investment Unit,"1,000.00",Externally Purchased Professional Services ,1718P01_CR00091,113958
Sandwell Metropolitan Borough Council,http://www.sandwell.gov.uk/info/200202/performance_and_spending/1079/payments_over_2596,01-Apr-2017,Assistant Chief Executive (Inc SIU),CROWE CLARK WHITEHILL LLP,Strategic Investment Unit,"4,750.00",Externally Purchased Professional Services ,1718P01_CR00092,113958
Sandwell Metropolitan Borough Council,http://www.sandwell.gov.uk/info/200202/performance_and_spending/1079/payments_over_2597,01-Apr-2017,Assistant Chief Executive (Inc SIU),CROWE CLARK WHITEHILL LLP,Strategic Investment Unit,"4,750.00",Externally Purchased Professional Services ,1718P01_CR00093,113958
Sandwell Metropolitan Borough Council,http://www.sandwell.gov.uk/info/200202/performance_and_spending/1079/payments_over_2598,01-Apr-2017,Assistant Chief Executive (Inc SIU),CROWE CLARK WHITEHILL LLP,Strategic Investment Unit,"4,750.00",Externally Purchased Professional Services ,1718P01_CR00094,113958
Sandwell Metropolitan Borough Council,http://www.sandwell.gov.uk/info/200202/performance_and_spending/1079/payments_over_2599,01-Apr-2017,Assistant Chief Executive (Inc SIU),CROWE CLARK WHITEHILL LLP,Strategic Investment Unit,"4,750.00",Externally Purchased Professional Services ,1718P01_CR00095,113958
Sandwell Metropolitan Borough Council,http://www.sandwell.gov.uk/info/200202/performance_and_spending/1079/payments_over_582,01-Apr-2017,Assistant Chief Executive (Inc SIU),CSA WAVERLEY LTD,Assistant Chief Executive (Excl SIU),"1,700.00",Externally Purchased Professional Services ,1718P01_CR00096,116579
Sandwell Metropolitan Borough Council,http://www.sandwell.gov.uk/info/200202/performance_and_spending/1079/payments_over_583,04-Apr-2017,Assistant Chief Executive (Inc SIU),DATA POWER LTD,Assistant Chief Executive (Excl SIU),"4,386.80",ICT ,1718P01_CR00097,78780
Sandwell Metropolitan Borough Council,http://www.sandwell.gov.uk/info/200202/performance_and_spending/1079/payments_over_584,01-Apr-2017,Assistant Chief Executive (Inc SIU),DISCLOSURE AND BARRING SERVICE,Assistant Chief Executive (Excl SIU),"2,728.00",Externally Purchased Professional Services ,1718P01_CR00098,01717559
Sandwell Metropolitan Borough Council,http://www.sandwell.gov.uk/info/200202/performance_and_spending/1079/payments_over_585,05-Apr-2017,Assistant Chief Executive (Inc SIU),DR N K SRIVASTAVA,Assistant Chief Executive (Excl SIU),"6,270.00",Externally Purchased Professional Services ,1718P01_CR00099,13000938
Sandwell Metropolitan Borough Council,http://www.sandwell.gov.uk/info/200202/performance_and_spending/1079/payments_over_586,01-Apr-2017,Assistant Chief Executive (Inc SIU),E.ON ENERGY SOLUTIONS LIMITED,Assistant Chief Executive (Excl SIU),"2,334.41",Gas,1718P01_CR00100,104959
Sandwell Metropolitan Borough Council,http://www.sandwell.gov.uk/info/200202/performance_and_spending/1079/payments_over_587,01-Apr-2017,Assistant Chief Executive (Inc SIU),EDEN BROWN LIMITED,Assistant Chief Executive (Excl SIU),"1,287.65",Agency Staff,1718P01_CR00101,47241
Sandwell Metropolitan Borough Council,http://www.sandwell.gov.uk/info/200202/performance_and_spending/1079/payments_over_588,06-Apr-2017,Assistant Chief Executive (Inc SIU),EDEN BROWN LIMITED,Assistant Chief Executive (Excl SIU),650.09,Agency Staff,1718P01_CR00102,47241
Sandwell Metropolitan Borough Council,http://www.sandwell.gov.uk/info/200202/performance_and_spending/1079/payments_over_589,06-Apr-2017,Assistant Chief Executive (Inc SIU),EDEN BROWN LIMITED,Assistant Chief Executive (Excl SIU),"1,256.15",Agency Staff,1718P01_CR00103,47241
Sandwell Metropolitan Borough Council,http://www.sandwell.gov.uk/info/200202/performance_and_spending/1079/payments_over_590,06-Apr-2017,Assistant Chief Executive (Inc SIU),EDEN BROWN LIMITED,Assistant Chief Executive (Excl SIU),"1,256.15",Agency Staff,1718P01_CR00104,47241
Sandwell Metropolitan Borough Council,http://www.sandwell.gov.uk/info/200202/performance_and_spending/1079/payments_over_591,06-Apr-2017,Assistant Chief Executive (Inc SIU),EDEN BROWN LIMITED,Assistant Chief Executive (Excl SIU),984.55,Agency Staff,1718P01_CR00105,47241
Sandwell Metropolitan Borough Council,http://www.sandwell.gov.uk/info/200202/performance_and_spending/1079/payments_over_592,06-Apr-2017,Assistant Chief Executive (Inc SIU),EDEN BROWN LIMITED,Assistant Chief Executive (Excl SIU),960.15,Agency Staff,1718P01_CR00106,47241
Sandwell Metropolitan Borough Council,http://www.sandwell.gov.uk/info/200202/performance_and_spending/1079/payments_over_593,12-Apr-2017,Assistant Chief Executive (Inc SIU),EDEN BROWN LIMITED,Assistant Chief Executive (Excl SIU),"1,607.65",Agency Staff,1718P01_CR00107,47241
Sandwell Metropolitan Borough Council,http://www.sandwell.gov.uk/info/200202/performance_and_spending/1079/payments_over_594,12-Apr-2017,Assistant Chief Executive (Inc SIU),EDEN BROWN LIMITED,Assistant Chief Executive (Excl SIU),"1,607.65",Agency Staff,1718P01_CR00108,47241
Sandwell Metropolitan Borough Council,http://www.sandwell.gov.uk/info/200202/performance_and_spending/1079/payments_over_595,12-Apr-2017,Assistant Chief Executive (Inc SIU),EDEN BROWN LIMITED,Assistant Chief Executive (Excl SIU),"1,256.15",Agency Staff,1718P01_CR00109,47241
Sandwell Metropolitan Borough Council,http://www.sandwell.gov.uk/info/200202/performance_and_spending/1079/payments_over_596,12-Apr-2017,Assistant Chief Executive (Inc SIU),EDEN BROWN LIMITED,Assistant Chief Executive (Excl SIU),"1,256.15",Agency Staff,1718P01_CR00110,47241
Sandwell Metropolitan Borough Council,http://www.sandwell.gov.uk/info/200202/performance_and_spending/1079/payments_over_597,12-Apr-2017,Assistant Chief Executive (Inc SIU),EDEN BROWN LIMITED,Assistant Chief Executive (Excl SIU),"1,298.30",Agency Staff,1718P01_CR00111,47241
Sandwell Metropolitan Borough Council,http://www.sandwell.gov.uk/info/200202/performance_and_spending/1079/payments_over_598,07-Apr-2017,Assistant Chief Executive (Inc SIU),EDEN BROWN LIMITED,Assistant Chief Executive (Excl SIU),"1,294.85",Agency Staff,1718P01_CR00112,47241
Sandwell Metropolitan Borough Council,http://www.sandwell.gov.uk/info/200202/performance_and_spending/1079/payments_over_599,06-Apr-2017,Assistant Chief Executive (Inc SIU),EDEN BROWN LIMITED,Assistant Chief Executive (Excl SIU),"1,018.50",Agency Staff,1718P01_CR00113,47241
Sandwell Metropolitan Borough Council,http://www.sandwell.gov.uk/info/200202/performance_and_spending/1079/payments_over_600,17-Apr-2017,Assistant Chief Executive (Inc SIU),EE LIMITED,Assistant Chief Executive (Excl SIU),779.85,ICT ,1718P01_CR00114,117168
Sandwell Metropolitan Borough Council,http://www.sandwell.gov.uk/info/200202/performance_and_spending/1079/payments_over_601,01-Apr-2017,Assistant Chief Executive (Inc SIU),ENTRUST SOCIAL CARE LTD,Assistant Chief Executive (Excl SIU),"3,142.05",Agency Staff,1718P01_CR00115,95900
Sandwell Metropolitan Borough Council,http://www.sandwell.gov.uk/info/200202/performance_and_spending/1079/payments_over_602,09-Apr-2017,Assistant Chief Executive (Inc SIU),ENTRUST SOCIAL CARE LTD,Assistant Chief Executive (Excl SIU),"3,756.60",Agency Staff,1718P01_CR00116,95900
Sandwell Metropolitan Borough Council,http://www.sandwell.gov.uk/info/200202/performance_and_spending/1079/payments_over_603,01-Apr-2017,Assistant Chief Executive (Inc SIU),ENTRUST SOCIAL CARE LTD,Assistant Chief Executive (Excl SIU),"3,965.42",Agency Staff,1718P01_CR00117,95900
Sandwell Metropolitan Borough Council,http://www.sandwell.gov.uk/info/200202/performance_and_spending/1079/payments_over_604,01-Apr-2017,Assistant Chief Executive (Inc SIU),EXTRA PERSONNEL LTD                                         01,Assistant Chief Executive (Excl SIU),756.38,Agency Staff,1718P01_CR00118,01344184
Sandwell Metropolitan Borough Council,http://www.sandwell.gov.uk/info/200202/performance_and_spending/1079/payments_over_605,01-Apr-2017,Assistant Chief Executive (Inc SIU),EXTRA PERSONNEL LTD                                         01,Assistant Chief Executive (Excl SIU),"1,326.87",Agency Staff,1718P01_CR00119,01344184
Sandwell Metropolitan Borough Council,http://www.sandwell.gov.uk/info/200202/performance_and_spending/1079/payments_over_606,01-Apr-2017,Assistant Chief Executive (Inc SIU),FACULTATIEVE TECHNOLOGIES LTD,Assistant Chief Executive (Excl SIU),"2,363.75",Building Maintenance & Improvements,1718P01_CR00120,89268
Sandwell Metropolitan Borough Council,http://www.sandwell.gov.uk/info/200202/performance_and_spending/1079/payments_over_607,07-Apr-2017,Assistant Chief Executive (Inc SIU),FACULTATIEVE TECHNOLOGIES LTD,Assistant Chief Executive (Excl SIU),"1,330.02",Building Maintenance & Improvements,1718P01_CR00121,89268
Sandwell Metropolitan Borough Council,http://www.sandwell.gov.uk/info/200202/performance_and_spending/1079/payments_over_608,01-Apr-2017,Assistant Chief Executive (Inc SIU),FIRST PERSONNEL GROUP LIMITED,Assistant Chief Executive (Excl SIU),"2,595.25",Agency Staff,1718P01_CR00122,34153
Sandwell Metropolitan Borough Council,http://www.sandwell.gov.uk/info/200202/performance_and_spending/1079/payments_over_609,03-Apr-2017,Assistant Chief Executive (Inc SIU),FRANKLIN COVEY EUROPE LTD,Assistant Chief Executive (Excl SIU),"16,500.00",Externally Purchased Professional Services ,1718P01_CR00123,78905
Sandwell Metropolitan Borough Council,http://www.sandwell.gov.uk/info/200202/performance_and_spending/1079/payments_over_610,02-Apr-2017,Assistant Chief Executive (Inc SIU),G4S CASH SOLUTIONS (UK) LTD,Assistant Chief Executive (Excl SIU),"2,169.41",Cash Collections,1718P01_CR00124,01606348
Sandwell Metropolitan Borough Council,http://www.sandwell.gov.uk/info/200202/performance_and_spending/1079/payments_over_611,01-Apr-2017,Assistant Chief Executive (Inc SIU),GAFFEY TECHNICAL SERVICES LIMITED,Assistant Chief Executive (Excl SIU),972.95,Building Maintenance & Improvements,1718P01_CR00125,01065562
Sandwell Metropolitan Borough Council,http://www.sandwell.gov.uk/info/200202/performance_and_spending/1079/payments_over_612,01-Apr-2017,Assistant Chief Executive (Inc SIU),GREENS SOLICITORS,Assistant Chief Executive (Excl SIU),704.50,Externally Purchased Professional Services ,1718P01_CR00126,116810
Sandwell Metropolitan Borough Council,http://www.sandwell.gov.uk/info/200202/performance_and_spending/1079/payments_over_613,03-Apr-2017,Assistant Chief Executive (Inc SIU),HAYS SPECIALIST RECRUITMENT LTD,Assistant Chief Executive (Excl SIU),520.00,Agency Staff,1718P01_CR00127,80349
Sandwell Metropolitan Borough Council,http://www.sandwell.gov.uk/info/200202/performance_and_spending/1079/payments_over_614,04-Apr-2017,Assistant Chief Executive (Inc SIU),HAYS SPECIALIST RECRUITMENT LTD,Assistant Chief Executive (Excl SIU),520.00,Agency Staff,1718P01_CR00128,80349
Sandwell Metropolitan Borough Council,http://www.sandwell.gov.uk/info/200202/performance_and_spending/1079/payments_over_615,03-Apr-2017,Assistant Chief Executive (Inc SIU),HAYS SPECIALIST RECRUITMENT LTD,Assistant Chief Executive (Excl SIU),650.00,Agency Staff,1718P01_CR00129,80349
Sandwell Metropolitan Borough Council,http://www.sandwell.gov.uk/info/200202/performance_and_spending/1079/payments_over_616,12-Apr-2017,Assistant Chief Executive (Inc SIU),HAYS SPECIALIST RECRUITMENT LTD,Assistant Chief Executive (Excl SIU),854.45,Agency Staff,1718P01_CR00130,80349
Sandwell Metropolitan Borough Council,http://www.sandwell.gov.uk/info/200202/performance_and_spending/1079/payments_over_617,11-Apr-2017,Assistant Chief Executive (Inc SIU),HAYS SPECIALIST RECRUITMENT LTD,Assistant Chief Executive (Excl SIU),"2,104.56",Agency Staff,1718P01_CR00131,80349
Sandwell Metropolitan Borough Council,http://www.sandwell.gov.uk/info/200202/performance_and_spending/1079/payments_over_618,06-Apr-2017,Assistant Chief Executive (Inc SIU),HAYS SPECIALIST RECRUITMENT LTD,Assistant Chief Executive (Excl SIU),"2,287.71",Agency Staff,1718P01_CR00132,80349
Sandwell Metropolitan Borough Council,http://www.sandwell.gov.uk/info/200202/performance_and_spending/1079/payments_over_619,10-Apr-2017,Assistant Chief Executive (Inc SIU),HAYS SPECIALIST RECRUITMENT LTD,Assistant Chief Executive (Excl SIU),650.00,Agency Staff,1718P01_CR00133,80349
Sandwell Metropolitan Borough Council,http://www.sandwell.gov.uk/info/200202/performance_and_spending/1079/payments_over_620,06-Apr-2017,Assistant Chief Executive (Inc SIU),HAYS SPECIALIST RECRUITMENT LTD,Assistant Chief Executive (Excl SIU),867.95,Agency Staff,1718P01_CR00134,80349
Sandwell Metropolitan Borough Council,http://www.sandwell.gov.uk/info/200202/performance_and_spending/1079/payments_over_621,06-Apr-2017,Assistant Chief Executive (Inc SIU),HAYS SPECIALIST RECRUITMENT LTD,Assistant Chief Executive (Excl SIU),"1,250.00",Agency Staff,1718P01_CR00135,80349
Sandwell Metropolitan Borough Council,http://www.sandwell.gov.uk/info/200202/performance_and_spending/1079/payments_over_622,06-Apr-2017,Assistant Chief Executive (Inc SIU),HAYS SPECIALIST RECRUITMENT LTD,Assistant Chief Executive (Excl SIU),"2,000.00",Agency Staff,1718P01_CR00136,80349
Sandwell Metropolitan Borough Council,http://www.sandwell.gov.uk/info/200202/performance_and_spending/1079/payments_over_623,06-Apr-2017,Assistant Chief Executive (Inc SIU),HAYS SPECIALIST RECRUITMENT LTD,Assistant Chief Executive (Excl SIU),"1,125.00",Agency Staff,1718P01_CR00137,80349
Sandwell Metropolitan Borough Council,http://www.sandwell.gov.uk/info/200202/performance_and_spending/1079/payments_over_624,06-Apr-2017,Assistant Chief Executive (Inc SIU),HAYS SPECIALIST RECRUITMENT LTD,Assistant Chief Executive (Excl SIU),"1,250.00",Agency Staff,1718P01_CR00138,80349
Sandwell Metropolitan Borough Council,http://www.sandwell.gov.uk/info/200202/performance_and_spending/1079/payments_over_625,06-Apr-2017,Assistant Chief Executive (Inc SIU),HAYS SPECIALIST RECRUITMENT LTD,Assistant Chief Executive (Excl SIU),"1,850.00",Agency Staff,1718P01_CR00139,80349
Sandwell Metropolitan Borough Council,http://www.sandwell.gov.uk/info/200202/performance_and_spending/1079/payments_over_626,10-Apr-2017,Assistant Chief Executive (Inc SIU),HAYS SPECIALIST RECRUITMENT LTD,Assistant Chief Executive (Excl SIU),650.00,Agency Staff,1718P01_CR00140,80349
Sandwell Metropolitan Borough Council,http://www.sandwell.gov.uk/info/200202/performance_and_spending/1079/payments_over_627,06-Apr-2017,Assistant Chief Executive (Inc SIU),HAYS SPECIALIST RECRUITMENT LTD,Assistant Chief Executive (Excl SIU),"2,050.00",Agency Staff,1718P01_CR00141,80349
Sandwell Metropolitan Borough Council,http://www.sandwell.gov.uk/info/200202/performance_and_spending/1079/payments_over_628,01-Apr-2017,Assistant Chief Executive (Inc SIU),HCL SOCIAL CARE LIMITED,Assistant Chief Executive (Excl SIU),"1,332.00",Agency Staff,1718P01_CR00142,49877
Sandwell Metropolitan Borough Council,http://www.sandwell.gov.uk/info/200202/performance_and_spending/1079/payments_over_629,04-Apr-2017,Assistant Chief Executive (Inc SIU),HCL SOCIAL CARE LIMITED,Assistant Chief Executive (Excl SIU),"1,332.00",Agency Staff,1718P01_CR00143,49877
Sandwell Metropolitan Borough Council,http://www.sandwell.gov.uk/info/200202/performance_and_spending/1079/payments_over_630,05-Apr-2017,Assistant Chief Executive (Inc SIU),HCL SOCIAL CARE LIMITED,Assistant Chief Executive (Excl SIU),"1,725.00",Agency Staff,1718P01_CR00144,49877
Sandwell Metropolitan Borough Council,http://www.sandwell.gov.uk/info/200202/performance_and_spending/1079/payments_over_631,05-Apr-2017,Assistant Chief Executive (Inc SIU),HCL SOCIAL CARE LIMITED,Assistant Chief Executive (Excl SIU),"1,044.00",Agency Staff,1718P01_CR00145,49877
Sandwell Metropolitan Borough Council,http://www.sandwell.gov.uk/info/200202/performance_and_spending/1079/payments_over_632,04-Apr-2017,Assistant Chief Executive (Inc SIU),HCL SOCIAL CARE LIMITED,Assistant Chief Executive (Excl SIU),"1,341.00",Agency Staff,1718P01_CR00146,49877
Sandwell Metropolitan Borough Council,http://www.sandwell.gov.uk/info/200202/performance_and_spending/1079/payments_over_633,12-Apr-2017,Assistant Chief Executive (Inc SIU),HCL SOCIAL CARE LIMITED,Assistant Chief Executive (Excl SIU),"1,258.00",Agency Staff,1718P01_CR00147,49877
Sandwell Metropolitan Borough Council,http://www.sandwell.gov.uk/info/200202/performance_and_spending/1079/payments_over_634,11-Apr-2017,Assistant Chief Executive (Inc SIU),HCL SOCIAL CARE LIMITED,Assistant Chief Executive (Excl SIU),"1,152.00",Agency Staff,1718P01_CR00148,49877
Sandwell Metropolitan Borough Council,http://www.sandwell.gov.uk/info/200202/performance_and_spending/1079/payments_over_635,12-Apr-2017,Assistant Chief Executive (Inc SIU),HCL SOCIAL CARE LIMITED,Assistant Chief Executive (Excl SIU),"1,258.00",Agency Staff,1718P01_CR00149,49877
Sandwell Metropolitan Borough Council,http://www.sandwell.gov.uk/info/200202/performance_and_spending/1079/payments_over_636,11-Apr-2017,Assistant Chief Executive (Inc SIU),HCL SOCIAL CARE LIMITED,Assistant Chief Executive (Excl SIU),"1,258.00",Agency Staff,1718P01_CR00150,49877
Sandwell Metropolitan Borough Council,http://www.sandwell.gov.uk/info/200202/performance_and_spending/1079/payments_over_637,11-Apr-2017,Assistant Chief Executive (Inc SIU),HCL SOCIAL CARE LIMITED,Assistant Chief Executive (Excl SIU),"1,332.00",Agency Staff,1718P01_CR00151,49877
Sandwell Metropolitan Borough Council,http://www.sandwell.gov.uk/info/200202/performance_and_spending/1079/payments_over_638,12-Apr-2017,Assistant Chief Executive (Inc SIU),HCL SOCIAL CARE LIMITED,Assistant Chief Executive (Excl SIU),"1,073.00",Agency Staff,1718P01_CR00152,49877
Sandwell Metropolitan Borough Council,http://www.sandwell.gov.uk/info/200202/performance_and_spending/1079/payments_over_639,10-Apr-2017,Assistant Chief Executive (Inc SIU),HCL SOCIAL CARE LIMITED,Assistant Chief Executive (Excl SIU),"1,609.50",Agency Staff,1718P01_CR00153,49877
Sandwell Metropolitan Borough Council,http://www.sandwell.gov.uk/info/200202/performance_and_spending/1079/payments_over_640,10-Apr-2017,Assistant Chief Executive (Inc SIU),HCL SOCIAL CARE LIMITED,Assistant Chief Executive (Excl SIU),"1,036.00",Agency Staff,1718P01_CR00154,49877
Sandwell Metropolitan Borough Council,http://www.sandwell.gov.uk/info/200202/performance_and_spending/1079/payments_over_641,10-Apr-2017,Assistant Chief Executive (Inc SIU),HCL SOCIAL CARE LIMITED,Assistant Chief Executive (Excl SIU),587.25,Agency Staff,1718P01_CR00155,49877
Sandwell Metropolitan Borough Council,http://www.sandwell.gov.uk/info/200202/performance_and_spending/1079/payments_over_642,10-Apr-2017,Assistant Chief Executive (Inc SIU),HCL SOCIAL CARE LIMITED,Assistant Chief Executive (Excl SIU),"1,258.00",Agency Staff,1718P01_CR00156,49877
Sandwell Metropolitan Borough Council,http://www.sandwell.gov.uk/info/200202/performance_and_spending/1079/payments_over_643,10-Apr-2017,Assistant Chief Executive (Inc SIU),HCL SOCIAL CARE LIMITED,Assistant Chief Executive (Excl SIU),986.00,Agency Staff,1718P01_CR00157,49877
Sandwell Metropolitan Borough Council,http://www.sandwell.gov.uk/info/200202/performance_and_spending/1079/payments_over_644,10-Apr-2017,Assistant Chief Executive (Inc SIU),HCL SOCIAL CARE LIMITED,Assistant Chief Executive (Excl SIU),"1,702.00",Agency Staff,1718P01_CR00158,49877
Sandwell Metropolitan Borough Council,http://www.sandwell.gov.uk/info/200202/performance_and_spending/1079/payments_over_645,10-Apr-2017,Assistant Chief Executive (Inc SIU),HCL SOCIAL CARE LIMITED,Assistant Chief Executive (Excl SIU),"1,350.50",Agency Staff,1718P01_CR00159,49877
Sandwell Metropolitan Borough Council,http://www.sandwell.gov.uk/info/200202/performance_and_spending/1079/payments_over_646,10-Apr-2017,Assistant Chief Executive (Inc SIU),HCL SOCIAL CARE LIMITED,Assistant Chief Executive (Excl SIU),"1,350.50",Agency Staff,1718P01_CR00160,49877
Sandwell Metropolitan Borough Council,http://www.sandwell.gov.uk/info/200202/performance_and_spending/1079/payments_over_647,10-Apr-2017,Assistant Chief Executive (Inc SIU),HCL SOCIAL CARE LIMITED,Assistant Chief Executive (Excl SIU),"1,261.50",Agency Staff,1718P01_CR00161,49877
Sandwell Metropolitan Borough Council,http://www.sandwell.gov.uk/info/200202/performance_and_spending/1079/payments_over_648,10-Apr-2017,Assistant Chief Executive (Inc SIU),HCL SOCIAL CARE LIMITED,Assistant Chief Executive (Excl SIU),"1,258.00",Agency Staff,1718P01_CR00162,49877
Sandwell Metropolitan Borough Council,http://www.sandwell.gov.uk/info/200202/performance_and_spending/1079/payments_over_649,04-Apr-2017,Assistant Chief Executive (Inc SIU),HCL SOCIAL CARE LIMITED,Assistant Chief Executive (Excl SIU),"1,609.50",Agency Staff,1718P01_CR00163,49877
Sandwell Metropolitan Borough Council,http://www.sandwell.gov.uk/info/200202/performance_and_spending/1079/payments_over_650,01-Apr-2017,Assistant Chief Executive (Inc SIU),HEWLETT PACKARD LTD,Assistant Chief Executive (Excl SIU),"39,567.68",Externally Purchased Professional Services ,1718P01_CR00164,01715253
Sandwell Metropolitan Borough Council,http://www.sandwell.gov.uk/info/200202/performance_and_spending/1079/payments_over_651,01-Apr-2017,Assistant Chief Executive (Inc SIU),HILL INTERIOR CONTRACTS LTD,Assistant Chief Executive (Excl SIU),"3,447.00",Building Maintenance & Improvements,1718P01_CR00165,17158
Sandwell Metropolitan Borough Council,http://www.sandwell.gov.uk/info/200202/performance_and_spending/1079/payments_over_652,07-Apr-2017,Assistant Chief Executive (Inc SIU),HILL INTERIOR CONTRACTS LTD,Assistant Chief Executive (Excl SIU),"3,914.00",Building Maintenance & Improvements,1718P01_CR00166,17158
Sandwell Metropolitan Borough Council,http://www.sandwell.gov.uk/info/200202/performance_and_spending/1079/payments_over_653,07-Apr-2017,Assistant Chief Executive (Inc SIU),HILL INTERIOR CONTRACTS LTD,Assistant Chief Executive (Excl SIU),814.00,Building Maintenance & Improvements,1718P01_CR00167,17158
Sandwell Metropolitan Borough Council,http://www.sandwell.gov.uk/info/200202/performance_and_spending/1079/payments_over_654,04-Apr-2017,Assistant Chief Executive (Inc SIU),HM LAND REGISTRY,Assistant Chief Executive (Excl SIU),"2,294.00",Externally Purchased Professional Services ,1718P01_CR00168,08298703
Sandwell Metropolitan Borough Council,http://www.sandwell.gov.uk/info/200202/performance_and_spending/1079/payments_over_655,26-Apr-2017,Assistant Chief Executive (Inc SIU),HMCTS,Assistant Chief Executive (Excl SIU),"5,034.00",Other Agency Payments,1718P01_CR00169,38974
Sandwell Metropolitan Borough Council,http://www.sandwell.gov.uk/info/200202/performance_and_spending/1079/payments_over_656,12-Apr-2017,Assistant Chief Executive (Inc SIU),HOME FARM NURSERIES (PINVIN) LIMITED,Assistant Chief Executive (Excl SIU),"15,058.00",Equipment & Furniture ,1718P01_CR00170,77003445
Sandwell Metropolitan Borough Council,http://www.sandwell.gov.uk/info/200202/performance_and_spending/1079/payments_over_657,01-Apr-2017,Assistant Chief Executive (Inc SIU),IGENE LONDON LIMITED,Assistant Chief Executive (Excl SIU),600.00,Bereavement Expenses,1718P01_CR00171,120788
Sandwell Metropolitan Borough Council,http://www.sandwell.gov.uk/info/200202/performance_and_spending/1079/payments_over_658,01-Apr-2017,Assistant Chief Executive (Inc SIU),IGENE LONDON LIMITED,Assistant Chief Executive (Excl SIU),600.00,Bereavement Expenses,1718P01_CR00172,120788
Sandwell Metropolitan Borough Council,http://www.sandwell.gov.uk/info/200202/performance_and_spending/1079/payments_over_659,19-Apr-2017,Assistant Chief Executive (Inc SIU),IGENE LONDON LIMITED,Assistant Chief Executive (Excl SIU),900.00,Bereavement Expenses,1718P01_CR00173,120788
Sandwell Metropolitan Borough Council,http://www.sandwell.gov.uk/info/200202/performance_and_spending/1079/payments_over_660,01-Apr-2017,Assistant Chief Executive (Inc SIU),INDUSTRIAL REFRIGERATION SERVICES LIMITED,Assistant Chief Executive (Excl SIU),585.00,Building Maintenance & Improvements,1718P01_CR00174,120548
Sandwell Metropolitan Borough Council,http://www.sandwell.gov.uk/info/200202/performance_and_spending/1079/payments_over_661,01-Apr-2017,Assistant Chief Executive (Inc SIU),INSIGHT ASSESSMENT SERVICES,Assistant Chief Executive (Excl SIU),"1,948.80",Externally Purchased Professional Services ,1718P01_CR00175,119754
Sandwell Metropolitan Borough Council,http://www.sandwell.gov.uk/info/200202/performance_and_spending/1079/payments_over_662,01-Apr-2017,Assistant Chief Executive (Inc SIU),INSIGHT ASSESSMENT SERVICES,Assistant Chief Executive (Excl SIU),"1,862.00",Externally Purchased Professional Services ,1718P01_CR00176,119754
Sandwell Metropolitan Borough Council,http://www.sandwell.gov.uk/info/200202/performance_and_spending/1079/payments_over_663,01-Apr-2017,Assistant Chief Executive (Inc SIU),INTEC FOR BUSINESS LTD,Assistant Chief Executive (Excl SIU),"8,800.00",Subscriptions,1718P01_CR00177,01635829
Sandwell Metropolitan Borough Council,http://www.sandwell.gov.uk/info/200202/performance_and_spending/1079/payments_over_664,01-Apr-2017,Assistant Chief Executive (Inc SIU),INTERLOCKS SURVEYS LIMITED,Assistant Chief Executive (Excl SIU),"1,594.77",Consultancy,1718P01_CR00178,127881
Sandwell Metropolitan Borough Council,http://www.sandwell.gov.uk/info/200202/performance_and_spending/1079/payments_over_665,01-Apr-2017,Assistant Chief Executive (Inc SIU),IPP EDUCATION LTD t/a CHARTERED INSTITUTE OF PAYROLL PROFESSIONALS (CIPP),Assistant Chief Executive (Excl SIU),"1,949.00",Grant Payments,1718P01_CR00179,01736438
Sandwell Metropolitan Borough Council,http://www.sandwell.gov.uk/info/200202/performance_and_spending/1079/payments_over_666,01-Apr-2017,Assistant Chief Executive (Inc SIU),IPP EDUCATION LTD t/a CHARTERED INSTITUTE OF PAYROLL PROFESSIONALS (CIPP),Assistant Chief Executive (Excl SIU),"3,449.00",Grant Payments,1718P01_CR00180,01736438
Sandwell Metropolitan Borough Council,http://www.sandwell.gov.uk/info/200202/performance_and_spending/1079/payments_over_667,01-Apr-2017,Assistant Chief Executive (Inc SIU),IPP EDUCATION LTD t/a CHARTERED INSTITUTE OF PAYROLL PROFESSIONALS (CIPP),Assistant Chief Executive (Excl SIU),"3,449.00",Grant Payments,1718P01_CR00181,01736438
Sandwell Metropolitan Borough Council,http://www.sandwell.gov.uk/info/200202/performance_and_spending/1079/payments_over_668,01-Apr-2017,Assistant Chief Executive (Inc SIU),IPP EDUCATION LTD t/a CHARTERED INSTITUTE OF PAYROLL PROFESSIONALS (CIPP),Assistant Chief Executive (Excl SIU),"1,949.00",Grant Payments,1718P01_CR00182,01736438
Sandwell Metropolitan Borough Council,http://www.sandwell.gov.uk/info/200202/performance_and_spending/1079/payments_over_669,01-Apr-2017,Assistant Chief Executive (Inc SIU),IPP EDUCATION LTD t/a CHARTERED INSTITUTE OF PAYROLL PROFESSIONALS (CIPP),Assistant Chief Executive (Excl SIU),"3,449.00",Grant Payments,1718P01_CR00183,01736438
Sandwell Metropolitan Borough Council,http://www.sandwell.gov.uk/info/200202/performance_and_spending/1079/payments_over_670,01-Apr-2017,Assistant Chief Executive (Inc SIU),IPP EDUCATION LTD t/a CHARTERED INSTITUTE OF PAYROLL PROFESSIONALS (CIPP),Assistant Chief Executive (Excl SIU),"1,949.00",Grant Payments,1718P01_CR00184,01736438
Sandwell Metropolitan Borough Council,http://www.sandwell.gov.uk/info/200202/performance_and_spending/1079/payments_over_671,01-Apr-2017,Assistant Chief Executive (Inc SIU),IPRS HEALTH,Assistant Chief Executive (Excl SIU),"7,300.00",Externally Purchased Professional Services ,1718P01_CR00185,128415
Sandwell Metropolitan Borough Council,http://www.sandwell.gov.uk/info/200202/performance_and_spending/1079/payments_over_672,01-Apr-2017,Assistant Chief Executive (Inc SIU),IRON MOUNTAIN (UK) LTD,Assistant Chief Executive (Excl SIU),702.32,Externally Purchased Professional Services ,1718P01_CR00186,01719704
Sandwell Metropolitan Borough Council,http://www.sandwell.gov.uk/info/200202/performance_and_spending/1079/payments_over_673,01-Apr-2017,Assistant Chief Executive (Inc SIU),IRON MOUNTAIN (UK) LTD,Assistant Chief Executive (Excl SIU),"1,360.30",ICT ,1718P01_CR00187,01719704
Sandwell Metropolitan Borough Council,http://www.sandwell.gov.uk/info/200202/performance_and_spending/1079/payments_over_674,01-Apr-2017,Assistant Chief Executive (Inc SIU),IRON MOUNTAIN (UK) LTD,Assistant Chief Executive (Excl SIU),631.80,Externally Purchased Professional Services ,1718P01_CR00188,01719704
Sandwell Metropolitan Borough Council,http://www.sandwell.gov.uk/info/200202/performance_and_spending/1079/payments_over_675,01-Apr-2017,Assistant Chief Executive (Inc SIU),JONES LANG LASALLE LIMITED,Assistant Chief Executive (Excl SIU),"2,000.00",Consultancy,1718P01_CR00189,53033
Sandwell Metropolitan Borough Council,http://www.sandwell.gov.uk/info/200202/performance_and_spending/1079/payments_over_676,01-Apr-2017,Assistant Chief Executive (Inc SIU),KANCHEN KUMARI,Assistant Chief Executive (Excl SIU),887.50,"Printing, Stationery & General Office Expenses",1718P01_CR00190,112641
Sandwell Metropolitan Borough Council,http://www.sandwell.gov.uk/info/200202/performance_and_spending/1079/payments_over_677,01-Apr-2017,Assistant Chief Executive (Inc SIU),KANCHEN KUMARI,Assistant Chief Executive (Excl SIU),750.00,"Printing, Stationery & General Office Expenses",1718P01_CR00191,112641
Sandwell Metropolitan Borough Council,http://www.sandwell.gov.uk/info/200202/performance_and_spending/1079/payments_over_678,01-Apr-2017,Assistant Chief Executive (Inc SIU),LIFT & ENGINEERING SERVICES LTD,Assistant Chief Executive (Excl SIU),"1,802.12",Building Maintenance & Improvements,1718P01_CR00192,77003962
Sandwell Metropolitan Borough Council,http://www.sandwell.gov.uk/info/200202/performance_and_spending/1079/payments_over_679,12-Apr-2017,Assistant Chief Executive (Inc SIU),MARSH LIMITED,Assistant Chief Executive (Excl SIU),"87,470.78",Insurance,1718P01_CR00193,01165486
Sandwell Metropolitan Borough Council,http://www.sandwell.gov.uk/info/200202/performance_and_spending/1079/payments_over_680,01-Apr-2017,Assistant Chief Executive (Inc SIU),MCMANUS FLOORING LIMITED,Assistant Chief Executive (Excl SIU),"3,795.00",Building Maintenance & Improvements,1718P01_CR00194,129231
Sandwell Metropolitan Borough Council,http://www.sandwell.gov.uk/info/200202/performance_and_spending/1079/payments_over_681,01-Apr-2017,Assistant Chief Executive (Inc SIU),METAMIX LTD,Assistant Chief Executive (Excl SIU),520.00,Grounds Maintenance & Improvements,1718P01_CR00195,01116814
Sandwell Metropolitan Borough Council,http://www.sandwell.gov.uk/info/200202/performance_and_spending/1079/payments_over_682,01-Apr-2017,Assistant Chief Executive (Inc SIU),METAMIX LTD,Assistant Chief Executive (Excl SIU),520.00,Grounds Maintenance & Improvements,1718P01_CR00196,01116814
Sandwell Metropolitan Borough Council,http://www.sandwell.gov.uk/info/200202/performance_and_spending/1079/payments_over_683,03-Apr-2017,Assistant Chief Executive (Inc SIU),MICHAEL PAGE INTERNATIONAL,Assistant Chief Executive (Excl SIU),764.79,Agency Staff,1718P01_CR00197,01772488
Sandwell Metropolitan Borough Council,http://www.sandwell.gov.uk/info/200202/performance_and_spending/1079/payments_over_684,10-Apr-2017,Assistant Chief Executive (Inc SIU),MICHAEL PAGE INTERNATIONAL,Assistant Chief Executive (Excl SIU),764.79,Agency Staff,1718P01_CR00198,01772488
Sandwell Metropolitan Borough Council,http://www.sandwell.gov.uk/info/200202/performance_and_spending/1079/payments_over_685,01-Apr-2017,Assistant Chief Executive (Inc SIU),MICHAEL WALL CONSULTING LTD,Assistant Chief Executive (Excl SIU),592.00,Consultancy,1718P01_CR00199,01360927
Sandwell Metropolitan Borough Council,http://www.sandwell.gov.uk/info/200202/performance_and_spending/1079/payments_over_686,01-Apr-2017,Assistant Chief Executive (Inc SIU),MICHAEL WALL CONSULTING LTD,Assistant Chief Executive (Excl SIU),"1,440.00",Consultancy,1718P01_CR00200,01360927
Sandwell Metropolitan Borough Council,http://www.sandwell.gov.uk/info/200202/performance_and_spending/1079/payments_over_687,01-Apr-2017,Assistant Chief Executive (Inc SIU),MITIE SECURITY LIMITED,Assistant Chief Executive (Excl SIU),"2,129.80",Security,1718P01_CR00201,119639
Sandwell Metropolitan Borough Council,http://www.sandwell.gov.uk/info/200202/performance_and_spending/1079/payments_over_688,13-Apr-2017,Assistant Chief Executive (Inc SIU),MOTT MACDONALD LTD,Assistant Chief Executive (Excl SIU),"1,042.50",Consultancy,1718P01_CR00202,01722008
Sandwell Metropolitan Borough Council,http://www.sandwell.gov.uk/info/200202/performance_and_spending/1079/payments_over_689,13-Apr-2017,Assistant Chief Executive (Inc SIU),MOTT MACDONALD LTD,Assistant Chief Executive (Excl SIU),"2,307.75",Consultancy,1718P01_CR00203,01722008
Sandwell Metropolitan Borough Council,http://www.sandwell.gov.uk/info/200202/performance_and_spending/1079/payments_over_690,01-Apr-2017,Assistant Chief Executive (Inc SIU),N T A MONITOR LIMITED,Assistant Chief Executive (Excl SIU),"1,700.00",ICT ,1718P01_CR00204,121803
Sandwell Metropolitan Borough Council,http://www.sandwell.gov.uk/info/200202/performance_and_spending/1079/payments_over_691,01-Apr-2017,Assistant Chief Executive (Inc SIU),NORTHGATE PUBLIC SERVICES (UK) LIMITED,Assistant Chief Executive (Excl SIU),500.00,Private Contractors,1718P01_CR00205,56043
Sandwell Metropolitan Borough Council,http://www.sandwell.gov.uk/info/200202/performance_and_spending/1079/payments_over_692,01-Apr-2017,Assistant Chief Executive (Inc SIU),NORTHGATE PUBLIC SERVICES (UK) LIMITED,Assistant Chief Executive (Excl SIU),"5,000.00",Private Contractors,1718P01_CR00206,56043
Sandwell Metropolitan Borough Council,http://www.sandwell.gov.uk/info/200202/performance_and_spending/1079/payments_over_693,01-Apr-2017,Assistant Chief Executive (Inc SIU),OCS GROUP UK LTD,Assistant Chief Executive (Excl SIU),"1,176.48",Hygiene Services,1718P01_CR00207,15631
Sandwell Metropolitan Borough Council,http://www.sandwell.gov.uk/info/200202/performance_and_spending/1079/payments_over_694,01-Apr-2017,Assistant Chief Executive (Inc SIU),OCS GROUP UK LTD,Assistant Chief Executive (Excl SIU),746.76,Externally Purchased Professional Services ,1718P01_CR00208,15631
Sandwell Metropolitan Borough Council,http://www.sandwell.gov.uk/info/200202/performance_and_spending/1079/payments_over_695,01-Apr-2017,Assistant Chief Executive (Inc SIU),ONSITE CENTRAL LIMITED - INFRASTRUCTURE DIVISION,Assistant Chief Executive (Excl SIU),"1,275.00",Building Maintenance & Improvements,1718P01_CR00209,127899
Sandwell Metropolitan Borough Council,http://www.sandwell.gov.uk/info/200202/performance_and_spending/1079/payments_over_696,01-Apr-2017,Assistant Chief Executive (Inc SIU),ORACLE CORPORATION UK LTD,Assistant Chief Executive (Excl SIU),711.91,Externally Purchased Professional Services ,1718P01_CR00210,01539742
Sandwell Metropolitan Borough Council,http://www.sandwell.gov.uk/info/200202/performance_and_spending/1079/payments_over_697,19-Apr-2017,Assistant Chief Executive (Inc SIU),ORANGE PCS LTD,Assistant Chief Executive (Excl SIU),"3,414.01",Telephones,1718P01_CR00211,1052
Sandwell Metropolitan Borough Council,http://www.sandwell.gov.uk/info/200202/performance_and_spending/1079/payments_over_698,15-Apr-2017,Assistant Chief Executive (Inc SIU),ORANGE PCS LTD,Assistant Chief Executive (Excl SIU),"1,697.09",Telephones,1718P01_CR00212,1052
Sandwell Metropolitan Borough Council,http://www.sandwell.gov.uk/info/200202/performance_and_spending/1079/payments_over_699,11-Apr-2017,Assistant Chief Executive (Inc SIU),PARADE CIVIL ENGINEERING LTD,Assistant Chief Executive (Excl SIU),859.67,Operational Services ,1718P01_CR00213,77000801
Sandwell Metropolitan Borough Council,http://www.sandwell.gov.uk/info/200202/performance_and_spending/1079/payments_over_700,05-Apr-2017,Assistant Chief Executive (Inc SIU),PENNA PLC,Assistant Chief Executive (Excl SIU),"6,320.00",Consultancy,1718P01_CR00214,20829
Sandwell Metropolitan Borough Council,http://www.sandwell.gov.uk/info/200202/performance_and_spending/1079/payments_over_701,01-Apr-2017,Assistant Chief Executive (Inc SIU),PERTEMPS GROUP LTD,Assistant Chief Executive (Excl SIU),"1,015.73",Agency Staff,1718P01_CR00215,01026174
Sandwell Metropolitan Borough Council,http://www.sandwell.gov.uk/info/200202/performance_and_spending/1079/payments_over_702,01-Apr-2017,Assistant Chief Executive (Inc SIU),PERTEMPS GROUP LTD,Assistant Chief Executive (Excl SIU),704.92,Agency Staff,1718P01_CR00216,01026174
Sandwell Metropolitan Borough Council,http://www.sandwell.gov.uk/info/200202/performance_and_spending/1079/payments_over_703,11-Apr-2017,Assistant Chief Executive (Inc SIU),PHOENIX SOFTWARE LTD,Assistant Chief Executive (Excl SIU),"97,728.98",Externally Purchased Professional Services ,1718P01_CR00217,01504689
Sandwell Metropolitan Borough Council,http://www.sandwell.gov.uk/info/200202/performance_and_spending/1079/payments_over_704,11-Apr-2017,Assistant Chief Executive (Inc SIU),PHOENIX SOFTWARE LTD,Assistant Chief Executive (Excl SIU),"40,883.70",ICT ,1718P01_CR00218,01504689
Sandwell Metropolitan Borough Council,http://www.sandwell.gov.uk/info/200202/performance_and_spending/1079/payments_over_705,01-Apr-2017,Assistant Chief Executive (Inc SIU),QUANTOR SCANNING LTD,Assistant Chief Executive (Excl SIU),675.96,ICT ,1718P01_CR00219,52657
Sandwell Metropolitan Borough Council,http://www.sandwell.gov.uk/info/200202/performance_and_spending/1079/payments_over_706,27-Apr-2017,Assistant Chief Executive (Inc SIU),REDACTED PERSONAL DATA,Assistant Chief Executive (Excl SIU),500.00,Rents,1718P01_CR00220,REDACTED PERSONAL DATA
Sandwell Metropolitan Borough Council,http://www.sandwell.gov.uk/info/200202/performance_and_spending/1079/payments_over_707,01-Apr-2017,Assistant Chief Executive (Inc SIU),REDACTED PERSONAL DATA,Assistant Chief Executive (Excl SIU),"1,980.00",Externally Purchased Professional Services ,1718P01_CR00221,REDACTED PERSONAL DATA
Sandwell Metropolitan Borough Council,http://www.sandwell.gov.uk/info/200202/performance_and_spending/1079/payments_over_708,01-Apr-2017,Assistant Chief Executive (Inc SIU),REDACTED PERSONAL DATA,Assistant Chief Executive (Excl SIU),525.00,Externally Purchased Professional Services ,1718P01_CR00222,REDACTED PERSONAL DATA
Sandwell Metropolitan Borough Council,http://www.sandwell.gov.uk/info/200202/performance_and_spending/1079/payments_over_709,01-Apr-2017,Assistant Chief Executive (Inc SIU),REDACTED PERSONAL DATA,Assistant Chief Executive (Excl SIU),500.00,Externally Purchased Professional Services ,1718P01_CR00223,REDACTED PERSONAL DATA
Sandwell Metropolitan Borough Council,http://www.sandwell.gov.uk/info/200202/performance_and_spending/1079/payments_over_710,11-Apr-2017,Assistant Chief Executive (Inc SIU),REDACTED PERSONAL DATA,Assistant Chief Executive (Excl SIU),"1,750.00",Externally Purchased Professional Services ,1718P01_CR00224,REDACTED PERSONAL DATA
Sandwell Metropolitan Borough Council,http://www.sandwell.gov.uk/info/200202/performance_and_spending/1079/payments_over_711,18-Apr-2017,Assistant Chief Executive (Inc SIU),REDACTED PERSONAL DATA,Assistant Chief Executive (Excl SIU),787.50,Externally Purchased Professional Services ,1718P01_CR00225,REDACTED PERSONAL DATA
Sandwell Metropolitan Borough Council,http://www.sandwell.gov.uk/info/200202/performance_and_spending/1079/payments_over_712,01-Apr-2017,Assistant Chief Executive (Inc SIU),REDACTED PERSONAL DATA,Assistant Chief Executive (Excl SIU),960.00,Bereavement Expenses,1718P01_CR00226,REDACTED PERSONAL DATA
Sandwell Metropolitan Borough Council,http://www.sandwell.gov.uk/info/200202/performance_and_spending/1079/payments_over_713,01-Apr-2017,Assistant Chief Executive (Inc SIU),REDACTED PERSONAL DATA,Assistant Chief Executive (Excl SIU),684.00,Bereavement Expenses,1718P01_CR00227,REDACTED PERSONAL DATA
Sandwell Metropolitan Borough Council,http://www.sandwell.gov.uk/info/200202/performance_and_spending/1079/payments_over_714,01-Apr-2017,Assistant Chief Executive (Inc SIU),REDACTED PERSONAL DATA,Assistant Chief Executive (Excl SIU),"4,966.50",Bereavement Expenses,1718P01_CR00228,REDACTED PERSONAL DATA
Sandwell Metropolitan Borough Council,http://www.sandwell.gov.uk/info/200202/performance_and_spending/1079/payments_over_715,01-Apr-2017,Assistant Chief Executive (Inc SIU),REDACTED PERSONAL DATA,Assistant Chief Executive (Excl SIU),"1,680.00",Bereavement Expenses,1718P01_CR00229,REDACTED PERSONAL DATA
Sandwell Metropolitan Borough Council,http://www.sandwell.gov.uk/info/200202/performance_and_spending/1079/payments_over_716,01-Apr-2017,Assistant Chief Executive (Inc SIU),REDACTED PERSONAL DATA,Assistant Chief Executive (Excl SIU),"3,200.00",Externally Purchased Professional Services ,1718P01_CR00230,REDACTED PERSONAL DATA
Sandwell Metropolitan Borough Council,http://www.sandwell.gov.uk/info/200202/performance_and_spending/1079/payments_over_717,07-Apr-2017,Assistant Chief Executive (Inc SIU),REDACTED PERSONAL DATA,Assistant Chief Executive (Excl SIU),"1,200.00",Externally Purchased Professional Services ,1718P01_CR00231,REDACTED PERSONAL DATA
Sandwell Metropolitan Borough Council,http://www.sandwell.gov.uk/info/200202/performance_and_spending/1079/payments_over_718,12-Apr-2017,Assistant Chief Executive (Inc SIU),REDACTED PERSONAL DATA,Assistant Chief Executive (Excl SIU),650.00,Externally Purchased Professional Services ,1718P01_CR00232,REDACTED PERSONAL DATA
Sandwell Metropolitan Borough Council,http://www.sandwell.gov.uk/info/200202/performance_and_spending/1079/payments_over_719,01-Apr-2017,Assistant Chief Executive (Inc SIU),REDSKY IT,Assistant Chief Executive (Excl SIU),"7,538.00",ICT ,1718P01_CR00233,01774571
Sandwell Metropolitan Borough Council,http://www.sandwell.gov.uk/info/200202/performance_and_spending/1079/payments_over_720,01-Apr-2017,Assistant Chief Executive (Inc SIU),REGENT PUBLICITY LTD,Assistant Chief Executive (Excl SIU),792.50,Advertising & Publicity,1718P01_CR00234,01740568
Sandwell Metropolitan Borough Council,http://www.sandwell.gov.uk/info/200202/performance_and_spending/1079/payments_over_721,01-Apr-2017,Assistant Chief Executive (Inc SIU),REGENT PUBLICITY LTD,Assistant Chief Executive (Excl SIU),"1,597.60",Advertising & Publicity,1718P01_CR00235,01740568
Sandwell Metropolitan Borough Council,http://www.sandwell.gov.uk/info/200202/performance_and_spending/1079/payments_over_722,01-Apr-2017,Assistant Chief Executive (Inc SIU),ROYAL MAIL GROUP LIMITED,Assistant Chief Executive (Excl SIU),"1,222.40",Postages,1718P01_CR00236,01657985
Sandwell Metropolitan Borough Council,http://www.sandwell.gov.uk/info/200202/performance_and_spending/1079/payments_over_723,01-Apr-2017,Assistant Chief Executive (Inc SIU),ROYAL MAIL GROUP LIMITED,Assistant Chief Executive (Excl SIU),"2,673.09",Postages,1718P01_CR00237,01657985
Sandwell Metropolitan Borough Council,http://www.sandwell.gov.uk/info/200202/performance_and_spending/1079/payments_over_724,19-Apr-2017,Assistant Chief Executive (Inc SIU),ROYAL MAIL GROUP LIMITED,Assistant Chief Executive (Excl SIU),787.00,Postages,1718P01_CR00238,01657985
Sandwell Metropolitan Borough Council,http://www.sandwell.gov.uk/info/200202/performance_and_spending/1079/payments_over_725,20-Apr-2017,Assistant Chief Executive (Inc SIU),ROYAL MAIL GROUP LIMITED,Assistant Chief Executive (Excl SIU),"1,307.45",Postages,1718P01_CR00239,01657985
Sandwell Metropolitan Borough Council,http://www.sandwell.gov.uk/info/200202/performance_and_spending/1079/payments_over_726,10-Apr-2017,Assistant Chief Executive (Inc SIU),ROYAL MAIL GROUP LIMITED,Assistant Chief Executive (Excl SIU),"2,359.95",Postages,1718P01_CR00240,01657985
Sandwell Metropolitan Borough Council,http://www.sandwell.gov.uk/info/200202/performance_and_spending/1079/payments_over_727,01-Apr-2017,Assistant Chief Executive (Inc SIU),S R MEDICAL,Assistant Chief Executive (Excl SIU),"1,974.70",Bereavement Expenses,1718P01_CR00241,126888
Sandwell Metropolitan Borough Council,http://www.sandwell.gov.uk/info/200202/performance_and_spending/1079/payments_over_728,01-Apr-2017,Assistant Chief Executive (Inc SIU),S R MEDICAL,Assistant Chief Executive (Excl SIU),"2,222.80",Bereavement Expenses,1718P01_CR00242,126888
Sandwell Metropolitan Borough Council,http://www.sandwell.gov.uk/info/200202/performance_and_spending/1079/payments_over_729,01-Apr-2017,Assistant Chief Executive (Inc SIU),S.I. SEALY & ASSOCIATES LIMITED,Assistant Chief Executive (Excl SIU),"1,960.00",Consultancy,1718P01_CR00243,129198
Sandwell Metropolitan Borough Council,http://www.sandwell.gov.uk/info/200202/performance_and_spending/1079/payments_over_730,02-Apr-2017,Assistant Chief Executive (Inc SIU),SANCTUARY PERSONNEL LTD,Assistant Chief Executive (Excl SIU),"1,313.13",Agency Staff,1718P01_CR00244,95946
Sandwell Metropolitan Borough Council,http://www.sandwell.gov.uk/info/200202/performance_and_spending/1079/payments_over_731,02-Apr-2017,Assistant Chief Executive (Inc SIU),SANCTUARY PERSONNEL LTD,Assistant Chief Executive (Excl SIU),"1,313.13",Agency Staff,1718P01_CR00245,95946
Sandwell Metropolitan Borough Council,http://www.sandwell.gov.uk/info/200202/performance_and_spending/1079/payments_over_732,02-Apr-2017,Assistant Chief Executive (Inc SIU),SANCTUARY PERSONNEL LTD,Assistant Chief Executive (Excl SIU),"1,313.13",Agency Staff,1718P01_CR00246,95946
Sandwell Metropolitan Borough Council,http://www.sandwell.gov.uk/info/200202/performance_and_spending/1079/payments_over_733,02-Apr-2017,Assistant Chief Executive (Inc SIU),SANCTUARY PERSONNEL LTD,Assistant Chief Executive (Excl SIU),"1,313.13",Agency Staff,1718P01_CR00247,95946
Sandwell Metropolitan Borough Council,http://www.sandwell.gov.uk/info/200202/performance_and_spending/1079/payments_over_734,02-Apr-2017,Assistant Chief Executive (Inc SIU),SANCTUARY PERSONNEL LTD,Assistant Chief Executive (Excl SIU),"1,313.13",Agency Staff,1718P01_CR00248,95946
Sandwell Metropolitan Borough Council,http://www.sandwell.gov.uk/info/200202/performance_and_spending/1079/payments_over_735,02-Apr-2017,Assistant Chief Executive (Inc SIU),SANCTUARY PERSONNEL LTD,Assistant Chief Executive (Excl SIU),"1,313.13",Agency Staff,1718P01_CR00249,95946
Sandwell Metropolitan Borough Council,http://www.sandwell.gov.uk/info/200202/performance_and_spending/1079/payments_over_736,02-Apr-2017,Assistant Chief Executive (Inc SIU),SANCTUARY PERSONNEL LTD,Assistant Chief Executive (Excl SIU),825.71,Agency Staff,1718P01_CR00250,95946
Sandwell Metropolitan Borough Council,http://www.sandwell.gov.uk/info/200202/performance_and_spending/1079/payments_over_737,02-Apr-2017,Assistant Chief Executive (Inc SIU),SANCTUARY PERSONNEL LTD,Assistant Chief Executive (Excl SIU),"1,035.63",Agency Staff,1718P01_CR00251,95946
Sandwell Metropolitan Borough Council,http://www.sandwell.gov.uk/info/200202/performance_and_spending/1079/payments_over_738,02-Apr-2017,Assistant Chief Executive (Inc SIU),SANCTUARY PERSONNEL LTD,Assistant Chief Executive (Excl SIU),"1,313.13",Agency Staff,1718P01_CR00252,95946
Sandwell Metropolitan Borough Council,http://www.sandwell.gov.uk/info/200202/performance_and_spending/1079/payments_over_739,02-Apr-2017,Assistant Chief Executive (Inc SIU),SANCTUARY PERSONNEL LTD,Assistant Chief Executive (Excl SIU),"1,220.63",Agency Staff,1718P01_CR00253,95946
Sandwell Metropolitan Borough Council,http://www.sandwell.gov.uk/info/200202/performance_and_spending/1079/payments_over_740,09-Apr-2017,Assistant Chief Executive (Inc SIU),SANCTUARY PERSONNEL LTD,Assistant Chief Executive (Excl SIU),629.78,Agency Staff,1718P01_CR00254,95946
Sandwell Metropolitan Borough Council,http://www.sandwell.gov.uk/info/200202/performance_and_spending/1079/payments_over_741,09-Apr-2017,Assistant Chief Executive (Inc SIU),SANCTUARY PERSONNEL LTD,Assistant Chief Executive (Excl SIU),"1,220.63",Agency Staff,1718P01_CR00255,95946
Sandwell Metropolitan Borough Council,http://www.sandwell.gov.uk/info/200202/performance_and_spending/1079/payments_over_742,02-Apr-2017,Assistant Chief Executive (Inc SIU),SANCTUARY PERSONNEL LTD,Assistant Chief Executive (Excl SIU),725.78,Agency Staff,1718P01_CR00256,95946
Sandwell Metropolitan Borough Council,http://www.sandwell.gov.uk/info/200202/performance_and_spending/1079/payments_over_743,01-Apr-2017,Assistant Chief Executive (Inc SIU),SANDWELL FUTURES LTD,Assistant Chief Executive (Excl SIU),901.96,Private Contractors,1718P01_CR00257,88151
Sandwell Metropolitan Borough Council,http://www.sandwell.gov.uk/info/200202/performance_and_spending/1079/payments_over_744,27-Apr-2017,Assistant Chief Executive (Inc SIU),SANDWELL LEISURE TRUST                                           01,Assistant Chief Executive (Excl SIU),500.00,Rents,1718P01_CR00258,104114
Sandwell Metropolitan Borough Council,http://www.sandwell.gov.uk/info/200202/performance_and_spending/1079/payments_over_745,06-Apr-2017,Assistant Chief Executive (Inc SIU),SCHINDLER LTD,Assistant Chief Executive (Excl SIU),"2,001.96",Building Maintenance & Improvements,1718P01_CR00259,77077
Sandwell Metropolitan Borough Council,http://www.sandwell.gov.uk/info/200202/performance_and_spending/1079/payments_over_746,06-Apr-2017,Assistant Chief Executive (Inc SIU),SCHINDLER LTD,Assistant Chief Executive (Excl SIU),"2,001.96",Building Maintenance & Improvements,1718P01_CR00260,77077
Sandwell Metropolitan Borough Council,http://www.sandwell.gov.uk/info/200202/performance_and_spending/1079/payments_over_747,06-Apr-2017,Assistant Chief Executive (Inc SIU),SCHINDLER LTD,Assistant Chief Executive (Excl SIU),"2,001.96",Building Maintenance & Improvements,1718P01_CR00261,77077
Sandwell Metropolitan Borough Council,http://www.sandwell.gov.uk/info/200202/performance_and_spending/1079/payments_over_748,06-Apr-2017,Assistant Chief Executive (Inc SIU),SCHINDLER LTD,Assistant Chief Executive (Excl SIU),"2,001.96",Building Maintenance & Improvements,1718P01_CR00262,77077
Sandwell Metropolitan Borough Council,http://www.sandwell.gov.uk/info/200202/performance_and_spending/1079/payments_over_749,03-Apr-2017,Assistant Chief Executive (Inc SIU),SERCO LIMITED,Assistant Chief Executive (Excl SIU),"27,980.68",Externally Purchased Professional Services ,1718P01_CR00263,53771
Sandwell Metropolitan Borough Council,http://www.sandwell.gov.uk/info/200202/performance_and_spending/1079/payments_over_750,03-Apr-2017,Assistant Chief Executive (Inc SIU),SERCO LIMITED,Assistant Chief Executive (Excl SIU),"3,330.08",Externally Purchased Professional Services ,1718P01_CR00264,53771
Sandwell Metropolitan Borough Council,http://www.sandwell.gov.uk/info/200202/performance_and_spending/1079/payments_over_751,03-Apr-2017,Assistant Chief Executive (Inc SIU),SERCO LIMITED,Assistant Chief Executive (Excl SIU),"3,109.60",Externally Purchased Professional Services ,1718P01_CR00265,53771
Sandwell Metropolitan Borough Council,http://www.sandwell.gov.uk/info/200202/performance_and_spending/1079/payments_over_752,03-Apr-2017,Assistant Chief Executive (Inc SIU),SERCO LIMITED,Assistant Chief Executive (Excl SIU),"1,775.28",Externally Purchased Professional Services ,1718P01_CR00266,53771
Sandwell Metropolitan Borough Council,http://www.sandwell.gov.uk/info/200202/performance_and_spending/1079/payments_over_753,03-Apr-2017,Assistant Chief Executive (Inc SIU),SERCO LIMITED,Assistant Chief Executive (Excl SIU),"4,995.12",Externally Purchased Professional Services ,1718P01_CR00267,53771
Sandwell Metropolitan Borough Council,http://www.sandwell.gov.uk/info/200202/performance_and_spending/1079/payments_over_754,03-Apr-2017,Assistant Chief Executive (Inc SIU),SERCO LIMITED,Assistant Chief Executive (Excl SIU),887.64,Externally Purchased Professional Services ,1718P01_CR00268,53771
Sandwell Metropolitan Borough Council,http://www.sandwell.gov.uk/info/200202/performance_and_spending/1079/payments_over_755,03-Apr-2017,Assistant Chief Executive (Inc SIU),SERCO LIMITED,Assistant Chief Executive (Excl SIU),"1,775.28",Externally Purchased Professional Services ,1718P01_CR00269,53771
Sandwell Metropolitan Borough Council,http://www.sandwell.gov.uk/info/200202/performance_and_spending/1079/payments_over_756,03-Apr-2017,Assistant Chief Executive (Inc SIU),SERCO LIMITED,Assistant Chief Executive (Excl SIU),"1,665.04",Externally Purchased Professional Services ,1718P01_CR00270,53771
Sandwell Metropolitan Borough Council,http://www.sandwell.gov.uk/info/200202/performance_and_spending/1079/payments_over_757,03-Apr-2017,Assistant Chief Executive (Inc SIU),SERCO LIMITED,Assistant Chief Executive (Excl SIU),"1,665.04",Externally Purchased Professional Services ,1718P01_CR00271,53771
Sandwell Metropolitan Borough Council,http://www.sandwell.gov.uk/info/200202/performance_and_spending/1079/payments_over_758,03-Apr-2017,Assistant Chief Executive (Inc SIU),SERCO LIMITED,Assistant Chief Executive (Excl SIU),"2,662.92",Externally Purchased Professional Services ,1718P01_CR00272,53771
Sandwell Metropolitan Borough Council,http://www.sandwell.gov.uk/info/200202/performance_and_spending/1079/payments_over_759,03-Apr-2017,Assistant Chief Executive (Inc SIU),SERCO LIMITED,Assistant Chief Executive (Excl SIU),"1,372.80",Externally Purchased Professional Services ,1718P01_CR00273,53771
Sandwell Metropolitan Borough Council,http://www.sandwell.gov.uk/info/200202/performance_and_spending/1079/payments_over_760,03-Apr-2017,Assistant Chief Executive (Inc SIU),SERCO LIMITED,Assistant Chief Executive (Excl SIU),887.64,Externally Purchased Professional Services ,1718P01_CR00274,53771
Sandwell Metropolitan Borough Council,http://www.sandwell.gov.uk/info/200202/performance_and_spending/1079/payments_over_761,03-Apr-2017,Assistant Chief Executive (Inc SIU),SERCO LIMITED,Assistant Chief Executive (Excl SIU),"1,832.48",Externally Purchased Professional Services ,1718P01_CR00275,53771
Sandwell Metropolitan Borough Council,http://www.sandwell.gov.uk/info/200202/performance_and_spending/1079/payments_over_762,01-Apr-2017,Assistant Chief Executive (Inc SIU),SERVICE CARE SOLUTIONS,Assistant Chief Executive (Excl SIU),"1,290.93",Agency Staff,1718P01_CR00276,123856
Sandwell Metropolitan Borough Council,http://www.sandwell.gov.uk/info/200202/performance_and_spending/1079/payments_over_763,01-Apr-2017,Assistant Chief Executive (Inc SIU),SERVICE CARE SOLUTIONS,Assistant Chief Executive (Excl SIU),"1,013.43",Agency Staff,1718P01_CR00277,123856
Sandwell Metropolitan Borough Council,http://www.sandwell.gov.uk/info/200202/performance_and_spending/1079/payments_over_764,01-Apr-2017,Assistant Chief Executive (Inc SIU),SHAW & SONS LTD,Assistant Chief Executive (Excl SIU),"2,327.50","Printing, Stationery & General Office Expenses",1718P01_CR00278,01376184
Sandwell Metropolitan Borough Council,http://www.sandwell.gov.uk/info/200202/performance_and_spending/1079/payments_over_765,03-Apr-2017,Assistant Chief Executive (Inc SIU),SIPS EDUCATION LTD,Assistant Chief Executive (Excl SIU),"1,407.04",Catering Provisions,1718P01_CR00279,110784
Sandwell Metropolitan Borough Council,http://www.sandwell.gov.uk/info/200202/performance_and_spending/1079/payments_over_766,03-Apr-2017,Assistant Chief Executive (Inc SIU),SIPS EDUCATION LTD,Assistant Chief Executive (Excl SIU),"1,291.85",Catering Provisions,1718P01_CR00280,110784
Sandwell Metropolitan Borough Council,http://www.sandwell.gov.uk/info/200202/performance_and_spending/1079/payments_over_767,03-Apr-2017,Assistant Chief Executive (Inc SIU),SIPS EDUCATION LTD,Assistant Chief Executive (Excl SIU),"11,339.20",General Recharges,1718P01_CR00281,110784
Sandwell Metropolitan Borough Council,http://www.sandwell.gov.uk/info/200202/performance_and_spending/1079/payments_over_768,01-Apr-2017,Assistant Chief Executive (Inc SIU),SITEWATCH FIRE AND SURVEILLANCE LIMITED,Assistant Chief Executive (Excl SIU),"3,400.00",Security,1718P01_CR00282,55288
Sandwell Metropolitan Borough Council,http://www.sandwell.gov.uk/info/200202/performance_and_spending/1079/payments_over_769,01-Apr-2017,Assistant Chief Executive (Inc SIU),SITEWATCH FIRE AND SURVEILLANCE LIMITED,Assistant Chief Executive (Excl SIU),586.00,ICT ,1718P01_CR00283,55288
Sandwell Metropolitan Borough Council,http://www.sandwell.gov.uk/info/200202/performance_and_spending/1079/payments_over_770,01-Apr-2017,Assistant Chief Executive (Inc SIU),SITEWATCH FIRE AND SURVEILLANCE LIMITED,Assistant Chief Executive (Excl SIU),645.00,ICT ,1718P01_CR00284,55288
Sandwell Metropolitan Borough Council,http://www.sandwell.gov.uk/info/200202/performance_and_spending/1079/payments_over_771,01-Apr-2017,Assistant Chief Executive (Inc SIU),SITEWATCH FIRE AND SURVEILLANCE LIMITED,Assistant Chief Executive (Excl SIU),"4,152.00",Building Maintenance & Improvements,1718P01_CR00285,55288
Sandwell Metropolitan Borough Council,http://www.sandwell.gov.uk/info/200202/performance_and_spending/1079/payments_over_772,07-Apr-2017,Assistant Chief Executive (Inc SIU),SODEXO MOTIVATION SOLUTIONS U.K. LIMITED,Assistant Chief Executive (Excl SIU),"32,400.00",Advertising & Publicity,1718P01_CR00286,129332
Sandwell Metropolitan Borough Council,http://www.sandwell.gov.uk/info/200202/performance_and_spending/1079/payments_over_773,19-Apr-2017,Assistant Chief Executive (Inc SIU),SOLACE IN BUSINESS LTD,Assistant Chief Executive (Excl SIU),"11,125.00",Externally Purchased Professional Services ,1718P01_CR00287,129445
Sandwell Metropolitan Borough Council,http://www.sandwell.gov.uk/info/200202/performance_and_spending/1079/payments_over_774,01-Apr-2017,Assistant Chief Executive (Inc SIU),SOLIHULL MBC,Assistant Chief Executive (Excl SIU),"54,981.75",Consultancy,1718P01_CR00288,01128751
Sandwell Metropolitan Borough Council,http://www.sandwell.gov.uk/info/200202/performance_and_spending/1079/payments_over_775,01-Apr-2017,Assistant Chief Executive (Inc SIU),SOUTHERN ELECTRIC GAS LIMITED T/A SSE,Assistant Chief Executive (Excl SIU),"1,259.33",Electricity,1718P01_CR00289,2468
Sandwell Metropolitan Borough Council,http://www.sandwell.gov.uk/info/200202/performance_and_spending/1079/payments_over_776,01-Apr-2017,Assistant Chief Executive (Inc SIU),SUCCESS TRAIN LTD,Assistant Chief Executive (Excl SIU),"1,800.00",Externally Purchased Professional Services ,1718P01_CR00290,92647
Sandwell Metropolitan Borough Council,http://www.sandwell.gov.uk/info/200202/performance_and_spending/1079/payments_over_777,04-Apr-2017,Assistant Chief Executive (Inc SIU),SURFACING GROUP LIMITED,Assistant Chief Executive (Excl SIU),"8,505.00",Building Maintenance & Improvements,1718P01_CR00291,129241
Sandwell Metropolitan Borough Council,http://www.sandwell.gov.uk/info/200202/performance_and_spending/1079/payments_over_778,25-Apr-2017,Assistant Chief Executive (Inc SIU),SUTTON COLDFIELD CONSTRUCTION LIMITED,Assistant Chief Executive (Excl SIU),"9,828.83",Building Maintenance & Improvements,1718P01_CR00292,103130
Sandwell Metropolitan Borough Council,http://www.sandwell.gov.uk/info/200202/performance_and_spending/1079/payments_over_779,01-Apr-2017,Assistant Chief Executive (Inc SIU),TEMPEST RESOURCING LIMITED,Assistant Chief Executive (Excl SIU),"1,248.75",Agency Staff,1718P01_CR00293,106730
Sandwell Metropolitan Borough Council,http://www.sandwell.gov.uk/info/200202/performance_and_spending/1079/payments_over_780,01-Apr-2017,Assistant Chief Executive (Inc SIU),TEMPEST RESOURCING LIMITED,Assistant Chief Executive (Excl SIU),"1,248.75",Agency Staff,1718P01_CR00294,106730
Sandwell Metropolitan Borough Council,http://www.sandwell.gov.uk/info/200202/performance_and_spending/1079/payments_over_781,05-Apr-2017,Assistant Chief Executive (Inc SIU),TEMPEST RESOURCING LIMITED,Assistant Chief Executive (Excl SIU),"1,181.85",Agency Staff,1718P01_CR00295,106730
Sandwell Metropolitan Borough Council,http://www.sandwell.gov.uk/info/200202/performance_and_spending/1079/payments_over_782,05-Apr-2017,Assistant Chief Executive (Inc SIU),TEMPEST RESOURCING LIMITED,Assistant Chief Executive (Excl SIU),"1,341.25",Agency Staff,1718P01_CR00296,106730
Sandwell Metropolitan Borough Council,http://www.sandwell.gov.uk/info/200202/performance_and_spending/1079/payments_over_783,05-Apr-2017,Assistant Chief Executive (Inc SIU),TEMPEST RESOURCING LIMITED,Assistant Chief Executive (Excl SIU),"1,248.75",Agency Staff,1718P01_CR00297,106730
Sandwell Metropolitan Borough Council,http://www.sandwell.gov.uk/info/200202/performance_and_spending/1079/payments_over_784,05-Apr-2017,Assistant Chief Executive (Inc SIU),TEMPEST RESOURCING LIMITED,Assistant Chief Executive (Excl SIU),"1,274.85",Agency Staff,1718P01_CR00298,106730
Sandwell Metropolitan Borough Council,http://www.sandwell.gov.uk/info/200202/performance_and_spending/1079/payments_over_785,05-Apr-2017,Assistant Chief Executive (Inc SIU),TEMPEST RESOURCING LIMITED,Assistant Chief Executive (Excl SIU),"1,248.75",Agency Staff,1718P01_CR00299,106730
Sandwell Metropolitan Borough Council,http://www.sandwell.gov.uk/info/200202/performance_and_spending/1079/payments_over_786,11-Apr-2017,Assistant Chief Executive (Inc SIU),TEMPEST RESOURCING LIMITED,Assistant Chief Executive (Excl SIU),"1,248.75",Agency Staff,1718P01_CR00300,106730
Sandwell Metropolitan Borough Council,http://www.sandwell.gov.uk/info/200202/performance_and_spending/1079/payments_over_787,11-Apr-2017,Assistant Chief Executive (Inc SIU),TEMPEST RESOURCING LIMITED,Assistant Chief Executive (Excl SIU),"1,248.75",Agency Staff,1718P01_CR00301,106730
Sandwell Metropolitan Borough Council,http://www.sandwell.gov.uk/info/200202/performance_and_spending/1079/payments_over_788,11-Apr-2017,Assistant Chief Executive (Inc SIU),TEMPEST RESOURCING LIMITED,Assistant Chief Executive (Excl SIU),"1,341.25",Agency Staff,1718P01_CR00302,106730
Sandwell Metropolitan Borough Council,http://www.sandwell.gov.uk/info/200202/performance_and_spending/1079/payments_over_789,11-Apr-2017,Assistant Chief Executive (Inc SIU),TEMPEST RESOURCING LIMITED,Assistant Chief Executive (Excl SIU),"1,248.75",Agency Staff,1718P01_CR00303,106730
Sandwell Metropolitan Borough Council,http://www.sandwell.gov.uk/info/200202/performance_and_spending/1079/payments_over_790,11-Apr-2017,Assistant Chief Executive (Inc SIU),TEMPEST RESOURCING LIMITED,Assistant Chief Executive (Excl SIU),"1,248.75",Agency Staff,1718P01_CR00304,106730
Sandwell Metropolitan Borough Council,http://www.sandwell.gov.uk/info/200202/performance_and_spending/1079/payments_over_791,05-Apr-2017,Assistant Chief Executive (Inc SIU),TEMPEST RESOURCING LIMITED,Assistant Chief Executive (Excl SIU),"1,248.75",Agency Staff,1718P01_CR00305,106730
Sandwell Metropolitan Borough Council,http://www.sandwell.gov.uk/info/200202/performance_and_spending/1079/payments_over_792,01-Apr-2017,Assistant Chief Executive (Inc SIU),THE KNOWLEDGE ACADEMY LIMITED,Assistant Chief Executive (Excl SIU),"2,002.00",Externally Purchased Professional Services ,1718P01_CR00306,88724
Sandwell Metropolitan Borough Council,http://www.sandwell.gov.uk/info/200202/performance_and_spending/1079/payments_over_793,01-Apr-2017,Assistant Chief Executive (Inc SIU),THE LETTERBOX CONSULTANCY LIMITED,Assistant Chief Executive (Excl SIU),"11,763.70",Advertising & Publicity,1718P01_CR00307,118808
Sandwell Metropolitan Borough Council,http://www.sandwell.gov.uk/info/200202/performance_and_spending/1079/payments_over_794,01-Apr-2017,Assistant Chief Executive (Inc SIU),THE YABOO COMPANY LIMITED,Assistant Chief Executive (Excl SIU),943.00,Bereavement Expenses,1718P01_CR00308,92228
Sandwell Metropolitan Borough Council,http://www.sandwell.gov.uk/info/200202/performance_and_spending/1079/payments_over_795,01-Apr-2017,Assistant Chief Executive (Inc SIU),THOMSON REUTERS (PROFESSIONAL) UK LIMITED,Assistant Chief Executive (Excl SIU),699.00,Materials & Consumables,1718P01_CR00309,102777
Sandwell Metropolitan Borough Council,http://www.sandwell.gov.uk/info/200202/performance_and_spending/1079/payments_over_796,18-Apr-2017,Assistant Chief Executive (Inc SIU),THOMSON REUTERS (PROFESSIONAL) UK LIMITED,Assistant Chief Executive (Excl SIU),985.00,Materials & Consumables,1718P01_CR00310,102777
Sandwell Metropolitan Borough Council,http://www.sandwell.gov.uk/info/200202/performance_and_spending/1079/payments_over_797,01-Apr-2017,Assistant Chief Executive (Inc SIU),TOTAL GAS AND POWER LIMITED,Assistant Chief Executive (Excl SIU),757.51,Electricity,1718P01_CR00311,107605
Sandwell Metropolitan Borough Council,http://www.sandwell.gov.uk/info/200202/performance_and_spending/1079/payments_over_798,08-Apr-2017,Assistant Chief Executive (Inc SIU),TOTAL GAS AND POWER LIMITED,Assistant Chief Executive (Excl SIU),"1,823.56",Electricity,1718P01_CR00312,107605
Sandwell Metropolitan Borough Council,http://www.sandwell.gov.uk/info/200202/performance_and_spending/1079/payments_over_799,08-Apr-2017,Assistant Chief Executive (Inc SIU),TOTAL GAS AND POWER LIMITED,Assistant Chief Executive (Excl SIU),"2,079.65",Gas,1718P01_CR00313,107605
Sandwell Metropolitan Borough Council,http://www.sandwell.gov.uk/info/200202/performance_and_spending/1079/payments_over_800,08-Apr-2017,Assistant Chief Executive (Inc SIU),TOTAL GAS AND POWER LIMITED,Assistant Chief Executive (Excl SIU),"1,418.25",Gas,1718P01_CR00314,107605
Sandwell Metropolitan Borough Council,http://www.sandwell.gov.uk/info/200202/performance_and_spending/1079/payments_over_801,01-Apr-2017,Assistant Chief Executive (Inc SIU),TRAX EXPRESS SYSTEMS LTD,Assistant Chief Executive (Excl SIU),"1,154.97",Postages,1718P01_CR00315,01769105
Sandwell Metropolitan Borough Council,http://www.sandwell.gov.uk/info/200202/performance_and_spending/1079/payments_over_802,01-Apr-2017,Assistant Chief Executive (Inc SIU),TRAX EXPRESS SYSTEMS LTD,Assistant Chief Executive (Excl SIU),"1,458.13",Postages,1718P01_CR00316,01769105
Sandwell Metropolitan Borough Council,http://www.sandwell.gov.uk/info/200202/performance_and_spending/1079/payments_over_803,01-Apr-2017,Assistant Chief Executive (Inc SIU),TRINITY FUNERAL SERVICES LTD,Assistant Chief Executive (Excl SIU),923.00,Bereavement Expenses,1718P01_CR00317,75803
Sandwell Metropolitan Borough Council,http://www.sandwell.gov.uk/info/200202/performance_and_spending/1079/payments_over_804,01-Apr-2017,Assistant Chief Executive (Inc SIU),TRIOS PROPERTY LIMITED,Assistant Chief Executive (Excl SIU),583.70,Building Maintenance & Improvements,1718P01_CR00318,1300
Sandwell Metropolitan Borough Council,http://www.sandwell.gov.uk/info/200202/performance_and_spending/1079/payments_over_805,01-Apr-2017,Assistant Chief Executive (Inc SIU),TUSKERDIRECT LTD,Assistant Chief Executive (Excl SIU),"53,914.85",Employee Benefits Scheme,1718P01_CR00319,118631
Sandwell Metropolitan Borough Council,http://www.sandwell.gov.uk/info/200202/performance_and_spending/1079/payments_over_806,01-Apr-2017,Assistant Chief Executive (Inc SIU),TUSKERDIRECT LTD,Assistant Chief Executive (Excl SIU),515.32,Employee Benefits Scheme,1718P01_CR00320,118631
Sandwell Metropolitan Borough Council,http://www.sandwell.gov.uk/info/200202/performance_and_spending/1079/payments_over_807,01-Apr-2017,Assistant Chief Executive (Inc SIU),UNDERHILL LANGLEY AND WRIGHT LTD,Assistant Chief Executive (Excl SIU),"1,160.00",Bereavement Expenses,1718P01_CR00321,79079
Sandwell Metropolitan Borough Council,http://www.sandwell.gov.uk/info/200202/performance_and_spending/1079/payments_over_808,01-Apr-2017,Assistant Chief Executive (Inc SIU),VENN GROUP LTD,Assistant Chief Executive (Excl SIU),"1,871.27",Agency Staff,1718P01_CR00322,49728
Sandwell Metropolitan Borough Council,http://www.sandwell.gov.uk/info/200202/performance_and_spending/1079/payments_over_809,01-Apr-2017,Assistant Chief Executive (Inc SIU),VENN GROUP LTD,Assistant Chief Executive (Excl SIU),"1,783.50",Agency Staff,1718P01_CR00323,49728
Sandwell Metropolitan Borough Council,http://www.sandwell.gov.uk/info/200202/performance_and_spending/1079/payments_over_810,03-Apr-2017,Assistant Chief Executive (Inc SIU),VENN GROUP LTD,Assistant Chief Executive (Excl SIU),"1,406.00",Agency Staff,1718P01_CR00324,49728
Sandwell Metropolitan Borough Council,http://www.sandwell.gov.uk/info/200202/performance_and_spending/1079/payments_over_811,03-Apr-2017,Assistant Chief Executive (Inc SIU),VENN GROUP LTD,Assistant Chief Executive (Excl SIU),"1,406.00",Agency Staff,1718P01_CR00325,49728
Sandwell Metropolitan Borough Council,http://www.sandwell.gov.uk/info/200202/performance_and_spending/1079/payments_over_812,01-Apr-2017,Assistant Chief Executive (Inc SIU),VIRGIN MEDIA BUSINESS LIMITED,Assistant Chief Executive (Excl SIU),"3,012.67",ICT ,1718P01_CR00326,87097
Sandwell Metropolitan Borough Council,http://www.sandwell.gov.uk/info/200202/performance_and_spending/1079/payments_over_813,01-Apr-2017,Assistant Chief Executive (Inc SIU),VIRGIN MEDIA BUSINESS LIMITED,Assistant Chief Executive (Excl SIU),"254,951.47",ICT ,1718P01_CR00327,87097
Sandwell Metropolitan Borough Council,http://www.sandwell.gov.uk/info/200202/performance_and_spending/1079/payments_over_814,01-Apr-2017,Assistant Chief Executive (Inc SIU),VIRGIN MEDIA BUSINESS LIMITED,Assistant Chief Executive (Excl SIU),"1,877.95",Externally Purchased Professional Services ,1718P01_CR00328,87097
Sandwell Metropolitan Borough Council,http://www.sandwell.gov.uk/info/200202/performance_and_spending/1079/payments_over_815,06-Apr-2017,Assistant Chief Executive (Inc SIU),VIRGIN MEDIA BUSINESS LIMITED,Assistant Chief Executive (Excl SIU),"4,979.92",Externally Purchased Professional Services ,1718P01_CR00329,87097
Sandwell Metropolitan Borough Council,http://www.sandwell.gov.uk/info/200202/performance_and_spending/1079/payments_over_816,18-Apr-2017,Assistant Chief Executive (Inc SIU),VODAFONE LTD,Assistant Chief Executive (Excl SIU),"5,701.47",Telephones,1718P01_CR00330,01555354
Sandwell Metropolitan Borough Council,http://www.sandwell.gov.uk/info/200202/performance_and_spending/1079/payments_over_817,01-Apr-2017,Assistant Chief Executive (Inc SIU),VODAFONE LTD,Assistant Chief Executive (Excl SIU),"2,664.52",ICT ,1718P01_CR00331,01555354
Sandwell Metropolitan Borough Council,http://www.sandwell.gov.uk/info/200202/performance_and_spending/1079/payments_over_818,01-Apr-2017,Assistant Chief Executive (Inc SIU),VP BASTION LIMITED,Assistant Chief Executive (Excl SIU),"3,409.32",ICT ,1718P01_CR00332,122543
Sandwell Metropolitan Borough Council,http://www.sandwell.gov.uk/info/200202/performance_and_spending/1079/payments_over_819,10-Apr-2017,Assistant Chief Executive (Inc SIU),VP BASTION LIMITED,Assistant Chief Executive (Excl SIU),"2,138.44",ICT ,1718P01_CR00333,122543
Sandwell Metropolitan Borough Council,http://www.sandwell.gov.uk/info/200202/performance_and_spending/1079/payments_over_820,01-Apr-2017,Assistant Chief Executive (Inc SIU),WEST MIDLANDS EMPLOYERS,Assistant Chief Executive (Excl SIU),"32,950.00",Subscriptions,1718P01_CR00334,01587505
Sandwell Metropolitan Borough Council,http://www.sandwell.gov.uk/info/200202/performance_and_spending/1079/payments_over_821,01-Apr-2017,Assistant Chief Executive (Inc SIU),WESTERN POWER DISTRIBUTION (WEST MIDLANDS) PLC,Assistant Chief Executive (Excl SIU),719.15,Building Maintenance & Improvements,1718P01_CR00335,97805
Sandwell Metropolitan Borough Council,http://www.sandwell.gov.uk/info/200202/performance_and_spending/1079/payments_over_822,01-Apr-2017,Assistant Chief Executive (Inc SIU),WHISTL UK LIMITED,Assistant Chief Executive (Excl SIU),"2,675.30",Postages,1718P01_CR00336,107880
Sandwell Metropolitan Borough Council,http://www.sandwell.gov.uk/info/200202/performance_and_spending/1079/payments_over_823,07-Apr-2017,Assistant Chief Executive (Inc SIU),WHISTL UK LIMITED,Assistant Chief Executive (Excl SIU),"1,908.79",Postages,1718P01_CR00337,107880
Sandwell Metropolitan Borough Council,http://www.sandwell.gov.uk/info/200202/performance_and_spending/1079/payments_over_824,05-Apr-2017,Assistant Chief Executive (Inc SIU),WINDOWMASTER CONTROL SYSTEMS,Assistant Chief Executive (Excl SIU),"1,745.17",Building Maintenance & Improvements,1718P01_CR00338,80562
Sandwell Metropolitan Borough Council,http://www.sandwell.gov.uk/info/200202/performance_and_spending/1079/payments_over_825,05-Apr-2017,Assistant Chief Executive (Inc SIU),WINDOWMASTER CONTROL SYSTEMS,Assistant Chief Executive (Excl SIU),"1,178.67",Building Maintenance & Improvements,1718P01_CR00339,80562
Sandwell Metropolitan Borough Council,http://www.sandwell.gov.uk/info/200202/performance_and_spending/1079/payments_over_826,05-Apr-2017,Assistant Chief Executive (Inc SIU),WINDOWMASTER CONTROL SYSTEMS,Assistant Chief Executive (Excl SIU),"1,486.33",Building Maintenance & Improvements,1718P01_CR00340,80562
Sandwell Metropolitan Borough Council,http://www.sandwell.gov.uk/info/200202/performance_and_spending/1079/payments_over_827,01-Apr-2017,Assistant Chief Executive (Inc SIU),WOODHULL ROOFING LIMITED,Assistant Chief Executive (Excl SIU),"2,781.37",Building Maintenance & Improvements,1718P01_CR00341,77000864
Sandwell Metropolitan Borough Council,http://www.sandwell.gov.uk/info/200202/performance_and_spending/1079/payments_over_828,01-Apr-2017,Assistant Chief Executive (Inc SIU),WOODHULL ROOFING LIMITED,Assistant Chief Executive (Excl SIU),"12,269.79",Building Maintenance & Improvements,1718P01_CR00342,77000864
Sandwell Metropolitan Borough Council,http://www.sandwell.gov.uk/info/200202/performance_and_spending/1079/payments_over_829,03-Apr-2017,Assistant Chief Executive (Inc SIU),WRIGHT SOLICITORS LIMITED,Assistant Chief Executive (Excl SIU),"6,468.75",Externally Purchased Professional Services ,1718P01_CR00343,129495
Sandwell Metropolitan Borough Council,http://www.sandwell.gov.uk/info/200202/performance_and_spending/1079/payments_over_830,01-Apr-2017,Assistant Chief Executive (Inc SIU),XEROX (UK) LTD,Assistant Chief Executive (Excl SIU),"19,716.10","Printing, Stationery & General Office Expenses",1718P01_CR00344,01565127
Sandwell Metropolitan Borough Council,http://www.sandwell.gov.uk/info/200202/performance_and_spending/1079/payments_over_831,09-Apr-2017,Assistant Chief Executive (Inc SIU),XEROX (UK) LTD,Assistant Chief Executive (Excl SIU),595.33,"Printing, Stationery & General Office Expenses",1718P01_CR00345,01565127
Sandwell Metropolitan Borough Council,http://www.sandwell.gov.uk/info/200202/performance_and_spending/1079/payments_over_832,01-Apr-2017,Assistant Chief Executive (Inc SIU),ZIPPORAH LIMITED,Assistant Chief Executive (Excl SIU),"1,030.93",Equipment & Furniture ,1718P01_CR00346,115590
Sandwell Metropolitan Borough Council,http://www.sandwell.gov.uk/info/200202/performance_and_spending/1079/payments_over_833,20-Apr-2017,Assistant Chief Executive (Inc SIU),ZURICH INSURANCE PLC,Assistant Chief Executive (Excl SIU),"13,247.13",Insurance,1718P01_CR00347,01749452
Sandwell Metropolitan Borough Council,http://www.sandwell.gov.uk/info/200202/performance_and_spending/1079/payments_over_834,07-Apr-2017,Assistant Chief Executive (Inc SIU),6TOWNS CREDIT UNION LTD,Assistant Chief Executive (Excl SIU),"15,776.00",Grant Payments,1718P01_CR00348,33018
Sandwell Metropolitan Borough Council,http://www.sandwell.gov.uk/info/200202/performance_and_spending/1079/payments_over_2600,06-Apr-2017,Assistant Chief Executive (Inc SIU),CHAMBERLAIN & HILL CASTINGS LTD,Strategic Investment Unit,"169,997.01",Grant Payments,1718P01_CR00349,126548
Sandwell Metropolitan Borough Council,http://www.sandwell.gov.uk/info/200202/performance_and_spending/1079/payments_over_2601,06-Apr-2017,Assistant Chief Executive (Inc SIU),HAWTHORN TRADING COMPANY LTD,Strategic Investment Unit,"274,174.89",Grant Payments,1718P01_CR00350,129292
Sandwell Metropolitan Borough Council,http://www.sandwell.gov.uk/info/200202/performance_and_spending/1079/payments_over_2602,06-Apr-2017,Assistant Chief Executive (Inc SIU),PASCON LIMITED,Strategic Investment Unit,"27,405.29",Grant Payments,1718P01_CR00351,122069
Sandwell Metropolitan Borough Council,http://www.sandwell.gov.uk/info/200202/performance_and_spending/1079/payments_over_835,18-Apr-2017,Childrens Services,CAPSTONE FOSTER CARE (SOUTH EAST) LTD,Childrens Services,"-2,081.86",Private Contractors,1718P01_CR00352,99741
Sandwell Metropolitan Borough Council,http://www.sandwell.gov.uk/info/200202/performance_and_spending/1079/payments_over_836,20-Apr-2017,Childrens Services,FOSTER CARE ASSOCIATES LIMITED,Childrens Services,"-1,687.76",Private Contractors,1718P01_CR00353,01749416
Sandwell Metropolitan Borough Council,http://www.sandwell.gov.uk/info/200202/performance_and_spending/1079/payments_over_837,11-Apr-2017,Childrens Services,IDEAL FOSTERING                                                                  01,Childrens Services,"-1,382.29",Private Contractors,1718P01_CR00354,114004
Sandwell Metropolitan Borough Council,http://www.sandwell.gov.uk/info/200202/performance_and_spending/1079/payments_over_838,01-Apr-2017,Childrens Services,ABC FOSTERING SERVICES LTD,Childrens Services,"3,109.60",Private Contractors,1718P01_CR00355,104390
Sandwell Metropolitan Borough Council,http://www.sandwell.gov.uk/info/200202/performance_and_spending/1079/payments_over_839,01-Apr-2017,Childrens Services,ABC FOSTERING SERVICES LTD,Childrens Services,"3,442.77",Private Contractors,1718P01_CR00356,104390
Sandwell Metropolitan Borough Council,http://www.sandwell.gov.uk/info/200202/performance_and_spending/1079/payments_over_840,01-Apr-2017,Childrens Services,ABC FOSTERING SERVICES LTD,Childrens Services,"2,622.80",Private Contractors,1718P01_CR00357,104390
Sandwell Metropolitan Borough Council,http://www.sandwell.gov.uk/info/200202/performance_and_spending/1079/payments_over_841,01-Apr-2017,Childrens Services,ABC FOSTERING SERVICES LTD,Childrens Services,"2,903.81",Private Contractors,1718P01_CR00358,104390
Sandwell Metropolitan Borough Council,http://www.sandwell.gov.uk/info/200202/performance_and_spending/1079/payments_over_842,01-Apr-2017,Childrens Services,ABC FOSTERING SERVICES LTD,Childrens Services,"2,932.80",Private Contractors,1718P01_CR00359,104390
Sandwell Metropolitan Borough Council,http://www.sandwell.gov.uk/info/200202/performance_and_spending/1079/payments_over_843,01-Apr-2017,Childrens Services,ABC FOSTERING SERVICES LTD,Childrens Services,"3,247.03",Private Contractors,1718P01_CR00360,104390
Sandwell Metropolitan Borough Council,http://www.sandwell.gov.uk/info/200202/performance_and_spending/1079/payments_over_844,01-Apr-2017,Childrens Services,ABC FOSTERING SERVICES LTD,Childrens Services,"3,120.00",Private Contractors,1718P01_CR00361,104390
Sandwell Metropolitan Borough Council,http://www.sandwell.gov.uk/info/200202/performance_and_spending/1079/payments_over_845,01-Apr-2017,Childrens Services,ABC FOSTERING SERVICES LTD,Childrens Services,"3,454.29",Private Contractors,1718P01_CR00362,104390
Sandwell Metropolitan Borough Council,http://www.sandwell.gov.uk/info/200202/performance_and_spending/1079/payments_over_846,01-Apr-2017,Childrens Services,ABC FOSTERING SERVICES LTD,Childrens Services,"2,456.80",Private Contractors,1718P01_CR00363,104390
Sandwell Metropolitan Borough Council,http://www.sandwell.gov.uk/info/200202/performance_and_spending/1079/payments_over_847,01-Apr-2017,Childrens Services,ABC FOSTERING SERVICES LTD,Childrens Services,"2,720.03",Private Contractors,1718P01_CR00364,104390
Sandwell Metropolitan Borough Council,http://www.sandwell.gov.uk/info/200202/performance_and_spending/1079/payments_over_848,01-Apr-2017,Childrens Services,ABC FOSTERING SERVICES LTD,Childrens Services,"3,120.00",Private Contractors,1718P01_CR00365,104390
Sandwell Metropolitan Borough Council,http://www.sandwell.gov.uk/info/200202/performance_and_spending/1079/payments_over_849,01-Apr-2017,Childrens Services,ABC FOSTERING SERVICES LTD,Childrens Services,"3,454.29",Private Contractors,1718P01_CR00366,104390
Sandwell Metropolitan Borough Council,http://www.sandwell.gov.uk/info/200202/performance_and_spending/1079/payments_over_850,01-Apr-2017,Childrens Services,ABC FOSTERING SERVICES LTD,Childrens Services,"2,707.20",Private Contractors,1718P01_CR00367,104390
Sandwell Metropolitan Borough Council,http://www.sandwell.gov.uk/info/200202/performance_and_spending/1079/payments_over_851,01-Apr-2017,Childrens Services,ABC FOSTERING SERVICES LTD,Childrens Services,"2,997.26",Private Contractors,1718P01_CR00368,104390
Sandwell Metropolitan Borough Council,http://www.sandwell.gov.uk/info/200202/performance_and_spending/1079/payments_over_852,01-Apr-2017,Childrens Services,ABC FOSTERING SERVICES LTD,Childrens Services,"2,932.80",Private Contractors,1718P01_CR00369,104390
Sandwell Metropolitan Borough Council,http://www.sandwell.gov.uk/info/200202/performance_and_spending/1079/payments_over_853,01-Apr-2017,Childrens Services,ABC FOSTERING SERVICES LTD,Childrens Services,"2,304.34",Private Contractors,1718P01_CR00370,104390
Sandwell Metropolitan Borough Council,http://www.sandwell.gov.uk/info/200202/performance_and_spending/1079/payments_over_854,01-Apr-2017,Childrens Services,ACORNS CHILDRENS HOSPICE TRUST,Childrens Services,"26,350.00",Private Contractors,1718P01_CR00371,01754427
Sandwell Metropolitan Borough Council,http://www.sandwell.gov.uk/info/200202/performance_and_spending/1079/payments_over_855,15-Apr-2017,Childrens Services,ACTIVE CARE SOLUTIONS,Childrens Services,"1,404.00",Private Contractors,1718P01_CR00372,127287
Sandwell Metropolitan Borough Council,http://www.sandwell.gov.uk/info/200202/performance_and_spending/1079/payments_over_856,01-Apr-2017,Childrens Services,ACTIVE CARE SOLUTIONS,Childrens Services,864.00,Private Contractors,1718P01_CR00373,127287
Sandwell Metropolitan Borough Council,http://www.sandwell.gov.uk/info/200202/performance_and_spending/1079/payments_over_857,15-Apr-2017,Childrens Services,ACTIVE CARE SOLUTIONS,Childrens Services,"2,853.00",Private Contractors,1718P01_CR00374,127287
Sandwell Metropolitan Borough Council,http://www.sandwell.gov.uk/info/200202/performance_and_spending/1079/payments_over_858,15-Apr-2017,Childrens Services,ACTIVE CARE SOLUTIONS,Childrens Services,"3,115.12",Private Contractors,1718P01_CR00375,127287
Sandwell Metropolitan Borough Council,http://www.sandwell.gov.uk/info/200202/performance_and_spending/1079/payments_over_859,10-Apr-2017,Childrens Services,AMBERLEIGH CARE LIMITED,Childrens Services,"15,180.00",Private Contractors,1718P01_CR00376,118066
Sandwell Metropolitan Borough Council,http://www.sandwell.gov.uk/info/200202/performance_and_spending/1079/payments_over_860,01-Apr-2017,Childrens Services,BARNARDO SERVICES LIMITED,Childrens Services,"3,960.00",Private Contractors,1718P01_CR00377,9330
Sandwell Metropolitan Borough Council,http://www.sandwell.gov.uk/info/200202/performance_and_spending/1079/payments_over_861,26-Apr-2017,Childrens Services,BARNARDO SERVICES LIMITED,Childrens Services,"3,338.57",Private Contractors,1718P01_CR00378,9330
Sandwell Metropolitan Borough Council,http://www.sandwell.gov.uk/info/200202/performance_and_spending/1079/payments_over_862,10-Apr-2017,Childrens Services,BARNARDO SERVICES LIMITED,Childrens Services,"4,053.28",Private Contractors,1718P01_CR00379,9330
Sandwell Metropolitan Borough Council,http://www.sandwell.gov.uk/info/200202/performance_and_spending/1079/payments_over_863,01-Apr-2017,Childrens Services,BARNARDO SERVICES LIMITED,Childrens Services,"4,678.52",Private Contractors,1718P01_CR00380,9330
Sandwell Metropolitan Borough Council,http://www.sandwell.gov.uk/info/200202/performance_and_spending/1079/payments_over_864,26-Apr-2017,Childrens Services,BARNARDO SERVICES LIMITED,Childrens Services,"4,527.60",Private Contractors,1718P01_CR00381,9330
Sandwell Metropolitan Borough Council,http://www.sandwell.gov.uk/info/200202/performance_and_spending/1079/payments_over_865,01-Apr-2017,Childrens Services,BRYN MELYN CARE LIMITED,Childrens Services,"20,108.57",Private Contractors,1718P01_CR00382,110427
Sandwell Metropolitan Borough Council,http://www.sandwell.gov.uk/info/200202/performance_and_spending/1079/payments_over_866,01-Apr-2017,Childrens Services,BY THE BRIDGE LIMITED,Childrens Services,"3,253.07",Private Contractors,1718P01_CR00383,111211
Sandwell Metropolitan Borough Council,http://www.sandwell.gov.uk/info/200202/performance_and_spending/1079/payments_over_867,01-Apr-2017,Childrens Services,BY THE BRIDGE LIMITED,Childrens Services,"3,081.90",Private Contractors,1718P01_CR00384,111211
Sandwell Metropolitan Borough Council,http://www.sandwell.gov.uk/info/200202/performance_and_spending/1079/payments_over_868,01-Apr-2017,Childrens Services,BY THE BRIDGE LIMITED,Childrens Services,"3,188.57",Private Contractors,1718P01_CR00385,111211
Sandwell Metropolitan Borough Council,http://www.sandwell.gov.uk/info/200202/performance_and_spending/1079/payments_over_869,20-Apr-2017,Childrens Services,CAMBIAN CHILDCARE LIMITED,Childrens Services,"10,049.97",Private Contractors,1718P01_CR00386,87974
Sandwell Metropolitan Borough Council,http://www.sandwell.gov.uk/info/200202/performance_and_spending/1079/payments_over_870,21-Apr-2017,Childrens Services,CAMBIAN CHILDCARE LIMITED,Childrens Services,"3,420.00",Private Contractors,1718P01_CR00387,87974
Sandwell Metropolitan Borough Council,http://www.sandwell.gov.uk/info/200202/performance_and_spending/1079/payments_over_871,01-Apr-2017,Childrens Services,CAMBIAN CHILDCARE LIMITED,Childrens Services,"20,571.30",Private Contractors,1718P01_CR00388,87974
Sandwell Metropolitan Borough Council,http://www.sandwell.gov.uk/info/200202/performance_and_spending/1079/payments_over_872,01-Apr-2017,Childrens Services,CAMBIAN CHILDCARE LIMITED,Childrens Services,"10,285.65",Private Contractors,1718P01_CR00389,87974
Sandwell Metropolitan Borough Council,http://www.sandwell.gov.uk/info/200202/performance_and_spending/1079/payments_over_873,01-Apr-2017,Childrens Services,CAPSTONE FOSTER CARE (SOUTH EAST) LTD,Childrens Services,"3,040.42",Private Contractors,1718P01_CR00390,99741
Sandwell Metropolitan Borough Council,http://www.sandwell.gov.uk/info/200202/performance_and_spending/1079/payments_over_874,01-Apr-2017,Childrens Services,CAPSTONE FOSTER CARE (SOUTH EAST) LTD,Childrens Services,"3,246.05",Private Contractors,1718P01_CR00391,99741
Sandwell Metropolitan Borough Council,http://www.sandwell.gov.uk/info/200202/performance_and_spending/1079/payments_over_875,01-Apr-2017,Childrens Services,CAPSTONE FOSTER CARE (SOUTH EAST) LTD,Childrens Services,870.65,Private Contractors,1718P01_CR00392,99741
Sandwell Metropolitan Borough Council,http://www.sandwell.gov.uk/info/200202/performance_and_spending/1079/payments_over_876,01-Apr-2017,Childrens Services,CAPSTONE FOSTER CARE (SOUTH EAST) LTD,Childrens Services,"2,592.33",Private Contractors,1718P01_CR00393,99741
Sandwell Metropolitan Borough Council,http://www.sandwell.gov.uk/info/200202/performance_and_spending/1079/payments_over_877,01-Apr-2017,Childrens Services,CARE FIRST SERVICES,Childrens Services,"2,946.51",Rents,1718P01_CR00394,47318
Sandwell Metropolitan Borough Council,http://www.sandwell.gov.uk/info/200202/performance_and_spending/1079/payments_over_878,01-Apr-2017,Childrens Services,CARE FIRST SERVICES,Childrens Services,"2,657.01",Rents,1718P01_CR00395,47318
Sandwell Metropolitan Borough Council,http://www.sandwell.gov.uk/info/200202/performance_and_spending/1079/payments_over_879,01-Apr-2017,Childrens Services,CHILD CARE BUREAU LIMITED,Childrens Services,"3,458.40",Private Contractors,1718P01_CR00396,104650
Sandwell Metropolitan Borough Council,http://www.sandwell.gov.uk/info/200202/performance_and_spending/1079/payments_over_880,03-Apr-2017,Childrens Services,CHILDREN ALWAYS FIRST LTD,Childrens Services,"12,857.78",Private Contractors,1718P01_CR00397,127648
Sandwell Metropolitan Borough Council,http://www.sandwell.gov.uk/info/200202/performance_and_spending/1079/payments_over_881,01-Apr-2017,Childrens Services,CLIFFORD HOUSE FOSTERING LTD,Childrens Services,"3,321.34",Private Contractors,1718P01_CR00398,01423849
Sandwell Metropolitan Borough Council,http://www.sandwell.gov.uk/info/200202/performance_and_spending/1079/payments_over_882,01-Apr-2017,Childrens Services,CLIFFORD HOUSE FOSTERING LTD,Childrens Services,"3,542.99",Private Contractors,1718P01_CR00399,01423849
Sandwell Metropolitan Borough Council,http://www.sandwell.gov.uk/info/200202/performance_and_spending/1079/payments_over_883,01-Apr-2017,Childrens Services,CLIFFORD HOUSE FOSTERING LTD,Childrens Services,"3,542.99",Private Contractors,1718P01_CR00400,01423849
Sandwell Metropolitan Borough Council,http://www.sandwell.gov.uk/info/200202/performance_and_spending/1079/payments_over_884,01-Apr-2017,Childrens Services,CLIFFORD HOUSE FOSTERING LTD,Childrens Services,"3,542.99",Private Contractors,1718P01_CR00401,01423849
Sandwell Metropolitan Borough Council,http://www.sandwell.gov.uk/info/200202/performance_and_spending/1079/payments_over_885,01-Apr-2017,Childrens Services,COMPASS CHILDREN'S HOMES LTD,Childrens Services,"18,514.20",Private Contractors,1718P01_CR00402,127075
Sandwell Metropolitan Borough Council,http://www.sandwell.gov.uk/info/200202/performance_and_spending/1079/payments_over_886,01-Apr-2017,Childrens Services,COMPASS FOSTERING,Childrens Services,"2,567.43",Private Contractors,1718P01_CR00403,118108
Sandwell Metropolitan Borough Council,http://www.sandwell.gov.uk/info/200202/performance_and_spending/1079/payments_over_887,01-Apr-2017,Childrens Services,COMPASS FOSTERING,Childrens Services,"3,202.80",Private Contractors,1718P01_CR00404,118108
Sandwell Metropolitan Borough Council,http://www.sandwell.gov.uk/info/200202/performance_and_spending/1079/payments_over_888,01-Apr-2017,Childrens Services,COMPASS FOSTERING,Childrens Services,"3,110.18",Private Contractors,1718P01_CR00405,118108
Sandwell Metropolitan Borough Council,http://www.sandwell.gov.uk/info/200202/performance_and_spending/1079/payments_over_889,01-Apr-2017,Childrens Services,COMPASS FOSTERING,Childrens Services,"2,781.00",Private Contractors,1718P01_CR00406,118108
Sandwell Metropolitan Borough Council,http://www.sandwell.gov.uk/info/200202/performance_and_spending/1079/payments_over_890,01-Apr-2017,Childrens Services,COMPASS FOSTERING,Childrens Services,"3,090.00",Private Contractors,1718P01_CR00407,118108
Sandwell Metropolitan Borough Council,http://www.sandwell.gov.uk/info/200202/performance_and_spending/1079/payments_over_891,06-Apr-2017,Childrens Services,COVE CARE FOSTERING,Childrens Services,"3,456.60",Private Contractors,1718P01_CR00408,113767
Sandwell Metropolitan Borough Council,http://www.sandwell.gov.uk/info/200202/performance_and_spending/1079/payments_over_892,01-Apr-2017,Childrens Services,COVE CARE RESIDENTIAL LIMITED,Childrens Services,"16,714.28",Private Contractors,1718P01_CR00409,111952
Sandwell Metropolitan Borough Council,http://www.sandwell.gov.uk/info/200202/performance_and_spending/1079/payments_over_893,01-Apr-2017,Childrens Services,COVE CARE RESIDENTIAL LIMITED,Childrens Services,"14,142.85",Private Contractors,1718P01_CR00410,111952
Sandwell Metropolitan Borough Council,http://www.sandwell.gov.uk/info/200202/performance_and_spending/1079/payments_over_894,04-Apr-2017,Childrens Services,DR LUCY BANNISTER,Childrens Services,"2,330.00",Private Contractors,1718P01_CR00411,123005
Sandwell Metropolitan Borough Council,http://www.sandwell.gov.uk/info/200202/performance_and_spending/1079/payments_over_895,01-Apr-2017,Childrens Services,FAMILY CARE FOSTERING LTD.,Childrens Services,"3,329.37",Private Contractors,1718P01_CR00412,125052
Sandwell Metropolitan Borough Council,http://www.sandwell.gov.uk/info/200202/performance_and_spending/1079/payments_over_896,01-Apr-2017,Childrens Services,FAMILY FOSTER CARE LIMITED,Childrens Services,"3,321.30",Private Contractors,1718P01_CR00413,129228
Sandwell Metropolitan Borough Council,http://www.sandwell.gov.uk/info/200202/performance_and_spending/1079/payments_over_897,15-Apr-2017,Childrens Services,FOSTER CARE ASSOCIATES LIMITED,Childrens Services,"3,129.75",Private Contractors,1718P01_CR00414,01749416
Sandwell Metropolitan Borough Council,http://www.sandwell.gov.uk/info/200202/performance_and_spending/1079/payments_over_898,15-Apr-2017,Childrens Services,FOSTER CARE ASSOCIATES LIMITED,Childrens Services,"3,171.48",Private Contractors,1718P01_CR00415,01749416
Sandwell Metropolitan Borough Council,http://www.sandwell.gov.uk/info/200202/performance_and_spending/1079/payments_over_899,15-Apr-2017,Childrens Services,FOSTER CARE ASSOCIATES LIMITED,Childrens Services,"3,210.00",Private Contractors,1718P01_CR00416,01749416
Sandwell Metropolitan Borough Council,http://www.sandwell.gov.uk/info/200202/performance_and_spending/1079/payments_over_900,15-Apr-2017,Childrens Services,FOSTER CARE ASSOCIATES LIMITED,Childrens Services,"3,338.40",Private Contractors,1718P01_CR00417,01749416
Sandwell Metropolitan Borough Council,http://www.sandwell.gov.uk/info/200202/performance_and_spending/1079/payments_over_901,20-Apr-2017,Childrens Services,FOSTER CARE ASSOCIATES LIMITED,Childrens Services,"1,168.44",Private Contractors,1718P01_CR00418,01749416
Sandwell Metropolitan Borough Council,http://www.sandwell.gov.uk/info/200202/performance_and_spending/1079/payments_over_902,20-Apr-2017,Childrens Services,FOSTER CARE ASSOCIATES LIMITED,Childrens Services,"1,224.08",Private Contractors,1718P01_CR00419,01749416
Sandwell Metropolitan Borough Council,http://www.sandwell.gov.uk/info/200202/performance_and_spending/1079/payments_over_903,15-Apr-2017,Childrens Services,FOSTER CARE ASSOCIATES LIMITED,Childrens Services,"2,903.94",Private Contractors,1718P01_CR00420,01749416
Sandwell Metropolitan Borough Council,http://www.sandwell.gov.uk/info/200202/performance_and_spending/1079/payments_over_904,15-Apr-2017,Childrens Services,FOSTER CARE ASSOCIATES LIMITED,Childrens Services,"3,532.57",Private Contractors,1718P01_CR00421,01749416
Sandwell Metropolitan Borough Council,http://www.sandwell.gov.uk/info/200202/performance_and_spending/1079/payments_over_905,15-Apr-2017,Childrens Services,FOSTER CARE ASSOCIATES LIMITED,Childrens Services,"3,049.50",Private Contractors,1718P01_CR00422,01749416
Sandwell Metropolitan Borough Council,http://www.sandwell.gov.uk/info/200202/performance_and_spending/1079/payments_over_906,15-Apr-2017,Childrens Services,FOSTER CARE ASSOCIATES LIMITED,Childrens Services,"2,829.48",Private Contractors,1718P01_CR00423,01749416
Sandwell Metropolitan Borough Council,http://www.sandwell.gov.uk/info/200202/performance_and_spending/1079/payments_over_907,15-Apr-2017,Childrens Services,FOSTER CARE ASSOCIATES LIMITED,Childrens Services,"3,049.50",Private Contractors,1718P01_CR00424,01749416
Sandwell Metropolitan Borough Council,http://www.sandwell.gov.uk/info/200202/performance_and_spending/1079/payments_over_908,15-Apr-2017,Childrens Services,FOSTER CARE ASSOCIATES LIMITED,Childrens Services,"3,931.86",Private Contractors,1718P01_CR00425,01749416
Sandwell Metropolitan Borough Council,http://www.sandwell.gov.uk/info/200202/performance_and_spending/1079/payments_over_909,01-Apr-2017,Childrens Services,FOSTER CARE ASSOCIATES LIMITED,Childrens Services,"3,449.68",Private Contractors,1718P01_CR00426,01749416
Sandwell Metropolitan Borough Council,http://www.sandwell.gov.uk/info/200202/performance_and_spending/1079/payments_over_910,15-Apr-2017,Childrens Services,FOSTER CARE ASSOCIATES LIMITED,Childrens Services,"3,338.40",Private Contractors,1718P01_CR00427,01749416
Sandwell Metropolitan Borough Council,http://www.sandwell.gov.uk/info/200202/performance_and_spending/1079/payments_over_911,15-Apr-2017,Childrens Services,FOSTER CARE ASSOCIATES LIMITED,Childrens Services,"3,171.48",Private Contractors,1718P01_CR00428,01749416
Sandwell Metropolitan Borough Council,http://www.sandwell.gov.uk/info/200202/performance_and_spending/1079/payments_over_912,15-Apr-2017,Childrens Services,FOSTER CARE ASSOCIATES LIMITED,Childrens Services,"3,171.48",Private Contractors,1718P01_CR00429,01749416
Sandwell Metropolitan Borough Council,http://www.sandwell.gov.uk/info/200202/performance_and_spending/1079/payments_over_913,15-Apr-2017,Childrens Services,FOSTER CARE ASSOCIATES LIMITED,Childrens Services,"3,129.75",Private Contractors,1718P01_CR00430,01749416
Sandwell Metropolitan Borough Council,http://www.sandwell.gov.uk/info/200202/performance_and_spending/1079/payments_over_914,15-Apr-2017,Childrens Services,FOSTER CARE ASSOCIATES LIMITED,Childrens Services,"2,581.28",Private Contractors,1718P01_CR00431,01749416
Sandwell Metropolitan Borough Council,http://www.sandwell.gov.uk/info/200202/performance_and_spending/1079/payments_over_915,15-Apr-2017,Childrens Services,FOSTER CARE ASSOCIATES LIMITED,Childrens Services,"3,280.35",Private Contractors,1718P01_CR00432,01749416
Sandwell Metropolitan Borough Council,http://www.sandwell.gov.uk/info/200202/performance_and_spending/1079/payments_over_916,15-Apr-2017,Childrens Services,FOSTERING PRIORY,Childrens Services,"3,364.29",Private Contractors,1718P01_CR00433,124919
Sandwell Metropolitan Borough Council,http://www.sandwell.gov.uk/info/200202/performance_and_spending/1079/payments_over_917,01-Apr-2017,Childrens Services,FOSTERING SOLUTIONS LIMITED   01,Childrens Services,"3,231.78",Private Contractors,1718P01_CR00434,121510
Sandwell Metropolitan Borough Council,http://www.sandwell.gov.uk/info/200202/performance_and_spending/1079/payments_over_918,01-Apr-2017,Childrens Services,FOSTERPLUS LTD,Childrens Services,"3,460.80",Private Contractors,1718P01_CR00435,01646974
Sandwell Metropolitan Borough Council,http://www.sandwell.gov.uk/info/200202/performance_and_spending/1079/payments_over_919,01-Apr-2017,Childrens Services,FOUNDATION FOSTERING,Childrens Services,"3,107.10",Private Contractors,1718P01_CR00436,126627
Sandwell Metropolitan Borough Council,http://www.sandwell.gov.uk/info/200202/performance_and_spending/1079/payments_over_920,01-Apr-2017,Childrens Services,FREEDOM FOSTERING LTD,Childrens Services,"2,592.86",Private Contractors,1718P01_CR00437,126728
Sandwell Metropolitan Borough Council,http://www.sandwell.gov.uk/info/200202/performance_and_spending/1079/payments_over_921,01-Apr-2017,Childrens Services,FREEDOM FOSTERING LTD,Childrens Services,"1,695.75",Private Contractors,1718P01_CR00438,126728
Sandwell Metropolitan Borough Council,http://www.sandwell.gov.uk/info/200202/performance_and_spending/1079/payments_over_922,01-Apr-2017,Childrens Services,FREEDOM FOSTERING LTD,Childrens Services,"9,771.42",Private Contractors,1718P01_CR00439,126728
Sandwell Metropolitan Borough Council,http://www.sandwell.gov.uk/info/200202/performance_and_spending/1079/payments_over_923,12-Apr-2017,Childrens Services,FUTURE HEALTH AND SOCIAL CARE ASSOCIATION C.I.C.,Childrens Services,"3,440.70",Private Contractors,1718P01_CR00440,83162
Sandwell Metropolitan Borough Council,http://www.sandwell.gov.uk/info/200202/performance_and_spending/1079/payments_over_924,12-Apr-2017,Childrens Services,FUTURE HEALTH AND SOCIAL CARE ASSOCIATION C.I.C.,Childrens Services,"3,008.70",Private Contractors,1718P01_CR00441,83162
Sandwell Metropolitan Borough Council,http://www.sandwell.gov.uk/info/200202/performance_and_spending/1079/payments_over_925,01-Apr-2017,Childrens Services,FUTURE HORIZONS SUPPORT LTD,Childrens Services,"3,000.00",Rents,1718P01_CR00442,124310
Sandwell Metropolitan Borough Council,http://www.sandwell.gov.uk/info/200202/performance_and_spending/1079/payments_over_926,01-Apr-2017,Childrens Services,FUTURE IN MIND LTD,Childrens Services,"27,428.58",Private Contractors,1718P01_CR00443,129227
Sandwell Metropolitan Borough Council,http://www.sandwell.gov.uk/info/200202/performance_and_spending/1079/payments_over_927,01-Apr-2017,Childrens Services,FUTURE IN MIND LTD,Childrens Services,"1,196.00",Private Contractors,1718P01_CR00444,129227
Sandwell Metropolitan Borough Council,http://www.sandwell.gov.uk/info/200202/performance_and_spending/1079/payments_over_928,11-Apr-2017,Childrens Services,FUTURE OPTIONS LIMITED,Childrens Services,"7,750.00",Rents,1718P01_CR00445,128646
Sandwell Metropolitan Borough Council,http://www.sandwell.gov.uk/info/200202/performance_and_spending/1079/payments_over_929,11-Apr-2017,Childrens Services,FUTURE OPTIONS LIMITED,Childrens Services,810.60,Rents,1718P01_CR00446,128646
Sandwell Metropolitan Borough Council,http://www.sandwell.gov.uk/info/200202/performance_and_spending/1079/payments_over_930,01-Apr-2017,Childrens Services,HEATH FARM FOSTERING,Childrens Services,"5,922.90",Private Contractors,1718P01_CR00447,128934
Sandwell Metropolitan Borough Council,http://www.sandwell.gov.uk/info/200202/performance_and_spending/1079/payments_over_931,01-Apr-2017,Childrens Services,HORIZON CARE AND EDUCATION GROUP LIMITED,Childrens Services,"13,204.20",Private Contractors,1718P01_CR00448,114884
Sandwell Metropolitan Borough Council,http://www.sandwell.gov.uk/info/200202/performance_and_spending/1079/payments_over_932,01-Apr-2017,Childrens Services,HORIZON CARE AND EDUCATION GROUP LIMITED,Childrens Services,"12,857.10",Private Contractors,1718P01_CR00449,114884
Sandwell Metropolitan Borough Council,http://www.sandwell.gov.uk/info/200202/performance_and_spending/1079/payments_over_933,01-Apr-2017,Childrens Services,HORIZON CARE AND EDUCATION GROUP LIMITED,Childrens Services,"13,204.20",Private Contractors,1718P01_CR00450,114884
Sandwell Metropolitan Borough Council,http://www.sandwell.gov.uk/info/200202/performance_and_spending/1079/payments_over_934,01-Apr-2017,Childrens Services,IDEAL FOSTERING                                                                  01,Childrens Services,"3,573.68",Private Contractors,1718P01_CR00451,114004
Sandwell Metropolitan Borough Council,http://www.sandwell.gov.uk/info/200202/performance_and_spending/1079/payments_over_935,01-Apr-2017,Childrens Services,IDEAL FOSTERING                                                                  01,Childrens Services,"3,776.67",Private Contractors,1718P01_CR00452,114004
Sandwell Metropolitan Borough Council,http://www.sandwell.gov.uk/info/200202/performance_and_spending/1079/payments_over_936,01-Apr-2017,Childrens Services,IDEAL FOSTERING                                                                  01,Childrens Services,868.00,Private Contractors,1718P01_CR00453,114004
Sandwell Metropolitan Borough Council,http://www.sandwell.gov.uk/info/200202/performance_and_spending/1079/payments_over_937,01-Apr-2017,Childrens Services,IDEAL FOSTERING                                                                  01,Childrens Services,868.00,Private Contractors,1718P01_CR00454,114004
Sandwell Metropolitan Borough Council,http://www.sandwell.gov.uk/info/200202/performance_and_spending/1079/payments_over_938,01-Apr-2017,Childrens Services,IDEAL FOSTERING                                                                  01,Childrens Services,868.00,Private Contractors,1718P01_CR00455,114004
Sandwell Metropolitan Borough Council,http://www.sandwell.gov.uk/info/200202/performance_and_spending/1079/payments_over_939,01-Apr-2017,Childrens Services,IKON FOSTERING LTD,Childrens Services,"3,737.57",Private Contractors,1718P01_CR00456,127906
Sandwell Metropolitan Borough Council,http://www.sandwell.gov.uk/info/200202/performance_and_spending/1079/payments_over_940,15-Apr-2017,Childrens Services,IKON FOSTERING LTD,Childrens Services,"6,229.33",Private Contractors,1718P01_CR00457,127906
Sandwell Metropolitan Borough Council,http://www.sandwell.gov.uk/info/200202/performance_and_spending/1079/payments_over_941,15-Apr-2017,Childrens Services,IKON FOSTERING LTD,Childrens Services,"7,890.48",Private Contractors,1718P01_CR00458,127906
Sandwell Metropolitan Borough Council,http://www.sandwell.gov.uk/info/200202/performance_and_spending/1079/payments_over_942,01-Apr-2017,Childrens Services,IKON FOSTERING LTD,Childrens Services,"3,390.96",Private Contractors,1718P01_CR00459,127906
Sandwell Metropolitan Borough Council,http://www.sandwell.gov.uk/info/200202/performance_and_spending/1079/payments_over_943,01-Apr-2017,Childrens Services,IKON FOSTERING LTD,Childrens Services,"3,754.28",Private Contractors,1718P01_CR00460,127906
Sandwell Metropolitan Borough Council,http://www.sandwell.gov.uk/info/200202/performance_and_spending/1079/payments_over_944,03-Apr-2017,Childrens Services,INMIND CHILDRENS SERVICES LIMITED,Childrens Services,"20,785.80",Private Contractors,1718P01_CR00461,126481
Sandwell Metropolitan Borough Council,http://www.sandwell.gov.uk/info/200202/performance_and_spending/1079/payments_over_945,02-Apr-2017,Childrens Services,J.A.C.S SPECIALIST LTD,Childrens Services,527.15,Rents,1718P01_CR00462,129273
Sandwell Metropolitan Borough Council,http://www.sandwell.gov.uk/info/200202/performance_and_spending/1079/payments_over_946,12-Apr-2017,Childrens Services,J.A.C.S SPECIALIST LTD,Childrens Services,615.00,Rents,1718P01_CR00463,129273
Sandwell Metropolitan Borough Council,http://www.sandwell.gov.uk/info/200202/performance_and_spending/1079/payments_over_947,18-Apr-2017,Childrens Services,J.A.C.S SPECIALIST LTD,Childrens Services,615.00,Rents,1718P01_CR00464,129273
Sandwell Metropolitan Borough Council,http://www.sandwell.gov.uk/info/200202/performance_and_spending/1079/payments_over_948,23-Apr-2017,Childrens Services,J.A.C.S SPECIALIST LTD,Childrens Services,615.00,Rents,1718P01_CR00465,129273
Sandwell Metropolitan Borough Council,http://www.sandwell.gov.uk/info/200202/performance_and_spending/1079/payments_over_949,02-Apr-2017,Childrens Services,J.A.C.S SPECIALIST LTD,Childrens Services,615.00,Rents,1718P01_CR00466,129273
Sandwell Metropolitan Borough Council,http://www.sandwell.gov.uk/info/200202/performance_and_spending/1079/payments_over_950,12-Apr-2017,Childrens Services,J.A.C.S SPECIALIST LTD,Childrens Services,615.00,Rents,1718P01_CR00467,129273
Sandwell Metropolitan Borough Council,http://www.sandwell.gov.uk/info/200202/performance_and_spending/1079/payments_over_951,18-Apr-2017,Childrens Services,J.A.C.S SPECIALIST LTD,Childrens Services,615.00,Rents,1718P01_CR00468,129273
Sandwell Metropolitan Borough Council,http://www.sandwell.gov.uk/info/200202/performance_and_spending/1079/payments_over_952,23-Apr-2017,Childrens Services,J.A.C.S SPECIALIST LTD,Childrens Services,615.00,Rents,1718P01_CR00469,129273
Sandwell Metropolitan Borough Council,http://www.sandwell.gov.uk/info/200202/performance_and_spending/1079/payments_over_953,02-Apr-2017,Childrens Services,J.A.C.S SPECIALIST LTD,Childrens Services,615.00,Rents,1718P01_CR00470,129273
Sandwell Metropolitan Borough Council,http://www.sandwell.gov.uk/info/200202/performance_and_spending/1079/payments_over_954,01-Apr-2017,Childrens Services,JUVENIS CARE SERVICES LTD,Childrens Services,"3,278.57",Private Contractors,1718P01_CR00471,127941
Sandwell Metropolitan Borough Council,http://www.sandwell.gov.uk/info/200202/performance_and_spending/1079/payments_over_955,01-Apr-2017,Childrens Services,JUVENIS CARE SERVICES LTD,Childrens Services,"2,550.00",Private Contractors,1718P01_CR00472,127941
Sandwell Metropolitan Borough Council,http://www.sandwell.gov.uk/info/200202/performance_and_spending/1079/payments_over_956,01-Apr-2017,Childrens Services,MATCH FOSTER CARE LIMITED,Childrens Services,"3,330.00",Private Contractors,1718P01_CR00473,126983
Sandwell Metropolitan Borough Council,http://www.sandwell.gov.uk/info/200202/performance_and_spending/1079/payments_over_957,19-Apr-2017,Childrens Services,MATCH FOSTER CARE LIMITED,Childrens Services,"1,854.00",Private Contractors,1718P01_CR00474,126983
Sandwell Metropolitan Borough Council,http://www.sandwell.gov.uk/info/200202/performance_and_spending/1079/payments_over_958,03-Apr-2017,Childrens Services,MULBERRY HOUSE CARE HOMES LIMITED,Childrens Services,"11,357.13",Private Contractors,1718P01_CR00475,119560
Sandwell Metropolitan Borough Council,http://www.sandwell.gov.uk/info/200202/performance_and_spending/1079/payments_over_959,11-Apr-2017,Childrens Services,N H CARE LIMITED,Childrens Services,"7,200.00",Private Contractors,1718P01_CR00476,102136
Sandwell Metropolitan Borough Council,http://www.sandwell.gov.uk/info/200202/performance_and_spending/1079/payments_over_960,11-Apr-2017,Childrens Services,N H CARE LIMITED,Childrens Services,"11,200.00",Private Contractors,1718P01_CR00477,102136
Sandwell Metropolitan Borough Council,http://www.sandwell.gov.uk/info/200202/performance_and_spending/1079/payments_over_961,11-Apr-2017,Childrens Services,N H CARE LIMITED,Childrens Services,"10,000.00",Private Contractors,1718P01_CR00478,102136
Sandwell Metropolitan Borough Council,http://www.sandwell.gov.uk/info/200202/performance_and_spending/1079/payments_over_962,11-Apr-2017,Childrens Services,N H CARE LIMITED,Childrens Services,"10,000.00",Private Contractors,1718P01_CR00479,102136
Sandwell Metropolitan Borough Council,http://www.sandwell.gov.uk/info/200202/performance_and_spending/1079/payments_over_963,01-Apr-2017,Childrens Services,NATIONAL FOSTERING AGENCY,Childrens Services,"6,332.68",Private Contractors,1718P01_CR00480,91171
Sandwell Metropolitan Borough Council,http://www.sandwell.gov.uk/info/200202/performance_and_spending/1079/payments_over_964,01-Apr-2017,Childrens Services,NATIONAL FOSTERING AGENCY,Childrens Services,"1,669.35",Private Contractors,1718P01_CR00481,91171
Sandwell Metropolitan Borough Council,http://www.sandwell.gov.uk/info/200202/performance_and_spending/1079/payments_over_965,01-Apr-2017,Childrens Services,NATIONAL FOSTERING AGENCY,Childrens Services,"3,449.99",Private Contractors,1718P01_CR00482,91171
Sandwell Metropolitan Borough Council,http://www.sandwell.gov.uk/info/200202/performance_and_spending/1079/payments_over_966,01-Apr-2017,Childrens Services,NATIONAL FOSTERING AGENCY,Childrens Services,"3,380.86",Private Contractors,1718P01_CR00483,91171
Sandwell Metropolitan Borough Council,http://www.sandwell.gov.uk/info/200202/performance_and_spending/1079/payments_over_967,01-Apr-2017,Childrens Services,NATIONAL FOSTERING AGENCY,Childrens Services,"4,951.01",Private Contractors,1718P01_CR00484,91171
Sandwell Metropolitan Borough Council,http://www.sandwell.gov.uk/info/200202/performance_and_spending/1079/payments_over_968,12-Apr-2017,Childrens Services,NEW CHAPTERS FOSTER CARE,Childrens Services,"3,377.10",Private Contractors,1718P01_CR00485,127540
Sandwell Metropolitan Borough Council,http://www.sandwell.gov.uk/info/200202/performance_and_spending/1079/payments_over_969,01-Apr-2017,Childrens Services,NEXUS FOSTERING LIMITED,Childrens Services,"3,151.15",Private Contractors,1718P01_CR00486,27522
Sandwell Metropolitan Borough Council,http://www.sandwell.gov.uk/info/200202/performance_and_spending/1079/payments_over_970,01-Apr-2017,Childrens Services,NEXUS FOSTERING LIMITED,Childrens Services,"3,003.90",Private Contractors,1718P01_CR00487,27522
Sandwell Metropolitan Borough Council,http://www.sandwell.gov.uk/info/200202/performance_and_spending/1079/payments_over_971,01-Apr-2017,Childrens Services,NEXUS FOSTERING LIMITED,Childrens Services,"3,082.95",Private Contractors,1718P01_CR00488,27522
Sandwell Metropolitan Borough Council,http://www.sandwell.gov.uk/info/200202/performance_and_spending/1079/payments_over_972,01-Apr-2017,Childrens Services,NEXUS FOSTERING LIMITED,Childrens Services,"3,003.90",Private Contractors,1718P01_CR00489,27522
Sandwell Metropolitan Borough Council,http://www.sandwell.gov.uk/info/200202/performance_and_spending/1079/payments_over_973,01-Apr-2017,Childrens Services,NEXUS FOSTERING LIMITED,Childrens Services,"3,162.00",Private Contractors,1718P01_CR00490,27522
Sandwell Metropolitan Borough Council,http://www.sandwell.gov.uk/info/200202/performance_and_spending/1079/payments_over_974,01-Apr-2017,Childrens Services,NEXUS FOSTERING LIMITED,Childrens Services,"2,962.05",Private Contractors,1718P01_CR00491,27522
Sandwell Metropolitan Borough Council,http://www.sandwell.gov.uk/info/200202/performance_and_spending/1079/payments_over_975,01-Apr-2017,Childrens Services,NEXUS FOSTERING LIMITED,Childrens Services,"3,162.00",Private Contractors,1718P01_CR00492,27522
Sandwell Metropolitan Borough Council,http://www.sandwell.gov.uk/info/200202/performance_and_spending/1079/payments_over_976,01-Apr-2017,Childrens Services,NEXUS FOSTERING LIMITED,Childrens Services,"3,082.95",Private Contractors,1718P01_CR00493,27522
Sandwell Metropolitan Borough Council,http://www.sandwell.gov.uk/info/200202/performance_and_spending/1079/payments_over_977,01-Apr-2017,Childrens Services,NEXUS FOSTERING LIMITED,Childrens Services,"3,234.23",Private Contractors,1718P01_CR00494,27522
Sandwell Metropolitan Borough Council,http://www.sandwell.gov.uk/info/200202/performance_and_spending/1079/payments_over_978,24-Apr-2017,Childrens Services,OLDSWINFORD HOSPITAL SCHOOL,Childrens Services,"3,800.00",Private Contractors,1718P01_CR00495,15537
Sandwell Metropolitan Borough Council,http://www.sandwell.gov.uk/info/200202/performance_and_spending/1079/payments_over_979,01-Apr-2017,Childrens Services,OPTIONS FOSTERING (OPTIONS BESD 1 LTD),Childrens Services,"5,006.57",Private Contractors,1718P01_CR00496,116747
Sandwell Metropolitan Borough Council,http://www.sandwell.gov.uk/info/200202/performance_and_spending/1079/payments_over_980,01-Apr-2017,Childrens Services,OPTIONS FOSTERING (OPTIONS BESD 1 LTD),Childrens Services,"5,006.57",Private Contractors,1718P01_CR00497,116747
Sandwell Metropolitan Borough Council,http://www.sandwell.gov.uk/info/200202/performance_and_spending/1079/payments_over_981,01-Apr-2017,Childrens Services,PATHWAY CARE (MIDLANDS) LTD,Childrens Services,"2,989.21",Private Contractors,1718P01_CR00498,24551
Sandwell Metropolitan Borough Council,http://www.sandwell.gov.uk/info/200202/performance_and_spending/1079/payments_over_982,01-Apr-2017,Childrens Services,PATHWAY CARE (MIDLANDS) LTD,Childrens Services,"2,828.50",Private Contractors,1718P01_CR00499,24551
Sandwell Metropolitan Borough Council,http://www.sandwell.gov.uk/info/200202/performance_and_spending/1079/payments_over_983,01-Apr-2017,Childrens Services,PATHWAY CARE (MIDLANDS) LTD,Childrens Services,"3,114.76",Private Contractors,1718P01_CR00500,24551
Sandwell Metropolitan Borough Council,http://www.sandwell.gov.uk/info/200202/performance_and_spending/1079/payments_over_984,01-Apr-2017,Childrens Services,PATHWAY CARE (MIDLANDS) LTD,Childrens Services,"3,049.19",Private Contractors,1718P01_CR00501,24551
Sandwell Metropolitan Borough Council,http://www.sandwell.gov.uk/info/200202/performance_and_spending/1079/payments_over_985,01-Apr-2017,Childrens Services,PATHWAY CARE (MIDLANDS) LTD,Childrens Services,"3,114.76",Private Contractors,1718P01_CR00502,24551
Sandwell Metropolitan Borough Council,http://www.sandwell.gov.uk/info/200202/performance_and_spending/1079/payments_over_986,01-Apr-2017,Childrens Services,PATHWAY CARE (MIDLANDS) LTD,Childrens Services,"3,042.90",Private Contractors,1718P01_CR00503,24551
Sandwell Metropolitan Borough Council,http://www.sandwell.gov.uk/info/200202/performance_and_spending/1079/payments_over_987,01-Apr-2017,Childrens Services,PATHWAY CARE (MIDLANDS) LTD,Childrens Services,"2,981.75",Private Contractors,1718P01_CR00504,24551
Sandwell Metropolitan Borough Council,http://www.sandwell.gov.uk/info/200202/performance_and_spending/1079/payments_over_988,01-Apr-2017,Childrens Services,PATHWAY CARE (MIDLANDS) LTD,Childrens Services,"2,981.75",Private Contractors,1718P01_CR00505,24551
Sandwell Metropolitan Borough Council,http://www.sandwell.gov.uk/info/200202/performance_and_spending/1079/payments_over_989,01-Apr-2017,Childrens Services,PERPETUAL FOSTERING LIMITED,Childrens Services,"3,296.40",Private Contractors,1718P01_CR00506,127069
Sandwell Metropolitan Borough Council,http://www.sandwell.gov.uk/info/200202/performance_and_spending/1079/payments_over_990,01-Apr-2017,Childrens Services,PERPETUAL FOSTERING LIMITED,Childrens Services,"3,083.70",Private Contractors,1718P01_CR00507,127069
Sandwell Metropolitan Borough Council,http://www.sandwell.gov.uk/info/200202/performance_and_spending/1079/payments_over_991,04-Apr-2017,Childrens Services,POSITIVE OUTCOMES CHILDCARE LTD,Childrens Services,"12,000.00",Private Contractors,1718P01_CR00508,123018
Sandwell Metropolitan Borough Council,http://www.sandwell.gov.uk/info/200202/performance_and_spending/1079/payments_over_992,04-Apr-2017,Childrens Services,POSITIVE OUTCOMES CHILDCARE LTD,Childrens Services,"13,600.00",Private Contractors,1718P01_CR00509,123018
Sandwell Metropolitan Borough Council,http://www.sandwell.gov.uk/info/200202/performance_and_spending/1079/payments_over_993,19-Apr-2017,Childrens Services,POSITIVE PATHWAYS,Childrens Services,"12,985.71",Private Contractors,1718P01_CR00510,129315
Sandwell Metropolitan Borough Council,http://www.sandwell.gov.uk/info/200202/performance_and_spending/1079/payments_over_994,01-Apr-2017,Childrens Services,POSITIVE PATHWAYS,Childrens Services,"12,985.71",Private Contractors,1718P01_CR00511,129315
Sandwell Metropolitan Borough Council,http://www.sandwell.gov.uk/info/200202/performance_and_spending/1079/payments_over_995,01-Apr-2017,Childrens Services,PROGRESS CHILDRENS SERVICES LTD,Childrens Services,"4,062.56",Private Contractors,1718P01_CR00512,01702462
Sandwell Metropolitan Borough Council,http://www.sandwell.gov.uk/info/200202/performance_and_spending/1079/payments_over_996,01-Apr-2017,Childrens Services,PROGRESS CHILDRENS SERVICES LTD,Childrens Services,"4,645.93",Private Contractors,1718P01_CR00513,01702462
Sandwell Metropolitan Borough Council,http://www.sandwell.gov.uk/info/200202/performance_and_spending/1079/payments_over_997,01-Apr-2017,Childrens Services,PROGRESS CHILDRENS SERVICES LTD,Childrens Services,"4,071.42",Private Contractors,1718P01_CR00514,01702462
Sandwell Metropolitan Borough Council,http://www.sandwell.gov.uk/info/200202/performance_and_spending/1079/payments_over_998,01-Apr-2017,Childrens Services,PROGRESS CHILDRENS SERVICES LTD,Childrens Services,"3,224.57",Private Contractors,1718P01_CR00515,01702462
Sandwell Metropolitan Borough Council,http://www.sandwell.gov.uk/info/200202/performance_and_spending/1079/payments_over_999,01-Apr-2017,Childrens Services,PROGRESS CHILDRENS SERVICES LTD,Childrens Services,"5,716.50",Private Contractors,1718P01_CR00516,01702462
Sandwell Metropolitan Borough Council,http://www.sandwell.gov.uk/info/200202/performance_and_spending/1079/payments_over_1000,01-Apr-2017,Childrens Services,PROGRESS CHILDRENS SERVICES LTD,Childrens Services,"3,208.29",Private Contractors,1718P01_CR00517,01702462
Sandwell Metropolitan Borough Council,http://www.sandwell.gov.uk/info/200202/performance_and_spending/1079/payments_over_1001,01-Apr-2017,Childrens Services,PROGRESS CHILDRENS SERVICES LTD,Childrens Services,"6,416.58",Private Contractors,1718P01_CR00518,01702462
Sandwell Metropolitan Borough Council,http://www.sandwell.gov.uk/info/200202/performance_and_spending/1079/payments_over_1002,01-Apr-2017,Childrens Services,PROGRESS CHILDRENS SERVICES LTD,Childrens Services,"11,357.10",Private Contractors,1718P01_CR00519,01702462
Sandwell Metropolitan Borough Council,http://www.sandwell.gov.uk/info/200202/performance_and_spending/1079/payments_over_1003,01-Apr-2017,Childrens Services,PROGRESS CHILDRENS SERVICES LTD,Childrens Services,"2,992.00",Private Contractors,1718P01_CR00520,01702462
Sandwell Metropolitan Borough Council,http://www.sandwell.gov.uk/info/200202/performance_and_spending/1079/payments_over_1004,01-Apr-2017,Childrens Services,PROSPECTS FOR YOUNG PEOPLE LIMITED,Childrens Services,"3,531.90",Private Contractors,1718P01_CR00521,114177
Sandwell Metropolitan Borough Council,http://www.sandwell.gov.uk/info/200202/performance_and_spending/1079/payments_over_1005,01-Apr-2017,Childrens Services,PROSPECTS FOR YOUNG PEOPLE LIMITED,Childrens Services,"15,000.00",Private Contractors,1718P01_CR00522,114177
Sandwell Metropolitan Borough Council,http://www.sandwell.gov.uk/info/200202/performance_and_spending/1079/payments_over_1006,03-Apr-2017,Childrens Services,PYRAMID CARE,Childrens Services,"9,742.99",Private Contractors,1718P01_CR00523,116344
Sandwell Metropolitan Borough Council,http://www.sandwell.gov.uk/info/200202/performance_and_spending/1079/payments_over_1007,01-Apr-2017,Childrens Services,REGIONAL FOSTER PLACEMENTS LIMITED,Childrens Services,"4,871.34",Private Contractors,1718P01_CR00524,126749
Sandwell Metropolitan Borough Council,http://www.sandwell.gov.uk/info/200202/performance_and_spending/1079/payments_over_1008,01-Apr-2017,Childrens Services,SAFE BASE CARE LIMITED,Childrens Services,"9,600.00",Private Contractors,1718P01_CR00525,125264
Sandwell Metropolitan Borough Council,http://www.sandwell.gov.uk/info/200202/performance_and_spending/1079/payments_over_1009,10-Apr-2017,Childrens Services,SAFE BASE CARE LIMITED,Childrens Services,"9,600.00",Private Contractors,1718P01_CR00526,125264
Sandwell Metropolitan Borough Council,http://www.sandwell.gov.uk/info/200202/performance_and_spending/1079/payments_over_1010,01-Apr-2017,Childrens Services,SELECT CARE SOLUTIONS LIMITED,Childrens Services,576.44,Rents,1718P01_CR00527,120505
Sandwell Metropolitan Borough Council,http://www.sandwell.gov.uk/info/200202/performance_and_spending/1079/payments_over_1011,12-Apr-2017,Childrens Services,ST CHRISTOPHERS FELLOWSHIP,Childrens Services,"2,690.40",Private Contractors,1718P01_CR00528,74668
Sandwell Metropolitan Borough Council,http://www.sandwell.gov.uk/info/200202/performance_and_spending/1079/payments_over_1012,12-Apr-2017,Childrens Services,ST CHRISTOPHERS FELLOWSHIP,Childrens Services,"3,005.10",Private Contractors,1718P01_CR00529,74668
Sandwell Metropolitan Borough Council,http://www.sandwell.gov.uk/info/200202/performance_and_spending/1079/payments_over_1013,12-Apr-2017,Childrens Services,ST CHRISTOPHERS FELLOWSHIP,Childrens Services,"5,150.40",Private Contractors,1718P01_CR00530,74668
Sandwell Metropolitan Borough Council,http://www.sandwell.gov.uk/info/200202/performance_and_spending/1079/payments_over_1014,12-Apr-2017,Childrens Services,ST CHRISTOPHERS FELLOWSHIP,Childrens Services,"2,863.80",Private Contractors,1718P01_CR00531,74668
Sandwell Metropolitan Borough Council,http://www.sandwell.gov.uk/info/200202/performance_and_spending/1079/payments_over_1015,12-Apr-2017,Childrens Services,ST CHRISTOPHERS FELLOWSHIP,Childrens Services,"2,863.80",Private Contractors,1718P01_CR00532,74668
Sandwell Metropolitan Borough Council,http://www.sandwell.gov.uk/info/200202/performance_and_spending/1079/payments_over_1016,12-Apr-2017,Childrens Services,ST CHRISTOPHERS FELLOWSHIP,Childrens Services,"3,196.20",Private Contractors,1718P01_CR00533,74668
Sandwell Metropolitan Borough Council,http://www.sandwell.gov.uk/info/200202/performance_and_spending/1079/payments_over_1017,12-Apr-2017,Childrens Services,ST CHRISTOPHERS FELLOWSHIP,Childrens Services,"2,863.80",Private Contractors,1718P01_CR00534,74668
Sandwell Metropolitan Borough Council,http://www.sandwell.gov.uk/info/200202/performance_and_spending/1079/payments_over_1018,12-Apr-2017,Childrens Services,ST CHRISTOPHERS FELLOWSHIP,Childrens Services,"3,358.80",Private Contractors,1718P01_CR00535,74668
Sandwell Metropolitan Borough Council,http://www.sandwell.gov.uk/info/200202/performance_and_spending/1079/payments_over_1019,12-Apr-2017,Childrens Services,ST CHRISTOPHERS FELLOWSHIP,Childrens Services,"5,150.40",Private Contractors,1718P01_CR00536,74668
Sandwell Metropolitan Borough Council,http://www.sandwell.gov.uk/info/200202/performance_and_spending/1079/payments_over_1020,12-Apr-2017,Childrens Services,ST CHRISTOPHERS FELLOWSHIP,Childrens Services,"2,989.20",Private Contractors,1718P01_CR00537,74668
Sandwell Metropolitan Borough Council,http://www.sandwell.gov.uk/info/200202/performance_and_spending/1079/payments_over_1021,12-Apr-2017,Childrens Services,ST CHRISTOPHERS FELLOWSHIP,Childrens Services,"2,690.40",Private Contractors,1718P01_CR00538,74668
Sandwell Metropolitan Borough Council,http://www.sandwell.gov.uk/info/200202/performance_and_spending/1079/payments_over_1022,13-Apr-2017,Childrens Services,ST CHRISTOPHERS FELLOWSHIP,Childrens Services,"27,857.40",Private Contractors,1718P01_CR00539,74668
Sandwell Metropolitan Borough Council,http://www.sandwell.gov.uk/info/200202/performance_and_spending/1079/payments_over_1023,12-Apr-2017,Childrens Services,ST CHRISTOPHERS FELLOWSHIP,Childrens Services,"3,358.80",Private Contractors,1718P01_CR00540,74668
Sandwell Metropolitan Borough Council,http://www.sandwell.gov.uk/info/200202/performance_and_spending/1079/payments_over_1024,12-Apr-2017,Childrens Services,ST CHRISTOPHERS FELLOWSHIP,Childrens Services,"3,231.30",Private Contractors,1718P01_CR00541,74668
Sandwell Metropolitan Borough Council,http://www.sandwell.gov.uk/info/200202/performance_and_spending/1079/payments_over_1025,19-Apr-2017,Childrens Services,SUPPORTED LIVING FOR YOU,Childrens Services,"3,214.28",Rents,1718P01_CR00542,129225
Sandwell Metropolitan Borough Council,http://www.sandwell.gov.uk/info/200202/performance_and_spending/1079/payments_over_1026,01-Apr-2017,Childrens Services,TACT,Childrens Services,"3,132.89",Private Contractors,1718P01_CR00543,88843
Sandwell Metropolitan Borough Council,http://www.sandwell.gov.uk/info/200202/performance_and_spending/1079/payments_over_1027,01-Apr-2017,Childrens Services,TACT,Childrens Services,"2,999.48",Private Contractors,1718P01_CR00544,88843
Sandwell Metropolitan Borough Council,http://www.sandwell.gov.uk/info/200202/performance_and_spending/1079/payments_over_1028,06-Apr-2017,Childrens Services,THROUGHCARE HOUSING AND SUPPORT LTD,Childrens Services,"2,392.96",Rents,1718P01_CR00545,115771
Sandwell Metropolitan Borough Council,http://www.sandwell.gov.uk/info/200202/performance_and_spending/1079/payments_over_1029,01-Apr-2017,Childrens Services,THROUGHCARE HOUSING AND SUPPORT LTD,Childrens Services,"2,392.96",Rents,1718P01_CR00546,115771
Sandwell Metropolitan Borough Council,http://www.sandwell.gov.uk/info/200202/performance_and_spending/1079/payments_over_1030,01-Apr-2017,Childrens Services,THROUGHCARE HOUSING AND SUPPORT LTD,Childrens Services,"2,784.33",Rents,1718P01_CR00547,115771
Sandwell Metropolitan Borough Council,http://www.sandwell.gov.uk/info/200202/performance_and_spending/1079/payments_over_1031,01-Apr-2017,Childrens Services,UNITY RESIDENTIAL CARE SERVICES LIMITED,Childrens Services,"12,205.80",Private Contractors,1718P01_CR00548,126487
Sandwell Metropolitan Borough Council,http://www.sandwell.gov.uk/info/200202/performance_and_spending/1079/payments_over_1032,01-Apr-2017,Childrens Services,UNITY RESIDENTIAL CARE SERVICES LIMITED,Childrens Services,"10,526.36",Private Contractors,1718P01_CR00549,126487
Sandwell Metropolitan Borough Council,http://www.sandwell.gov.uk/info/200202/performance_and_spending/1079/payments_over_1033,13-Apr-2017,Childrens Services,UTOPIA CHILDRENS SERVICES LTD,Childrens Services,"11,071.43",Private Contractors,1718P01_CR00550,129462
Sandwell Metropolitan Borough Council,http://www.sandwell.gov.uk/info/200202/performance_and_spending/1079/payments_over_1034,03-Apr-2017,Childrens Services,REDACTED PERSONAL DATA,Childrens Services,801.90,Direct Payments - Traditional,1718P01_CR00551,REDACTED PERSONAL DATA
Sandwell Metropolitan Borough Council,http://www.sandwell.gov.uk/info/200202/performance_and_spending/1079/payments_over_1035,03-Apr-2017,Childrens Services,REDACTED PERSONAL DATA,Childrens Services,801.90,Direct Payments - Traditional,1718P01_CR00552,REDACTED PERSONAL DATA
Sandwell Metropolitan Borough Council,http://www.sandwell.gov.uk/info/200202/performance_and_spending/1079/payments_over_1036,03-Apr-2017,Childrens Services,REDACTED PERSONAL DATA,Childrens Services,"1,030.00",Direct Payments - Traditional,1718P01_CR00553,REDACTED PERSONAL DATA
Sandwell Metropolitan Borough Council,http://www.sandwell.gov.uk/info/200202/performance_and_spending/1079/payments_over_1037,18-Apr-2017,Childrens Services,REDACTED PERSONAL DATA,Childrens Services,600.00,Direct Payments - Traditional,1718P01_CR00554,REDACTED PERSONAL DATA
Sandwell Metropolitan Borough Council,http://www.sandwell.gov.uk/info/200202/performance_and_spending/1079/payments_over_1038,10-Apr-2017,Childrens Services,REDACTED PERSONAL DATA,Childrens Services,565.00,Direct Payments - Traditional,1718P01_CR00555,REDACTED PERSONAL DATA
Sandwell Metropolitan Borough Council,http://www.sandwell.gov.uk/info/200202/performance_and_spending/1079/payments_over_1039,01-Apr-2017,Childrens Services,REDACTED PERSONAL DATA,Childrens Services,616.00,Direct Payments,1718P01_CR00556,REDACTED PERSONAL DATA
Sandwell Metropolitan Borough Council,http://www.sandwell.gov.uk/info/200202/performance_and_spending/1079/payments_over_1040,01-Apr-2017,Childrens Services,REDACTED PERSONAL DATA,Childrens Services,704.00,Direct Payments,1718P01_CR00557,REDACTED PERSONAL DATA
Sandwell Metropolitan Borough Council,http://www.sandwell.gov.uk/info/200202/performance_and_spending/1079/payments_over_1041,01-Apr-2017,Childrens Services,REDACTED PERSONAL DATA,Childrens Services,674.88,Direct Payments,1718P01_CR00558,REDACTED PERSONAL DATA
Sandwell Metropolitan Borough Council,http://www.sandwell.gov.uk/info/200202/performance_and_spending/1079/payments_over_1042,01-Apr-2017,Childrens Services,REDACTED PERSONAL DATA,Childrens Services,642.00,Direct Payments,1718P01_CR00559,REDACTED PERSONAL DATA
Sandwell Metropolitan Borough Council,http://www.sandwell.gov.uk/info/200202/performance_and_spending/1079/payments_over_1043,01-Apr-2017,Childrens Services,REDACTED PERSONAL DATA,Childrens Services,672.84,Direct Payments,1718P01_CR00560,REDACTED PERSONAL DATA
Sandwell Metropolitan Borough Council,http://www.sandwell.gov.uk/info/200202/performance_and_spending/1079/payments_over_1044,01-Apr-2017,Childrens Services,REDACTED PERSONAL DATA,Childrens Services,805.20,Direct Payments,1718P01_CR00561,REDACTED PERSONAL DATA
Sandwell Metropolitan Borough Council,http://www.sandwell.gov.uk/info/200202/performance_and_spending/1079/payments_over_1045,01-Apr-2017,Childrens Services,REDACTED PERSONAL DATA,Childrens Services,754.20,Direct Payments,1718P01_CR00562,REDACTED PERSONAL DATA
Sandwell Metropolitan Borough Council,http://www.sandwell.gov.uk/info/200202/performance_and_spending/1079/payments_over_1046,01-Apr-2017,Childrens Services,REDACTED PERSONAL DATA,Childrens Services,583.00,Direct Payments,1718P01_CR00563,REDACTED PERSONAL DATA
Sandwell Metropolitan Borough Council,http://www.sandwell.gov.uk/info/200202/performance_and_spending/1079/payments_over_1047,01-Apr-2017,Childrens Services,REDACTED PERSONAL DATA,Childrens Services,530.00,Direct Payments,1718P01_CR00564,REDACTED PERSONAL DATA
Sandwell Metropolitan Borough Council,http://www.sandwell.gov.uk/info/200202/performance_and_spending/1079/payments_over_1048,01-Apr-2017,Childrens Services,REDACTED PERSONAL DATA,Childrens Services,605.00,Direct Payments,1718P01_CR00565,REDACTED PERSONAL DATA
Sandwell Metropolitan Borough Council,http://www.sandwell.gov.uk/info/200202/performance_and_spending/1079/payments_over_1049,01-Apr-2017,Childrens Services,REDACTED PERSONAL DATA,Childrens Services,672.00,Direct Payments,1718P01_CR00566,REDACTED PERSONAL DATA
Sandwell Metropolitan Borough Council,http://www.sandwell.gov.uk/info/200202/performance_and_spending/1079/payments_over_1050,01-Apr-2017,Childrens Services,REDACTED PERSONAL DATA,Childrens Services,858.00,Direct Payments,1718P01_CR00567,REDACTED PERSONAL DATA
Sandwell Metropolitan Borough Council,http://www.sandwell.gov.uk/info/200202/performance_and_spending/1079/payments_over_1051,01-Apr-2017,Childrens Services,REDACTED PERSONAL DATA,Childrens Services,544.08,Direct Payments,1718P01_CR00568,REDACTED PERSONAL DATA
Sandwell Metropolitan Borough Council,http://www.sandwell.gov.uk/info/200202/performance_and_spending/1079/payments_over_1052,01-Apr-2017,Childrens Services,REDACTED PERSONAL DATA,Childrens Services,"1,848.00",Direct Payments,1718P01_CR00569,REDACTED PERSONAL DATA
Sandwell Metropolitan Borough Council,http://www.sandwell.gov.uk/info/200202/performance_and_spending/1079/payments_over_1053,01-Apr-2017,Childrens Services,REDACTED PERSONAL DATA,Childrens Services,"1,280.00",Direct Payments,1718P01_CR00570,REDACTED PERSONAL DATA
Sandwell Metropolitan Borough Council,http://www.sandwell.gov.uk/info/200202/performance_and_spending/1079/payments_over_1054,01-Apr-2017,Childrens Services,REDACTED PERSONAL DATA,Childrens Services,981.20,Direct Payments,1718P01_CR00571,REDACTED PERSONAL DATA
Sandwell Metropolitan Borough Council,http://www.sandwell.gov.uk/info/200202/performance_and_spending/1079/payments_over_1055,01-Apr-2017,Childrens Services,REDACTED PERSONAL DATA,Childrens Services,756.80,Direct Payments,1718P01_CR00572,REDACTED PERSONAL DATA
Sandwell Metropolitan Borough Council,http://www.sandwell.gov.uk/info/200202/performance_and_spending/1079/payments_over_1056,01-Apr-2017,Childrens Services,REDACTED PERSONAL DATA,Childrens Services,849.24,Direct Payments,1718P01_CR00573,REDACTED PERSONAL DATA
Sandwell Metropolitan Borough Council,http://www.sandwell.gov.uk/info/200202/performance_and_spending/1079/payments_over_1057,01-Apr-2017,Childrens Services,REDACTED PERSONAL DATA,Childrens Services,545.60,Direct Payments,1718P01_CR00574,REDACTED PERSONAL DATA
Sandwell Metropolitan Borough Council,http://www.sandwell.gov.uk/info/200202/performance_and_spending/1079/payments_over_1058,27-Apr-2017,Childrens Services,REDACTED PERSONAL DATA,Childrens Services,616.00,Direct Payments - Traditional,1718P01_CR00575,REDACTED PERSONAL DATA
Sandwell Metropolitan Borough Council,http://www.sandwell.gov.uk/info/200202/performance_and_spending/1079/payments_over_1059,27-Apr-2017,Childrens Services,REDACTED PERSONAL DATA,Childrens Services,674.88,Direct Payments,1718P01_CR00576,REDACTED PERSONAL DATA
Sandwell Metropolitan Borough Council,http://www.sandwell.gov.uk/info/200202/performance_and_spending/1079/payments_over_1060,27-Apr-2017,Childrens Services,REDACTED PERSONAL DATA,Childrens Services,704.00,Other Agencies,1718P01_CR00577,REDACTED PERSONAL DATA
Sandwell Metropolitan Borough Council,http://www.sandwell.gov.uk/info/200202/performance_and_spending/1079/payments_over_1061,27-Apr-2017,Childrens Services,REDACTED PERSONAL DATA,Childrens Services,642.00,Direct Payments - Traditional,1718P01_CR00578,REDACTED PERSONAL DATA
Sandwell Metropolitan Borough Council,http://www.sandwell.gov.uk/info/200202/performance_and_spending/1079/payments_over_1062,27-Apr-2017,Childrens Services,REDACTED PERSONAL DATA,Childrens Services,672.85,Direct Payments - Traditional,1718P01_CR00579,REDACTED PERSONAL DATA
Sandwell Metropolitan Borough Council,http://www.sandwell.gov.uk/info/200202/performance_and_spending/1079/payments_over_1063,27-Apr-2017,Childrens Services,REDACTED PERSONAL DATA,Childrens Services,805.20,Private Contractors,1718P01_CR00580,REDACTED PERSONAL DATA
Sandwell Metropolitan Borough Council,http://www.sandwell.gov.uk/info/200202/performance_and_spending/1079/payments_over_1064,27-Apr-2017,Childrens Services,REDACTED PERSONAL DATA,Childrens Services,583.00,Direct Payments - Traditional,1718P01_CR00581,REDACTED PERSONAL DATA
Sandwell Metropolitan Borough Council,http://www.sandwell.gov.uk/info/200202/performance_and_spending/1079/payments_over_1065,27-Apr-2017,Childrens Services,REDACTED PERSONAL DATA,Childrens Services,530.00,Direct Payments - Traditional,1718P01_CR00582,REDACTED PERSONAL DATA
Sandwell Metropolitan Borough Council,http://www.sandwell.gov.uk/info/200202/performance_and_spending/1079/payments_over_1066,27-Apr-2017,Childrens Services,REDACTED PERSONAL DATA,Childrens Services,605.00,Direct Payments - Traditional,1718P01_CR00583,REDACTED PERSONAL DATA
Sandwell Metropolitan Borough Council,http://www.sandwell.gov.uk/info/200202/performance_and_spending/1079/payments_over_1067,27-Apr-2017,Childrens Services,REDACTED PERSONAL DATA,Childrens Services,672.00,Direct Payments,1718P01_CR00584,REDACTED PERSONAL DATA
Sandwell Metropolitan Borough Council,http://www.sandwell.gov.uk/info/200202/performance_and_spending/1079/payments_over_1068,27-Apr-2017,Childrens Services,REDACTED PERSONAL DATA,Childrens Services,858.00,Other Agencies,1718P01_CR00585,REDACTED PERSONAL DATA
Sandwell Metropolitan Borough Council,http://www.sandwell.gov.uk/info/200202/performance_and_spending/1079/payments_over_1069,27-Apr-2017,Childrens Services,REDACTED PERSONAL DATA,Childrens Services,544.06,Direct Payments,1718P01_CR00586,REDACTED PERSONAL DATA
Sandwell Metropolitan Borough Council,http://www.sandwell.gov.uk/info/200202/performance_and_spending/1079/payments_over_1070,27-Apr-2017,Childrens Services,REDACTED PERSONAL DATA,Childrens Services,"1,848.00",Direct Payments,1718P01_CR00587,REDACTED PERSONAL DATA
Sandwell Metropolitan Borough Council,http://www.sandwell.gov.uk/info/200202/performance_and_spending/1079/payments_over_1071,27-Apr-2017,Childrens Services,REDACTED PERSONAL DATA,Childrens Services,"1,280.00",Direct Payments,1718P01_CR00588,REDACTED PERSONAL DATA
Sandwell Metropolitan Borough Council,http://www.sandwell.gov.uk/info/200202/performance_and_spending/1079/payments_over_1072,27-Apr-2017,Childrens Services,REDACTED PERSONAL DATA,Childrens Services,510.76,Private Contractors,1718P01_CR00589,REDACTED PERSONAL DATA
Sandwell Metropolitan Borough Council,http://www.sandwell.gov.uk/info/200202/performance_and_spending/1079/payments_over_1073,27-Apr-2017,Childrens Services,REDACTED PERSONAL DATA,Childrens Services,756.80,Direct Payments,1718P01_CR00590,REDACTED PERSONAL DATA
Sandwell Metropolitan Borough Council,http://www.sandwell.gov.uk/info/200202/performance_and_spending/1079/payments_over_1074,27-Apr-2017,Childrens Services,REDACTED PERSONAL DATA,Childrens Services,981.20,Direct Payments - Traditional,1718P01_CR00591,REDACTED PERSONAL DATA
Sandwell Metropolitan Borough Council,http://www.sandwell.gov.uk/info/200202/performance_and_spending/1079/payments_over_1075,27-Apr-2017,Childrens Services,REDACTED PERSONAL DATA,Childrens Services,849.24,Private Contractors,1718P01_CR00592,REDACTED PERSONAL DATA
Sandwell Metropolitan Borough Council,http://www.sandwell.gov.uk/info/200202/performance_and_spending/1079/payments_over_1076,27-Apr-2017,Childrens Services,REDACTED PERSONAL DATA,Childrens Services,545.60,Other Agencies,1718P01_CR00593,REDACTED PERSONAL DATA
Sandwell Metropolitan Borough Council,http://www.sandwell.gov.uk/info/200202/performance_and_spending/1079/payments_over_1077,03-Apr-2017,Childrens Services,BENHAM & REEVES RESIDENTIAL LTD,Childrens Services,"7,498.32",Rents,1718P01_CR00594,123557
Sandwell Metropolitan Borough Council,http://www.sandwell.gov.uk/info/200202/performance_and_spending/1079/payments_over_1078,01-Apr-2017,Childrens Services,CARE & MANAGEMENT SERVICES LIMITED,Childrens Services,"6,200.00",Rents,1718P01_CR00595,126587
Sandwell Metropolitan Borough Council,http://www.sandwell.gov.uk/info/200202/performance_and_spending/1079/payments_over_1079,01-Apr-2017,Childrens Services,CARE FIRST SERVICES,Childrens Services,"1,483.66",Rents,1718P01_CR00596,47318
Sandwell Metropolitan Borough Council,http://www.sandwell.gov.uk/info/200202/performance_and_spending/1079/payments_over_1080,01-Apr-2017,Childrens Services,CARE FIRST SERVICES,Childrens Services,"1,687.50",Rents,1718P01_CR00597,47318
Sandwell Metropolitan Borough Council,http://www.sandwell.gov.uk/info/200202/performance_and_spending/1079/payments_over_1081,01-Apr-2017,Childrens Services,CARE FIRST SERVICES,Childrens Services,"1,483.66",Rents,1718P01_CR00598,47318
Sandwell Metropolitan Borough Council,http://www.sandwell.gov.uk/info/200202/performance_and_spending/1079/payments_over_1082,01-Apr-2017,Childrens Services,CARE FIRST SERVICES,Childrens Services,"1,799.91",Rents,1718P01_CR00599,47318
Sandwell Metropolitan Borough Council,http://www.sandwell.gov.uk/info/200202/performance_and_spending/1079/payments_over_1083,01-Apr-2017,Childrens Services,JUST CALL 4 CARE SERVICES LTD,Childrens Services,520.00,Rents,1718P01_CR00600,122136
Sandwell Metropolitan Borough Council,http://www.sandwell.gov.uk/info/200202/performance_and_spending/1079/payments_over_1084,01-Apr-2017,Childrens Services,JUST CALL 4 CARE SERVICES LTD,Childrens Services,"1,060.00",Rents,1718P01_CR00601,122136
Sandwell Metropolitan Borough Council,http://www.sandwell.gov.uk/info/200202/performance_and_spending/1079/payments_over_1085,01-Apr-2017,Childrens Services,JUST CALL 4 CARE SERVICES LTD,Childrens Services,620.00,Rents,1718P01_CR00602,122136
Sandwell Metropolitan Borough Council,http://www.sandwell.gov.uk/info/200202/performance_and_spending/1079/payments_over_1086,01-Apr-2017,Childrens Services,JUST CALL 4 CARE SERVICES LTD,Childrens Services,"1,040.00",Rents,1718P01_CR00603,122136
Sandwell Metropolitan Borough Council,http://www.sandwell.gov.uk/info/200202/performance_and_spending/1079/payments_over_1087,01-Apr-2017,Childrens Services,MERULAE,Childrens Services,"1,470.00",Externally Purchased Professional Services ,1718P01_CR00604,128346
Sandwell Metropolitan Borough Council,http://www.sandwell.gov.uk/info/200202/performance_and_spending/1079/payments_over_1088,05-Apr-2017,Childrens Services,PATHWAYS SUPPORT SERVICES LIMITED,Childrens Services,"1,375.12",Rents,1718P01_CR00605,121604
Sandwell Metropolitan Borough Council,http://www.sandwell.gov.uk/info/200202/performance_and_spending/1079/payments_over_1089,05-Apr-2017,Childrens Services,PATHWAYS SUPPORT SERVICES LIMITED,Childrens Services,"1,443.99",Rents,1718P01_CR00606,121604
Sandwell Metropolitan Borough Council,http://www.sandwell.gov.uk/info/200202/performance_and_spending/1079/payments_over_1090,01-Apr-2017,Childrens Services,SELECT CARE SOLUTIONS LTD,Childrens Services,"1,116.50",Direct Payments - Traditional,1718P01_CR00607,124754
Sandwell Metropolitan Borough Council,http://www.sandwell.gov.uk/info/200202/performance_and_spending/1079/payments_over_1091,24-Apr-2017,Childrens Services,UNIVERSITY OF WORCESTER,Childrens Services,596.00,Rents,1718P01_CR00608,7271
Sandwell Metropolitan Borough Council,http://www.sandwell.gov.uk/info/200202/performance_and_spending/1079/payments_over_1092,01-Apr-2017,Childrens Services,DV247 LIMITED,Childrens Services,-521.94,Equipment & Furniture ,1718P01_CR00609,113728
Sandwell Metropolitan Borough Council,http://www.sandwell.gov.uk/info/200202/performance_and_spending/1079/payments_over_1093,01-Apr-2017,Childrens Services,PHS GROUP PLC,Childrens Services,"-1,407.02",Materials & Consumables,1718P01_CR00610,01629322
Sandwell Metropolitan Borough Council,http://www.sandwell.gov.uk/info/200202/performance_and_spending/1079/payments_over_1094,12-Apr-2017,Childrens Services,SANDWELL MULTI CARE                                                           01,Childrens Services,"-13,450.09",Contract Payments,1718P01_CR00611,08516967
Sandwell Metropolitan Borough Council,http://www.sandwell.gov.uk/info/200202/performance_and_spending/1079/payments_over_1095,01-Apr-2017,Childrens Services,121 CARS,Childrens Services,"1,477.92",Public Transport,1718P01_CR00612,116848
Sandwell Metropolitan Borough Council,http://www.sandwell.gov.uk/info/200202/performance_and_spending/1079/payments_over_1096,01-Apr-2017,Childrens Services,121 CARS,Childrens Services,691.36,Public Transport,1718P01_CR00613,116848
Sandwell Metropolitan Borough Council,http://www.sandwell.gov.uk/info/200202/performance_and_spending/1079/payments_over_1097,07-Apr-2017,Childrens Services,A E CHAPMAN & CO (OLD HILL) LTD,Childrens Services,"2,401.10",Equipment & Furniture ,1718P01_CR00614,77001665
Sandwell Metropolitan Borough Council,http://www.sandwell.gov.uk/info/200202/performance_and_spending/1079/payments_over_1098,02-Apr-2017,Childrens Services,ADT FIRE & SECURITY PLC,Childrens Services,"1,197.13",Security,1718P01_CR00615,01115015
Sandwell Metropolitan Borough Council,http://www.sandwell.gov.uk/info/200202/performance_and_spending/1079/payments_over_1099,01-Apr-2017,Childrens Services,APD PRINT & DESIGN,Childrens Services,"3,000.00","Printing, Stationery & General Office Expenses",1718P01_CR00616,49454
Sandwell Metropolitan Borough Council,http://www.sandwell.gov.uk/info/200202/performance_and_spending/1079/payments_over_1100,01-Apr-2017,Childrens Services,APD PRINT & DESIGN,Childrens Services,"3,113.00","Printing, Stationery & General Office Expenses",1718P01_CR00617,49454
Sandwell Metropolitan Borough Council,http://www.sandwell.gov.uk/info/200202/performance_and_spending/1079/payments_over_1101,03-Apr-2017,Childrens Services,AWARD SCHEME LTD,Childrens Services,"1,050.00",Subscriptions,1718P01_CR00618,01518049
Sandwell Metropolitan Borough Council,http://www.sandwell.gov.uk/info/200202/performance_and_spending/1079/payments_over_1102,01-Apr-2017,Childrens Services,BAINS TRAVEL,Childrens Services,"1,418.18",Public Transport,1718P01_CR00619,06002298
Sandwell Metropolitan Borough Council,http://www.sandwell.gov.uk/info/200202/performance_and_spending/1079/payments_over_1103,07-Apr-2017,Childrens Services,BARNARDO SERVICES LIMITED,Childrens Services,"52,283.15",Contract Payments,1718P01_CR00620,9330
Sandwell Metropolitan Borough Council,http://www.sandwell.gov.uk/info/200202/performance_and_spending/1079/payments_over_1104,06-Apr-2017,Childrens Services,BARNARDO SERVICES LIMITED,Childrens Services,"11,747.42",Contract Payments,1718P01_CR00621,9330
Sandwell Metropolitan Borough Council,http://www.sandwell.gov.uk/info/200202/performance_and_spending/1079/payments_over_1105,01-Apr-2017,Childrens Services,BARNARDOS,Childrens Services,"4,333.50",Contract Payments,1718P01_CR00622,116308
Sandwell Metropolitan Borough Council,http://www.sandwell.gov.uk/info/200202/performance_and_spending/1079/payments_over_1106,01-Apr-2017,Childrens Services,BEARWOOD COURT HOTEL,Childrens Services,"1,516.67",Private Contractors,1718P01_CR00623,01011861
Sandwell Metropolitan Borough Council,http://www.sandwell.gov.uk/info/200202/performance_and_spending/1079/payments_over_1107,01-Apr-2017,Childrens Services,BEARWOOD COURT HOTEL,Childrens Services,"1,283.33",Private Contractors,1718P01_CR00624,01011861
Sandwell Metropolitan Borough Council,http://www.sandwell.gov.uk/info/200202/performance_and_spending/1079/payments_over_1108,05-Apr-2017,Childrens Services,BEARWOOD COURT HOTEL,Childrens Services,"1,283.33",Private Contractors,1718P01_CR00625,01011861
Sandwell Metropolitan Borough Council,http://www.sandwell.gov.uk/info/200202/performance_and_spending/1079/payments_over_1109,05-Apr-2017,Childrens Services,BEARWOOD COURT HOTEL,Childrens Services,"1,283.33",Private Contractors,1718P01_CR00626,01011861
Sandwell Metropolitan Borough Council,http://www.sandwell.gov.uk/info/200202/performance_and_spending/1079/payments_over_1110,05-Apr-2017,Childrens Services,BEARWOOD COURT HOTEL,Childrens Services,"1,516.67",Private Contractors,1718P01_CR00627,01011861
Sandwell Metropolitan Borough Council,http://www.sandwell.gov.uk/info/200202/performance_and_spending/1079/payments_over_1111,05-Apr-2017,Childrens Services,BEARWOOD COURT HOTEL,Childrens Services,"1,283.33",Private Contractors,1718P01_CR00628,01011861
Sandwell Metropolitan Borough Council,http://www.sandwell.gov.uk/info/200202/performance_and_spending/1079/payments_over_1112,05-Apr-2017,Childrens Services,BEARWOOD COURT HOTEL,Childrens Services,"1,516.67",Private Contractors,1718P01_CR00629,01011861
Sandwell Metropolitan Borough Council,http://www.sandwell.gov.uk/info/200202/performance_and_spending/1079/payments_over_1113,19-Apr-2017,Childrens Services,BEARWOOD COURT HOTEL,Childrens Services,"1,050.00",Private Contractors,1718P01_CR00630,01011861
Sandwell Metropolitan Borough Council,http://www.sandwell.gov.uk/info/200202/performance_and_spending/1079/payments_over_1114,14-Apr-2017,Childrens Services,BEARWOOD COURT HOTEL,Childrens Services,"1,050.00",Private Contractors,1718P01_CR00631,01011861
Sandwell Metropolitan Borough Council,http://www.sandwell.gov.uk/info/200202/performance_and_spending/1079/payments_over_1115,17-Apr-2017,Childrens Services,BEARWOOD COURT HOTEL,Childrens Services,"1,283.33",Private Contractors,1718P01_CR00632,01011861
Sandwell Metropolitan Borough Council,http://www.sandwell.gov.uk/info/200202/performance_and_spending/1079/payments_over_1116,14-Apr-2017,Childrens Services,BEARWOOD COURT HOTEL,Childrens Services,"1,516.67",Private Contractors,1718P01_CR00633,01011861
Sandwell Metropolitan Borough Council,http://www.sandwell.gov.uk/info/200202/performance_and_spending/1079/payments_over_1117,01-Apr-2017,Childrens Services,BEST WEB JOBS LTD,Childrens Services,"2,000.00",Advertising & Publicity,1718P01_CR00634,125874
Sandwell Metropolitan Borough Council,http://www.sandwell.gov.uk/info/200202/performance_and_spending/1079/payments_over_1118,01-Apr-2017,Childrens Services,BETHEL CONVENTION CENTRE,Childrens Services,"1,662.00",Hire of Facilities,1718P01_CR00635,01719624
Sandwell Metropolitan Borough Council,http://www.sandwell.gov.uk/info/200202/performance_and_spending/1079/payments_over_1119,01-Apr-2017,Childrens Services,BILLINGTON BIOENERGY LIMITED,Childrens Services,"1,316.51",Energy Costs-Bio Energy Costs,1718P01_CR00636,128761
Sandwell Metropolitan Borough Council,http://www.sandwell.gov.uk/info/200202/performance_and_spending/1079/payments_over_1120,01-Apr-2017,Childrens Services,BUTT TAXI,Childrens Services,"2,616.31",Public Transport,1718P01_CR00637,109306
Sandwell Metropolitan Borough Council,http://www.sandwell.gov.uk/info/200202/performance_and_spending/1079/payments_over_1121,02-Apr-2017,Childrens Services,CAPITA BUSINESS SERVICES LTD,Childrens Services,"16,197.52",Contract Payments,1718P01_CR00638,01577171
Sandwell Metropolitan Borough Council,http://www.sandwell.gov.uk/info/200202/performance_and_spending/1079/payments_over_1122,02-Apr-2017,Childrens Services,CAPITA BUSINESS SERVICES LTD,Childrens Services,"152,907.13",ICT ,1718P01_CR00639,01577171
Sandwell Metropolitan Borough Council,http://www.sandwell.gov.uk/info/200202/performance_and_spending/1079/payments_over_1123,25-Apr-2017,Childrens Services,CAT CONSULTANCY LTD,Childrens Services,"5,000.00",Contract Payments,1718P01_CR00640,123620
Sandwell Metropolitan Borough Council,http://www.sandwell.gov.uk/info/200202/performance_and_spending/1079/payments_over_1124,01-Apr-2017,Childrens Services,CERTAS ENERGY LIMITED,Childrens Services,867.09,Oil,1718P01_CR00641,80421
Sandwell Metropolitan Borough Council,http://www.sandwell.gov.uk/info/200202/performance_and_spending/1079/payments_over_1125,01-Apr-2017,Childrens Services,CHOICE CARS (UK) LTD,Childrens Services,745.20,Public Transport,1718P01_CR00642,49366
Sandwell Metropolitan Borough Council,http://www.sandwell.gov.uk/info/200202/performance_and_spending/1079/payments_over_1126,04-Apr-2017,Childrens Services,CHRISTIAN YOUTH & COMMUNITY SERVICE,Childrens Services,"1,300.00",Grant Payments,1718P01_CR00643,08588407
Sandwell Metropolitan Borough Council,http://www.sandwell.gov.uk/info/200202/performance_and_spending/1079/payments_over_1127,01-Apr-2017,Childrens Services,CLASSIC CARS 1997,Childrens Services,"5,298.55",Public Transport,1718P01_CR00644,06005093
Sandwell Metropolitan Borough Council,http://www.sandwell.gov.uk/info/200202/performance_and_spending/1079/payments_over_1128,01-Apr-2017,Childrens Services,CLASSIC CARS 1997,Childrens Services,"10,278.61",Public Transport,1718P01_CR00645,06005093
Sandwell Metropolitan Borough Council,http://www.sandwell.gov.uk/info/200202/performance_and_spending/1079/payments_over_1129,18-Apr-2017,Childrens Services,CLICK TRAVEL LTD,Childrens Services,611.50,Conference Expenses,1718P01_CR00646,89169
Sandwell Metropolitan Borough Council,http://www.sandwell.gov.uk/info/200202/performance_and_spending/1079/payments_over_1130,04-Apr-2017,Childrens Services,COMPLETE KIDZ COMMUNITY INTEREST COMPANY,Childrens Services,900.00,Grant Payments,1718P01_CR00647,107927
Sandwell Metropolitan Borough Council,http://www.sandwell.gov.uk/info/200202/performance_and_spending/1079/payments_over_1131,01-Apr-2017,Childrens Services,CORAMBAAF ADOPTION AND FOSTERING ACADEMY,Childrens Services,"2,170.45",Externally Purchased Professional Services ,1718P01_CR00648,123524
Sandwell Metropolitan Borough Council,http://www.sandwell.gov.uk/info/200202/performance_and_spending/1079/payments_over_1132,01-Apr-2017,Childrens Services,CORE ASSETS EXPERT SERVICES LTD,Childrens Services,"1,880.00",Contract Payments,1718P01_CR00649,61555
Sandwell Metropolitan Borough Council,http://www.sandwell.gov.uk/info/200202/performance_and_spending/1079/payments_over_1133,07-Apr-2017,Childrens Services,CORE ASSETS EXPERT SERVICES LTD,Childrens Services,"2,450.00",Contract Payments,1718P01_CR00650,61555
Sandwell Metropolitan Borough Council,http://www.sandwell.gov.uk/info/200202/performance_and_spending/1079/payments_over_1134,07-Apr-2017,Childrens Services,CORE ASSETS EXPERT SERVICES LTD,Childrens Services,540.00,Contract Payments,1718P01_CR00651,61555
Sandwell Metropolitan Borough Council,http://www.sandwell.gov.uk/info/200202/performance_and_spending/1079/payments_over_1135,07-Apr-2017,Childrens Services,CORE ASSETS EXPERT SERVICES LTD,Childrens Services,"2,350.00",Contract Payments,1718P01_CR00652,61555
Sandwell Metropolitan Borough Council,http://www.sandwell.gov.uk/info/200202/performance_and_spending/1079/payments_over_1136,01-Apr-2017,Childrens Services,CORE ASSETS EXPERT SERVICES LTD,Childrens Services,"2,350.00",Contract Payments,1718P01_CR00653,61555
Sandwell Metropolitan Borough Council,http://www.sandwell.gov.uk/info/200202/performance_and_spending/1079/payments_over_1137,01-Apr-2017,Childrens Services,CORE ASSETS EXPERT SERVICES LTD,Childrens Services,"2,350.00",Contract Payments,1718P01_CR00654,61555
Sandwell Metropolitan Borough Council,http://www.sandwell.gov.uk/info/200202/performance_and_spending/1079/payments_over_1138,01-Apr-2017,Childrens Services,CORE ASSETS EXPERT SERVICES LTD,Childrens Services,"1,880.00",Contract Payments,1718P01_CR00655,61555
Sandwell Metropolitan Borough Council,http://www.sandwell.gov.uk/info/200202/performance_and_spending/1079/payments_over_1139,01-Apr-2017,Childrens Services,CORE ASSETS EXPERT SERVICES LTD,Childrens Services,"1,880.00",Contract Payments,1718P01_CR00656,61555
Sandwell Metropolitan Borough Council,http://www.sandwell.gov.uk/info/200202/performance_and_spending/1079/payments_over_1140,01-Apr-2017,Childrens Services,COUNTY CARS (2003) LIMITED,Childrens Services,"1,791.64",Public Transport,1718P01_CR00657,06002387
Sandwell Metropolitan Borough Council,http://www.sandwell.gov.uk/info/200202/performance_and_spending/1079/payments_over_1141,01-Apr-2017,Childrens Services,COUNTY CARS (2003) LIMITED,Childrens Services,932.72,Public Transport,1718P01_CR00658,06002387
Sandwell Metropolitan Borough Council,http://www.sandwell.gov.uk/info/200202/performance_and_spending/1079/payments_over_1142,01-Apr-2017,Childrens Services,COUNTY CARS (2003) LIMITED,Childrens Services,877.30,Public Transport,1718P01_CR00659,06002387
Sandwell Metropolitan Borough Council,http://www.sandwell.gov.uk/info/200202/performance_and_spending/1079/payments_over_1143,01-Apr-2017,Childrens Services,COUNTY CARS (2003) LIMITED,Childrens Services,"2,020.90",Public Transport,1718P01_CR00660,06002387
Sandwell Metropolitan Borough Council,http://www.sandwell.gov.uk/info/200202/performance_and_spending/1079/payments_over_1144,01-Apr-2017,Childrens Services,COUNTY CARS (2003) LIMITED,Childrens Services,850.90,Public Transport,1718P01_CR00661,06002387
Sandwell Metropolitan Borough Council,http://www.sandwell.gov.uk/info/200202/performance_and_spending/1079/payments_over_1145,01-Apr-2017,Childrens Services,CRAIG'S CARPETS,Childrens Services,"2,238.00",Equipment & Furniture ,1718P01_CR00662,129060
Sandwell Metropolitan Borough Council,http://www.sandwell.gov.uk/info/200202/performance_and_spending/1079/payments_over_1146,01-Apr-2017,Childrens Services,CROWN OIL UK LTD,Childrens Services,990.00,Oil,1718P01_CR00663,120207
Sandwell Metropolitan Borough Council,http://www.sandwell.gov.uk/info/200202/performance_and_spending/1079/payments_over_1147,01-Apr-2017,Childrens Services,D J TRAVEL,Childrens Services,"1,509.11",Public Transport,1718P01_CR00664,96415
Sandwell Metropolitan Borough Council,http://www.sandwell.gov.uk/info/200202/performance_and_spending/1079/payments_over_1148,01-Apr-2017,Childrens Services,DAISYBROOK LIMITED,Childrens Services,"1,352.00",Contract Payments,1718P01_CR00665,01767833
Sandwell Metropolitan Borough Council,http://www.sandwell.gov.uk/info/200202/performance_and_spending/1079/payments_over_1149,04-Apr-2017,Childrens Services,DECATHLON UK LIMITED,Childrens Services,"3,759.95",Equipment & Furniture ,1718P01_CR00666,66225
Sandwell Metropolitan Borough Council,http://www.sandwell.gov.uk/info/200202/performance_and_spending/1079/payments_over_1150,01-Apr-2017,Childrens Services,DESFORD PUBLISHING LTD,Childrens Services,"1,044.45",Advertising & Publicity,1718P01_CR00667,128930
Sandwell Metropolitan Borough Council,http://www.sandwell.gov.uk/info/200202/performance_and_spending/1079/payments_over_1151,01-Apr-2017,Childrens Services,DIRECTION TRAINING & MANAGEMENT,Childrens Services,"1,000.00",Externally Purchased Professional Services ,1718P01_CR00668,01727395
Sandwell Metropolitan Borough Council,http://www.sandwell.gov.uk/info/200202/performance_and_spending/1079/payments_over_1152,01-Apr-2017,Childrens Services,DR SATBINDER KAUR BHOGAL,Childrens Services,"1,270.00",Contract Payments,1718P01_CR00669,129121
Sandwell Metropolitan Borough Council,http://www.sandwell.gov.uk/info/200202/performance_and_spending/1079/payments_over_1153,01-Apr-2017,Childrens Services,DROACH TRAVEL LTD,Childrens Services,"2,440.50",Public Transport,1718P01_CR00670,06002707
Sandwell Metropolitan Borough Council,http://www.sandwell.gov.uk/info/200202/performance_and_spending/1079/payments_over_1154,01-Apr-2017,Childrens Services,DROACH TRAVEL LTD,Childrens Services,"1,411.48",Public Transport,1718P01_CR00671,06002707
Sandwell Metropolitan Borough Council,http://www.sandwell.gov.uk/info/200202/performance_and_spending/1079/payments_over_1155,01-Apr-2017,Childrens Services,DROACH TRAVEL LTD,Childrens Services,"1,253.67",Public Transport,1718P01_CR00672,06002707
Sandwell Metropolitan Borough Council,http://www.sandwell.gov.uk/info/200202/performance_and_spending/1079/payments_over_1156,01-Apr-2017,Childrens Services,DROACH TRAVEL LTD,Childrens Services,"1,767.05",Public Transport,1718P01_CR00673,06002707
Sandwell Metropolitan Borough Council,http://www.sandwell.gov.uk/info/200202/performance_and_spending/1079/payments_over_1157,01-Apr-2017,Childrens Services,DUDLEY LODGE SAFEGUARDING CHILDREN SERVICES,Childrens Services,"1,095.40",Private Contractors,1718P01_CR00674,111747
Sandwell Metropolitan Borough Council,http://www.sandwell.gov.uk/info/200202/performance_and_spending/1079/payments_over_1158,01-Apr-2017,Childrens Services,DV247 LIMITED,Childrens Services,521.94,Equipment & Furniture ,1718P01_CR00675,113728
Sandwell Metropolitan Borough Council,http://www.sandwell.gov.uk/info/200202/performance_and_spending/1079/payments_over_1159,01-Apr-2017,Childrens Services,DV247 LIMITED,Childrens Services,"1,141.67",Materials & Consumables,1718P01_CR00676,113728
Sandwell Metropolitan Borough Council,http://www.sandwell.gov.uk/info/200202/performance_and_spending/1079/payments_over_1160,01-Apr-2017,Childrens Services,ENTRE PRISES (UK) LTD,Childrens Services,582.00,Equipment & Furniture ,1718P01_CR00677,01672377
Sandwell Metropolitan Borough Council,http://www.sandwell.gov.uk/info/200202/performance_and_spending/1079/payments_over_1161,01-Apr-2017,Childrens Services,FAMILY ACTION ENTERPRISES LTD,Childrens Services,"1,521.60",Externally Purchased Professional Services ,1718P01_CR00678,124523
Sandwell Metropolitan Borough Council,http://www.sandwell.gov.uk/info/200202/performance_and_spending/1079/payments_over_1162,01-Apr-2017,Childrens Services,FIRST RESPONSE (FIRST AID) LTD,Childrens Services,550.00,Externally Purchased Professional Services ,1718P01_CR00679,57372
Sandwell Metropolitan Borough Council,http://www.sandwell.gov.uk/info/200202/performance_and_spending/1079/payments_over_1163,01-Apr-2017,Childrens Services,FREECOM INTERNET SERVICES LTD,Childrens Services,900.00,Externally Purchased Professional Services ,1718P01_CR00680,129190
Sandwell Metropolitan Borough Council,http://www.sandwell.gov.uk/info/200202/performance_and_spending/1079/payments_over_1164,12-Apr-2017,Childrens Services,FST MANAGEMENT SERVICES LTD,Childrens Services,"5,787.71",Public Transport,1718P01_CR00681,116661
Sandwell Metropolitan Borough Council,http://www.sandwell.gov.uk/info/200202/performance_and_spending/1079/payments_over_1165,01-Apr-2017,Childrens Services,GLOUCESTERSHIRE COUNTY COUNCIL,Childrens Services,"27,000.00",Childcare,1718P01_CR00682,01485276
Sandwell Metropolitan Borough Council,http://www.sandwell.gov.uk/info/200202/performance_and_spending/1079/payments_over_1166,01-Apr-2017,Childrens Services,GREAT BARR HOTEL,Childrens Services,800.00,Rents,1718P01_CR00683,01050001
Sandwell Metropolitan Borough Council,http://www.sandwell.gov.uk/info/200202/performance_and_spending/1079/payments_over_1167,01-Apr-2017,Childrens Services,GREEN DESTINATIONS LTD,Childrens Services,"1,738.80",Public Transport,1718P01_CR00684,109275
Sandwell Metropolitan Borough Council,http://www.sandwell.gov.uk/info/200202/performance_and_spending/1079/payments_over_1168,01-Apr-2017,Childrens Services,GREEN DESTINATIONS LTD,Childrens Services,"2,142.03",Public Transport,1718P01_CR00685,109275
Sandwell Metropolitan Borough Council,http://www.sandwell.gov.uk/info/200202/performance_and_spending/1079/payments_over_1169,01-Apr-2017,Childrens Services,GREEN DESTINATIONS LTD,Childrens Services,"1,628.25",Public Transport,1718P01_CR00686,109275
Sandwell Metropolitan Borough Council,http://www.sandwell.gov.uk/info/200202/performance_and_spending/1079/payments_over_1170,01-Apr-2017,Childrens Services,GREEN DESTINATIONS LTD,Childrens Services,"1,628.25",Public Transport,1718P01_CR00687,109275
Sandwell Metropolitan Borough Council,http://www.sandwell.gov.uk/info/200202/performance_and_spending/1079/payments_over_1171,07-Apr-2017,Childrens Services,GROUP ACCOMMODATION LTD,Childrens Services,545.00,Advertising & Publicity,1718P01_CR00688,109445
Sandwell Metropolitan Borough Council,http://www.sandwell.gov.uk/info/200202/performance_and_spending/1079/payments_over_1172,05-Apr-2017,Childrens Services,HAPPY APPLE CO LTD,Childrens Services,"1,950.00",Externally Purchased Professional Services ,1718P01_CR00689,7299
Sandwell Metropolitan Borough Council,http://www.sandwell.gov.uk/info/200202/performance_and_spending/1079/payments_over_1173,05-Apr-2017,Childrens Services,HAPPY APPLE CO LTD,Childrens Services,870.00,Advertising & Publicity,1718P01_CR00690,7299
Sandwell Metropolitan Borough Council,http://www.sandwell.gov.uk/info/200202/performance_and_spending/1079/payments_over_1174,01-Apr-2017,Childrens Services,HEARTLANDS BUSINESS GIFTS LTD,Childrens Services,550.00,Advertising & Publicity,1718P01_CR00691,11316
Sandwell Metropolitan Borough Council,http://www.sandwell.gov.uk/info/200202/performance_and_spending/1079/payments_over_1175,01-Apr-2017,Childrens Services,HEARTLANDS BUSINESS GIFTS LTD,Childrens Services,720.00,Advertising & Publicity,1718P01_CR00692,11316
Sandwell Metropolitan Borough Council,http://www.sandwell.gov.uk/info/200202/performance_and_spending/1079/payments_over_1176,04-Apr-2017,Childrens Services,HMCTS,Childrens Services,"1,819.00",Other Agency Payments,1718P01_CR00693,38974
Sandwell Metropolitan Borough Council,http://www.sandwell.gov.uk/info/200202/performance_and_spending/1079/payments_over_1177,10-Apr-2017,Childrens Services,HMCTS,Childrens Services,"5,521.00",Other Agency Payments,1718P01_CR00694,38974
Sandwell Metropolitan Borough Council,http://www.sandwell.gov.uk/info/200202/performance_and_spending/1079/payments_over_1178,26-Apr-2017,Childrens Services,HMCTS,Childrens Services,"5,490.00",Other Agency Payments,1718P01_CR00695,38974
Sandwell Metropolitan Borough Council,http://www.sandwell.gov.uk/info/200202/performance_and_spending/1079/payments_over_1179,01-Apr-2017,Childrens Services,INDEPENDENT PARENTAL SPECIAL EDUCATION ADVICE,Childrens Services,700.00,Externally Purchased Professional Services ,1718P01_CR00696,120375
Sandwell Metropolitan Borough Council,http://www.sandwell.gov.uk/info/200202/performance_and_spending/1079/payments_over_1180,01-Apr-2017,Childrens Services,INGSON LTD,Childrens Services,"6,000.00",Contract Payments,1718P01_CR00697,128199
Sandwell Metropolitan Borough Council,http://www.sandwell.gov.uk/info/200202/performance_and_spending/1079/payments_over_1181,01-Apr-2017,Childrens Services,IRON MAIDENS COMMERCIAL LAUNDRY LIMITED,Childrens Services,840.26,Contract Cleaning,1718P01_CR00698,124628
Sandwell Metropolitan Borough Council,http://www.sandwell.gov.uk/info/200202/performance_and_spending/1079/payments_over_1182,01-Apr-2017,Childrens Services,ISWA LTD,Childrens Services,"1,400.00",Contract Payments,1718P01_CR00699,01733545
Sandwell Metropolitan Borough Council,http://www.sandwell.gov.uk/info/200202/performance_and_spending/1079/payments_over_1183,01-Apr-2017,Childrens Services,ISWA LTD,Childrens Services,"2,700.00",Contract Payments,1718P01_CR00700,01733545
Sandwell Metropolitan Borough Council,http://www.sandwell.gov.uk/info/200202/performance_and_spending/1079/payments_over_1184,01-Apr-2017,Childrens Services,ISWA LTD,Childrens Services,"2,380.00",Contract Payments,1718P01_CR00701,01733545
Sandwell Metropolitan Borough Council,http://www.sandwell.gov.uk/info/200202/performance_and_spending/1079/payments_over_1185,01-Apr-2017,Childrens Services,KALL KWIK UK,Childrens Services,650.00,"Printing, Stationery & General Office Expenses",1718P01_CR00702,78425
Sandwell Metropolitan Borough Council,http://www.sandwell.gov.uk/info/200202/performance_and_spending/1079/payments_over_1186,01-Apr-2017,Childrens Services,KENT COUNTY COUNCIL,Childrens Services,"2,400.00",ICT ,1718P01_CR00703,01656417
Sandwell Metropolitan Borough Council,http://www.sandwell.gov.uk/info/200202/performance_and_spending/1079/payments_over_1187,01-Apr-2017,Childrens Services,KEYS INDEPENDENT FOSTERING SERVICES LIMITED,Childrens Services,"2,300.00",Contract Payments,1718P01_CR00704,123688
Sandwell Metropolitan Borough Council,http://www.sandwell.gov.uk/info/200202/performance_and_spending/1079/payments_over_1188,01-Apr-2017,Childrens Services,KEYS INDEPENDENT FOSTERING SERVICES LIMITED,Childrens Services,"2,300.00",Contract Payments,1718P01_CR00705,123688
Sandwell Metropolitan Borough Council,http://www.sandwell.gov.uk/info/200202/performance_and_spending/1079/payments_over_1189,01-Apr-2017,Childrens Services,KEYS INDEPENDENT FOSTERING SERVICES LIMITED,Childrens Services,741.05,Contract Payments,1718P01_CR00706,123688
Sandwell Metropolitan Borough Council,http://www.sandwell.gov.uk/info/200202/performance_and_spending/1079/payments_over_1190,01-Apr-2017,Childrens Services,KEYS INDEPENDENT FOSTERING SERVICES LIMITED,Childrens Services,"4,222.39",Contract Payments,1718P01_CR00707,123688
Sandwell Metropolitan Borough Council,http://www.sandwell.gov.uk/info/200202/performance_and_spending/1079/payments_over_1191,01-Apr-2017,Childrens Services,KEYS INDEPENDENT FOSTERING SERVICES LIMITED,Childrens Services,"2,820.00",Contract Payments,1718P01_CR00708,123688
Sandwell Metropolitan Borough Council,http://www.sandwell.gov.uk/info/200202/performance_and_spending/1079/payments_over_1192,05-Apr-2017,Childrens Services,KIDS,Childrens Services,"10,302.00",Contract Payments,1718P01_CR00709,80825
Sandwell Metropolitan Borough Council,http://www.sandwell.gov.uk/info/200202/performance_and_spending/1079/payments_over_1193,01-Apr-2017,Childrens Services,KRM CONTRACTORS LTD,Childrens Services,"1,253.00",CIP - Fixtures & Fittings,1718P01_CR00710,88246
Sandwell Metropolitan Borough Council,http://www.sandwell.gov.uk/info/200202/performance_and_spending/1079/payments_over_1194,01-Apr-2017,Childrens Services,LIQUIDLOGIC LIMITED,Childrens Services,"108,830.00",ICT ,1718P01_CR00711,83167
Sandwell Metropolitan Borough Council,http://www.sandwell.gov.uk/info/200202/performance_and_spending/1079/payments_over_1195,19-Apr-2017,Childrens Services,LITTLE STARS DAY NURSERY,Childrens Services,650.00,Grant Payments,1718P01_CR00712,107804
Sandwell Metropolitan Borough Council,http://www.sandwell.gov.uk/info/200202/performance_and_spending/1079/payments_over_1196,03-Apr-2017,Childrens Services,LORAC HEALTHCARE LIMITED,Childrens Services,"3,126.75",Contract Payments,1718P01_CR00713,126144
Sandwell Metropolitan Borough Council,http://www.sandwell.gov.uk/info/200202/performance_and_spending/1079/payments_over_1197,01-Apr-2017,Childrens Services,LR'S TAXIS LIMITED,Childrens Services,"1,950.00",Public Transport,1718P01_CR00714,59047
Sandwell Metropolitan Borough Council,http://www.sandwell.gov.uk/info/200202/performance_and_spending/1079/payments_over_1198,01-Apr-2017,Childrens Services,LR'S TAXIS LIMITED,Childrens Services,"4,256.14",Public Transport,1718P01_CR00715,59047
Sandwell Metropolitan Borough Council,http://www.sandwell.gov.uk/info/200202/performance_and_spending/1079/payments_over_1199,01-Apr-2017,Childrens Services,LR'S TAXIS LIMITED,Childrens Services,975.00,Public Transport,1718P01_CR00716,59047
Sandwell Metropolitan Borough Council,http://www.sandwell.gov.uk/info/200202/performance_and_spending/1079/payments_over_1200,01-Apr-2017,Childrens Services,LR'S TAXIS LIMITED,Childrens Services,620.45,Public Transport,1718P01_CR00717,59047
Sandwell Metropolitan Borough Council,http://www.sandwell.gov.uk/info/200202/performance_and_spending/1079/payments_over_1201,01-Apr-2017,Childrens Services,LR'S TAXIS LIMITED,Childrens Services,"2,570.45",Public Transport,1718P01_CR00718,59047
Sandwell Metropolitan Borough Council,http://www.sandwell.gov.uk/info/200202/performance_and_spending/1079/payments_over_1202,01-Apr-2017,Childrens Services,LR'S TAXIS LIMITED,Childrens Services,638.18,Public Transport,1718P01_CR00719,59047
Sandwell Metropolitan Borough Council,http://www.sandwell.gov.uk/info/200202/performance_and_spending/1079/payments_over_1203,01-Apr-2017,Childrens Services,LR'S TAXIS LIMITED,Childrens Services,"2,115.25",Public Transport,1718P01_CR00720,59047
Sandwell Metropolitan Borough Council,http://www.sandwell.gov.uk/info/200202/performance_and_spending/1079/payments_over_1204,01-Apr-2017,Childrens Services,LR'S TAXIS LIMITED,Childrens Services,709.09,Public Transport,1718P01_CR00721,59047
Sandwell Metropolitan Borough Council,http://www.sandwell.gov.uk/info/200202/performance_and_spending/1079/payments_over_1205,15-Apr-2017,Childrens Services,LR'S TAXIS LIMITED,Childrens Services,746.46,Public Transport,1718P01_CR00722,59047
Sandwell Metropolitan Borough Council,http://www.sandwell.gov.uk/info/200202/performance_and_spending/1079/payments_over_1206,15-Apr-2017,Childrens Services,LR'S TAXIS LIMITED,Childrens Services,"2,028.22",Public Transport,1718P01_CR00723,59047
Sandwell Metropolitan Borough Council,http://www.sandwell.gov.uk/info/200202/performance_and_spending/1079/payments_over_1207,01-Apr-2017,Childrens Services,M H TAXIS,Childrens Services,708.55,Public Transport,1718P01_CR00724,119234
Sandwell Metropolitan Borough Council,http://www.sandwell.gov.uk/info/200202/performance_and_spending/1079/payments_over_1208,01-Apr-2017,Childrens Services,M H TAXIS,Childrens Services,"2,026.89",Public Transport,1718P01_CR00725,119234
Sandwell Metropolitan Borough Council,http://www.sandwell.gov.uk/info/200202/performance_and_spending/1079/payments_over_1209,01-Apr-2017,Childrens Services,M H TAXIS,Childrens Services,700.23,Public Transport,1718P01_CR00726,119234
Sandwell Metropolitan Borough Council,http://www.sandwell.gov.uk/info/200202/performance_and_spending/1079/payments_over_1210,01-Apr-2017,Childrens Services,M H TAXIS,Childrens Services,"1,250.35",Public Transport,1718P01_CR00727,119234
Sandwell Metropolitan Borough Council,http://www.sandwell.gov.uk/info/200202/performance_and_spending/1079/payments_over_1211,01-Apr-2017,Childrens Services,MORETHAN7 LIMITED,Childrens Services,"1,200.00",Grants,1718P01_CR00728,127604
Sandwell Metropolitan Borough Council,http://www.sandwell.gov.uk/info/200202/performance_and_spending/1079/payments_over_1212,10-Apr-2017,Childrens Services,MUIR TRAINING SOLUTIONS,Childrens Services,"2,373.62",Externally Purchased Professional Services ,1718P01_CR00729,125261
Sandwell Metropolitan Borough Council,http://www.sandwell.gov.uk/info/200202/performance_and_spending/1079/payments_over_1213,01-Apr-2017,Childrens Services,MURRAY HALL COMMUNITY TRUST,Childrens Services,"16,853.19",Contract Payments,1718P01_CR00730,01627284
Sandwell Metropolitan Borough Council,http://www.sandwell.gov.uk/info/200202/performance_and_spending/1079/payments_over_1214,01-Apr-2017,Childrens Services,NATASHA WILLIAMS LIMITED,Childrens Services,585.00,Other Local Authorities,1718P01_CR00731,127860
